BODY,BODY NAME,SUPPLIER CODE,SUPPLIER NAME,TRANSACTION NUMBER,INVOICE DATE,THEIR REF,NARR1,PAID DATE,VAT AMOUNT,EXCLUSIVE AMOUNT,INCLUSIVE AMOUNT,EXPENSE AREA,EXPENSE TYPE,EXPENSE CODE
http://statistics.data.gov.uk/id/local-authority/12UE,Huntingdonshire District Council,200918,1ST CHOICE RECRUITMENT,58177,21/08/2021,4000009554,REDACTED,13/01/2022,88.67,443.32,531.99,Operations Business Support,Agency Staff,60011
http://statistics.data.gov.uk/id/local-authority/12UE,Huntingdonshire District Council,200918,1ST CHOICE RECRUITMENT,58288,21/08/2021,4000009553,REDACTED,13/01/2022,88.67,443.32,531.99,Operations Business Support,Agency Staff,60011
http://statistics.data.gov.uk/id/local-authority/12UE,Huntingdonshire District Council,200918,1ST CHOICE RECRUITMENT,58177,21/08/2021,4000009554,REDACTED,13/01/2022,17.73,88.66,106.39,Trade Refuse,Agency Staff,60011
http://statistics.data.gov.uk/id/local-authority/12UE,Huntingdonshire District Council,200918,1ST CHOICE RECRUITMENT,58288,21/08/2021,4000009553,REDACTED,13/01/2022,17.73,88.66,106.39,Trade Refuse,Agency Staff,60011
http://statistics.data.gov.uk/id/local-authority/12UE,Huntingdonshire District Council,200918,1ST CHOICE RECRUITMENT,60239,28/08/2021,4000009575,REDACTED,28/02/2022,106.4,531.98,638.38,Trade Refuse,Agency Staff,60011
http://statistics.data.gov.uk/id/local-authority/12UE,Huntingdonshire District Council,200000,A C COMMERCIALS A C COMMERCIALS,59521,25/01/2022,INV0015569,ENGINE OIL,14/02/2022,165,825,990,Domestic Waste Collection,Vehicle Repairs And Maintenance,60904
http://statistics.data.gov.uk/id/local-authority/12UE,Huntingdonshire District Council,200000,A C COMMERCIALS A C COMMERCIALS,59521,25/01/2022,INV0015569,ENGINE OIL,14/02/2022,137.5,687.5,825,Green Waste Collection,Vehicle Repairs And Maintenance,60904
http://statistics.data.gov.uk/id/local-authority/12UE,Huntingdonshire District Council,200000,A C COMMERCIALS A C COMMERCIALS,59521,25/01/2022,INV0015569,ENGINE OIL,14/02/2022,27.5,137.5,165,Grounds Maintenance,Vehicle Repairs And Maintenance,60904
http://statistics.data.gov.uk/id/local-authority/12UE,Huntingdonshire District Council,200000,A C COMMERCIALS A C COMMERCIALS,59521,25/01/2022,INV0015569,ENGINE OIL,14/02/2022,27.5,137.5,165,Pool Cars,Vehicle Repairs And Maintenance,60904
http://statistics.data.gov.uk/id/local-authority/12UE,Huntingdonshire District Council,200000,A C COMMERCIALS A C COMMERCIALS,59521,25/01/2022,INV0015569,ENGINE OIL,14/02/2022,165,825,990,Recycling Collections,Vehicle Repairs And Maintenance,60904
http://statistics.data.gov.uk/id/local-authority/12UE,Huntingdonshire District Council,200000,A C COMMERCIALS A C COMMERCIALS,59521,25/01/2022,INV0015569,ENGINE OIL,14/02/2022,27.5,137.5,165,Street Cleansing,Vehicle Repairs And Maintenance,60904
http://statistics.data.gov.uk/id/local-authority/12UE,Huntingdonshire District Council,200000,A C COMMERCIALS A C COMMERCIALS,58012,21/12/2021,INV0015115,OPS REAR STEER TRAINING,13/01/2022,79.94,399.68,479.62,Trade Refuse,Vehicle Repairs And Maintenance,60904
http://statistics.data.gov.uk/id/local-authority/12UE,Huntingdonshire District Council,200000,A C COMMERCIALS A C COMMERCIALS,61086,03/03/2022,INV0016159,OPS Flaps- Workshop,30/03/2022,70.19,350.96,421.15,Vehicle Maintenance,Materials,61709
http://statistics.data.gov.uk/id/local-authority/12UE,Huntingdonshire District Council,200009,ABC FOOD LAW LTD ABC FOOD LAW LTD,59285,27/01/2022,INV-2747,ONLINE MEMBERSHIP&SUBCRIPTION,24/02/2022,39,195,234,Food Safety General,Membership And Subscriptions,64800
http://statistics.data.gov.uk/id/local-authority/12UE,Huntingdonshire District Council,200009,ABC FOOD LAW LTD ABC FOOD LAW LTD,59285,27/01/2022,INV-2747,ONLINE MEMBERSHIP&SUBCRIPTION,24/02/2022,39,195,234,Food Safety General,Membership And Subscriptions,64800
http://statistics.data.gov.uk/id/local-authority/12UE,Huntingdonshire District Council,200009,ABC FOOD LAW LTD ABC FOOD LAW LTD,59285,27/01/2022,INV-2747,ONLINE MEMBERSHIP&SUBCRIPTION,24/02/2022,39,195,234,Food Safety General,Membership And Subscriptions,64800
http://statistics.data.gov.uk/id/local-authority/12UE,Huntingdonshire District Council,201295,ACCENT HOUSING,58622,11/01/2022,CLA8939,REDACTED,18/01/2022,0,1795,1795,Homelessness,Homeless Prevention Payments,64403
http://statistics.data.gov.uk/id/local-authority/12UE,Huntingdonshire District Council,201295,ACCENT HOUSING,60805,03/03/2022,50008379,REDACTED,10/03/2022,0,1835,1835,Homelessness,Homeless Prevention Payments,64403
http://statistics.data.gov.uk/id/local-authority/12UE,Huntingdonshire District Council,201295,ACCENT HOUSING,61971,25/03/2022,DEL0032,REDACTED,30/03/2022,0,423.64,423.64,Homelessness,Homeless Prevention Payments,64403
http://statistics.data.gov.uk/id/local-authority/12UE,Huntingdonshire District Council,200017,ACCESS & AUTOMATION LTD ACCESS & AUTOMATION LTD,61977,22/02/2022,7174,REDACTED,30/03/2022,0,5556,5556,Disables Facilities Grants,Mandatory Grants,64601
http://statistics.data.gov.uk/id/local-authority/12UE,Huntingdonshire District Council,200017,ACCESS & AUTOMATION LTD ACCESS & AUTOMATION LTD,59737,08/02/2022,7143,SUPPLY&INSTALLS,03/03/2022,0,4392.89,4392.89,Disables Facilities Grants,Mandatory Grants,64601
http://statistics.data.gov.uk/id/local-authority/12UE,Huntingdonshire District Council,202403,ACT NOW TRAINING,61347,07/02/2022,30303,REDACTED,21/03/2022,79.8,399,478.8,HDC Business Case ,Staff Development And Training,60115
http://statistics.data.gov.uk/id/local-authority/12UE,Huntingdonshire District Council,200028,AEBI SCHMIDT AEBI SCHMIDT,59683,09/02/2022,60277305,FILTER KIT ,03/03/2022,106.43,532.17,638.6,Street Cleansing,Vehicle Repairs And Maintenance,60904
http://statistics.data.gov.uk/id/local-authority/12UE,Huntingdonshire District Council,200028,AEBI SCHMIDT AEBI SCHMIDT,59520,26/01/2022,60276919,BRUSH ,14/02/2022,32.5,162.48,194.98,Street Cleansing,Vehicle Repairs And Maintenance,60904
http://statistics.data.gov.uk/id/local-authority/12UE,Huntingdonshire District Council,200028,AEBI SCHMIDT AEBI SCHMIDT,60473,11/02/2022,60277380,IMPELLER ASSY ,07/03/2022,298.8,1493.99,1792.79,Street Cleansing,Vehicle Repairs And Maintenance,60904
http://statistics.data.gov.uk/id/local-authority/12UE,Huntingdonshire District Council,200028,AEBI SCHMIDT AEBI SCHMIDT,60472,11/02/2022,60277388,HYDRAULIC MOTOR ,07/03/2022,263.06,1315.3,1578.36,Street Cleansing,Vehicle Repairs And Maintenance,60904
http://statistics.data.gov.uk/id/local-authority/12UE,Huntingdonshire District Council,200028,AEBI SCHMIDT AEBI SCHMIDT,59520,26/01/2022,60276919,BRUSH ,14/02/2022,32.5,162.48,194.98,Street Cleansing,Vehicle Repairs And Maintenance,60904
http://statistics.data.gov.uk/id/local-authority/12UE,Huntingdonshire District Council,200028,AEBI SCHMIDT AEBI SCHMIDT,59423,25/01/2022,60276881,ops service ,14/02/2022,265.29,1326.45,1591.74,Street Cleansing,Vehicle Maintenance - External,60921
http://statistics.data.gov.uk/id/local-authority/12UE,Huntingdonshire District Council,200028,AEBI SCHMIDT AEBI SCHMIDT,59520,26/01/2022,60276919,BRUSH ,14/02/2022,-0.01,0,-0.01,Finance,Over/Under VAT Rounding,68350
http://statistics.data.gov.uk/id/local-authority/12UE,Huntingdonshire District Council,200033,AIRQUEE LTD AIRQUEE LTD,61416,24/02/2022,IN31088,OLSI ACTIVITY CLOWN,24/03/2022,1000,5000,6000,OLSI - Indoor Sports,Equipment,61713
http://statistics.data.gov.uk/id/local-authority/12UE,Huntingdonshire District Council,200033,AIRQUEE LTD AIRQUEE LTD,60440,18/01/2022,IN30628,OLSN EQUPIMENT,03/03/2022,809,4045,4854,OLSN - Site & Centre Management,Equipment,61713
http://statistics.data.gov.uk/id/local-authority/12UE,Huntingdonshire District Council,202832,ALLIANCE LEISURE SERVICES LTD,58441,07/01/2022,9335,TA6 MARKETING SUPPORT JAN22,03/02/2022,476.67,2383.33,2860,OLSIO - Training Shed,"Advertising, Publicity And Marketing",62005
http://statistics.data.gov.uk/id/local-authority/12UE,Huntingdonshire District Council,202832,ALLIANCE LEISURE SERVICES LTD,59540,07/02/2022,9462,TA6 MARKETING SUPPORT FEB22,14/02/2022,476.67,2383.33,2860,OLSIO - Training Shed,"Advertising, Publicity And Marketing",62005
http://statistics.data.gov.uk/id/local-authority/12UE,Huntingdonshire District Council,202832,ALLIANCE LEISURE SERVICES LTD,60616,07/03/2022,9591,fitness marketing support,17/03/2022,476.67,2383.33,2860,OLSIO - Training Shed,"Advertising, Publicity And Marketing",62005
http://statistics.data.gov.uk/id/local-authority/12UE,Huntingdonshire District Council,202248,REDACTED,58425,12/01/2022,CREDIT CARD REINBURSEMENT,BOOKERS SUPPLIES BURGUESS PAID OWN CARD,13/01/2022,0,217.22,217.22,VAT,VAT Input Tax,11727
http://statistics.data.gov.uk/id/local-authority/12UE,Huntingdonshire District Council,202248,REDACTED,58073,05/01/2022,PRF050122,BOOKERS SUPPLIES BURGUESS PAID OWN CARD,06/01/2022,0,203.13,203.13,VAT,VAT Input Tax,11727
http://statistics.data.gov.uk/id/local-authority/12UE,Huntingdonshire District Council,202248,REDACTED,58073,05/01/2022,PRF050122,BOOKERS SUPPLIES BURGUESS PAID OWN CARD,06/01/2022,6.93,34.64,41.57,OLSI - Burgess Bar,Materials,61709
http://statistics.data.gov.uk/id/local-authority/12UE,Huntingdonshire District Council,202248,REDACTED,58073,05/01/2022,PRF050122,BOOKERS SUPPLIES BURGUESS PAID OWN CARD,06/01/2022,0,48.94,48.94,OLSI - Burgess Bar,Catering Supplies,61900
http://statistics.data.gov.uk/id/local-authority/12UE,Huntingdonshire District Council,202248,REDACTED,58425,12/01/2022,CREDIT CARD REINBURSEMENT,BOOKERS SUPPLIES BURGUESS PAID OWN CARD,13/01/2022,61.08,305.39,366.47,OLSI - Burgess Bar,Bar Provisions,61905
http://statistics.data.gov.uk/id/local-authority/12UE,Huntingdonshire District Council,202248,REDACTED,58073,05/01/2022,PRF050122,BOOKERS SUPPLIES BURGUESS PAID OWN CARD,06/01/2022,162.35,811.72,974.07,OLSI - Burgess Bar,Bar Provisions,61905
http://statistics.data.gov.uk/id/local-authority/12UE,Huntingdonshire District Council,202248,REDACTED,58425,12/01/2022,CREDIT CARD REINBURSEMENT,BOOKERS SUPPLIES BURGUESS PAID OWN CARD,13/01/2022,119.94,599.71,719.65,OLSI - Burgess Bar,Confectionery,61906
http://statistics.data.gov.uk/id/local-authority/12UE,Huntingdonshire District Council,202900,Alpha Light And Sound,61316,12/03/2022,ALS2022010,BID DAY MARQUEE,24/03/2022,0,1800,1800,Welcome Back Fund,Entertainments,64079
http://statistics.data.gov.uk/id/local-authority/12UE,Huntingdonshire District Council,200047,AMEYCESPA (EAST) LTD AMEYCESPA (EAST) LTD,59422,31/01/2022,9994526,RECYCLING COLLECTION JAN22,24/02/2022,3905.78,19528.92,23434.7,Recycling Collections,Recycling Collection,63500
http://statistics.data.gov.uk/id/local-authority/12UE,Huntingdonshire District Council,200047,AMEYCESPA (EAST) LTD AMEYCESPA (EAST) LTD,58765,04/01/2022,9994477,RECYCLING COLLECTION DEC21,27/01/2022,1744.29,8721.46,10465.75,Recycling Collections,Recycling Collection,63500
http://statistics.data.gov.uk/id/local-authority/12UE,Huntingdonshire District Council,200047,AMEYCESPA (EAST) LTD AMEYCESPA (EAST) LTD,60820,28/02/2022,9994585,Recycling Collection Feb22,24/03/2022,455.18,2275.91,2731.09,Recycling Collections,Recycling Collection,63500
http://statistics.data.gov.uk/id/local-authority/12UE,Huntingdonshire District Council,200047,AMEYCESPA (EAST) LTD AMEYCESPA (EAST) LTD,59422,31/01/2022,9994526,RECYCLING COLLECTION JAN22,24/02/2022,46.42,232.07,278.49,Trade Refuse,Waste Disposal Costs,64050
http://statistics.data.gov.uk/id/local-authority/12UE,Huntingdonshire District Council,200047,AMEYCESPA (EAST) LTD AMEYCESPA (EAST) LTD,58765,04/01/2022,9994477,RECYCLING COLLECTION DEC21,27/01/2022,35.99,179.92,215.91,Trade Refuse,Waste Disposal Costs,64050
http://statistics.data.gov.uk/id/local-authority/12UE,Huntingdonshire District Council,200047,AMEYCESPA (EAST) LTD AMEYCESPA (EAST) LTD,60820,28/02/2022,9994585,Recycling Collection Feb22,24/03/2022,7.52,37.58,45.1,Trade Refuse,Waste Disposal Costs,64050
http://statistics.data.gov.uk/id/local-authority/12UE,Huntingdonshire District Council,202237,AMICUS TRUST LTD,58265,10/01/2022,REDACTED,REDACTED,13/01/2022,0,1200,1200,Homelessness,Homeless Prevention Payments,64403
http://statistics.data.gov.uk/id/local-authority/12UE,Huntingdonshire District Council,202747,ANNA PAGE DRIVING SCHOOL,58168,22/12/2021,3,x5 AND x7 2 HR DRIVING LESSON,13/01/2022,0,420,420,Grounds Maintenance,Staff Development And Training,60115
http://statistics.data.gov.uk/id/local-authority/12UE,Huntingdonshire District Council,202747,ANNA PAGE DRIVING SCHOOL,58168,22/12/2021,3,x5 AND x7 2 HR DRIVING LESSON,13/01/2022,0,300,300,Grounds Maintenance,Staff Development And Training,60115
http://statistics.data.gov.uk/id/local-authority/12UE,Huntingdonshire District Council,202747,ANNA PAGE DRIVING SCHOOL,61935,07/03/2022,6,2 Hour Driving Lessons,30/03/2022,0,180,180,Grounds Maintenance,Staff Development And Training,60115
http://statistics.data.gov.uk/id/local-authority/12UE,Huntingdonshire District Council,202747,ANNA PAGE DRIVING SCHOOL,61935,07/03/2022,6,2 Hour Driving Lessons,30/03/2022,0,300,300,Grounds Maintenance,Staff Development And Training,60115
http://statistics.data.gov.uk/id/local-authority/12UE,Huntingdonshire District Council,202747,ANNA PAGE DRIVING SCHOOL,59769,09/02/2022,5,S HR DRIVING LESSON,03/03/2022,100,500,600,Cctv Huntingdonshire,Staff Other Expenses,60117
http://statistics.data.gov.uk/id/local-authority/12UE,Huntingdonshire District Council,200050,ANTALIS LTD ANTALIS LTD,59274,20/12/2021,2175663,A4 PAPER,03/02/2022,121.6,608,729.6,Printing,Paper,62803
http://statistics.data.gov.uk/id/local-authority/12UE,Huntingdonshire District Council,201474,APEX TRAINING CENTRES (UK) LTD,58459,12/01/2022,19553,LGV CAT C TRAINING/TEST&BOOKING FEE,03/02/2022,200,1000,1200,Domestic Waste Collection,Staff Development And Training,60115
http://statistics.data.gov.uk/id/local-authority/12UE,Huntingdonshire District Council,201474,APEX TRAINING CENTRES (UK) LTD,58459,12/01/2022,19553,LGV CAT C TRAINING/TEST&BOOKING FEE,03/02/2022,0,115,115,Domestic Waste Collection,Staff Development And Training,60115
http://statistics.data.gov.uk/id/local-authority/12UE,Huntingdonshire District Council,201474,APEX TRAINING CENTRES (UK) LTD,58459,12/01/2022,19553,LGV CAT C TRAINING/TEST&BOOKING FEE,03/02/2022,1,5,6,Domestic Waste Collection,Staff Development And Training,60115
http://statistics.data.gov.uk/id/local-authority/12UE,Huntingdonshire District Council,201474,APEX TRAINING CENTRES (UK) LTD,58459,12/01/2022,19553,LGV CAT C TRAINING/TEST&BOOKING FEE,03/02/2022,0,40,40,Domestic Waste Collection,Staff Development And Training,60115
http://statistics.data.gov.uk/id/local-authority/12UE,Huntingdonshire District Council,202851,APL CONSTRUCTION SERVICES LTD,60535,24/02/2022,438,St Ives & Hdon Bus Station Wc Payment 1,03/03/2022,15798.89,78994.43,94793.32,Upgrade/Replacement of Public Toilets,Site Alterations And Materials,60273
http://statistics.data.gov.uk/id/local-authority/12UE,Huntingdonshire District Council,202851,APL CONSTRUCTION SERVICES LTD,62000,22/03/2022,442.2,St Ives&Hunts BS WC's Payment 2,30/03/2022,9677.64,48388.21,58065.85,Upgrade/Replacement of Public Toilets,Site Alterations And Materials,60273
http://statistics.data.gov.uk/id/local-authority/12UE,Huntingdonshire District Council,200054.01,APSE,59707,08/02/2022,2122/2214,FACILITIES ONLINE TRAINING,03/03/2022,51.8,259,310.8,Facilities,Staff Development And Training,60115
http://statistics.data.gov.uk/id/local-authority/12UE,Huntingdonshire District Council,200054,APSE APSE,58551,08/10/2021,2122/1478,LAMS APP FEE 010921-310822,20/01/2022,63,315,378,Grounds Maintenance,Ict Licences,64072
http://statistics.data.gov.uk/id/local-authority/12UE,Huntingdonshire District Council,200054,APSE APSE,58551,08/10/2021,2122/1478,LAMS APP FEE 010921-310822,20/01/2022,63,315,378,Vehicle Maintenance,Ict Licences,64072
http://statistics.data.gov.uk/id/local-authority/12UE,Huntingdonshire District Council,202059,AQUASERVE MANAGEMENT LTD,58423,29/10/2021,AQMAN21031,AWARDED WATERCOURSE AUDITS,13/01/2022,59.97,299.85,359.82,Watercourses,Site Alterations And Materials,60273
http://statistics.data.gov.uk/id/local-authority/12UE,Huntingdonshire District Council,200058,ARCHANT HERTS AND CAMBS ARCHANT HERTS AND CAMBS,61682,21/03/2022,PROFORMA 11120390 (V1),ol hunts post,30/03/2022,83.15,415.75,498.9,One Leisure Support Team,"Advertising, Publicity And Marketing",62005
http://statistics.data.gov.uk/id/local-authority/12UE,Huntingdonshire District Council,200058,ARCHANT HERTS AND CAMBS ARCHANT HERTS AND CAMBS,61682,21/03/2022,PROFORMA 11120390 (V1),ol hunts post,30/03/2022,83.15,415.75,498.9,One Leisure Support Team,"Advertising, Publicity And Marketing",62005
http://statistics.data.gov.uk/id/local-authority/12UE,Huntingdonshire District Council,200058,ARCHANT HERTS AND CAMBS ARCHANT HERTS AND CAMBS,59122,22/01/2022,56954707,OL H POST 190122,14/02/2022,81.91,409.55,491.46,One Leisure Support Team,"Advertising, Publicity And Marketing",62005
http://statistics.data.gov.uk/id/local-authority/12UE,Huntingdonshire District Council,200058,ARCHANT HERTS AND CAMBS ARCHANT HERTS AND CAMBS,58172,31/12/2021,56948405,OL WRAP HUNTS POST,27/01/2022,75,375,450,One Leisure Support Team,"Advertising, Publicity And Marketing",62005
http://statistics.data.gov.uk/id/local-authority/12UE,Huntingdonshire District Council,200058,ARCHANT HERTS AND CAMBS ARCHANT HERTS AND CAMBS,60788,05/03/2022,56979757,HDC Green Page,30/03/2022,81.95,409.75,491.7,Waste Minimisation,"Advertising, Publicity And Marketing",62005
http://statistics.data.gov.uk/id/local-authority/12UE,Huntingdonshire District Council,200058,ARCHANT HERTS AND CAMBS ARCHANT HERTS AND CAMBS,60788,05/03/2022,56979757,HDC Green Page,30/03/2022,1.24,6.2,7.44,Waste Minimisation,"Advertising, Publicity And Marketing",62005
http://statistics.data.gov.uk/id/local-authority/12UE,Huntingdonshire District Council,200058,ARCHANT HERTS AND CAMBS ARCHANT HERTS AND CAMBS,60522,28/02/2022,56977482,HDC WELCOME BACK 230222,24/03/2022,254,1270,1524,Welcome Back Fund,"Advertising, Publicity And Marketing",62005
http://statistics.data.gov.uk/id/local-authority/12UE,Huntingdonshire District Council,200058,ARCHANT HERTS AND CAMBS ARCHANT HERTS AND CAMBS,61933,15/03/2022,PROFORMA 11113223,HDC WELCOME HERTS & CAMBS,30/03/2022,217.76,1088.8,1306.56,Welcome Back Fund,"Advertising, Publicity And Marketing",62005
http://statistics.data.gov.uk/id/local-authority/12UE,Huntingdonshire District Council,200058,ARCHANT HERTS AND CAMBS ARCHANT HERTS AND CAMBS,61928,15/03/2022,PROFORMA 11113218,GO TARGET HUNTS POST,30/03/2022,60,300,360,Welcome Back Fund,"Advertising, Publicity And Marketing",62005
http://statistics.data.gov.uk/id/local-authority/12UE,Huntingdonshire District Council,200059,ARLINGCLOSE ARLINGCLOSE,59781,13/02/2022,ACF2780,TREASURY MANAGEMENT JAN-DEC22,07/03/2022,3213,16065,19278,Finance,Consultancy Fees,62400
http://statistics.data.gov.uk/id/local-authority/12UE,Huntingdonshire District Council,200060,ARTHUR IBBETT LTD ARTHUR IBBETT LTD,58219,22/12/2021,121510,SERVICE ITEMS WINTER OVERHAUL GM PLANT,13/01/2022,488.67,2443.37,2932.04,Grounds Maintenance,Vehicle Repairs And Maintenance,60904
http://statistics.data.gov.uk/id/local-authority/12UE,Huntingdonshire District Council,200060,ARTHUR IBBETT LTD ARTHUR IBBETT LTD,60051,10/02/2022,124204,PXT PIT CULTIVATOR,07/03/2022,120.28,601.38,721.66,Paxton Pits,Specialist Equipment For Service Provision,61704
http://statistics.data.gov.uk/id/local-authority/12UE,Huntingdonshire District Council,200060,ARTHUR IBBETT LTD ARTHUR IBBETT LTD,59419,10/12/2021,120913,EQUIPMENT,10/02/2022,60.88,304.39,365.27,Hinchingbrooke Park Management,Equipment,61713
http://statistics.data.gov.uk/id/local-authority/12UE,Huntingdonshire District Council,202653,Ashtons Legal,60787,14/02/2022,83360,Legal Fees 14.02.22,10/03/2022,70,350,420,Head Of Leisure & Health,Legal Fees,63200
http://statistics.data.gov.uk/id/local-authority/12UE,Huntingdonshire District Council,200742,ASTREA ACADEMY TRUST - ST IVO ACADEMY ST IVO SCHOOL,60757,24/02/2022,37SI 60,Water Re-Charge Nov21-Jan22,24/03/2022,0,1032.68,1032.68,OLSI - Site & Centre Management,Water And Sewerage,60302
http://statistics.data.gov.uk/id/local-authority/12UE,Huntingdonshire District Council,200811,ATOS IT SERVICES UK LTD UNIFY,60656,24/02/2022,5584385009,Land Line Rental/Call Charge,24/03/2022,2443.6,12218,14661.6,Cambridge City Business Case ,Land Line Rental,64077
http://statistics.data.gov.uk/id/local-authority/12UE,Huntingdonshire District Council,200811,ATOS IT SERVICES UK LTD UNIFY,59006,10/12/2021,5584379473,LANDLINE RENTAL/CALL CHARGE,27/01/2022,2441.8,12209,14650.8,Cambridge City Business Case ,Land Line Rental,64077
http://statistics.data.gov.uk/id/local-authority/12UE,Huntingdonshire District Council,200811,ATOS IT SERVICES UK LTD UNIFY,59123,27/01/2022,5584382830,CCC LANDLINE RENTAL/CALL CHARGE DEC21,24/02/2022,2438.94,12194.7,14633.64,Cambridge City Business Case ,Land Line Rental,64077
http://statistics.data.gov.uk/id/local-authority/12UE,Huntingdonshire District Council,200811,ATOS IT SERVICES UK LTD UNIFY,60656,24/02/2022,5584385009,Land Line Rental/Call Charge,24/03/2022,1.31,6.55,7.86,Cambridge City Business Case ,Landline Call Charges,64082
http://statistics.data.gov.uk/id/local-authority/12UE,Huntingdonshire District Council,200811,ATOS IT SERVICES UK LTD UNIFY,59006,10/12/2021,5584379473,LANDLINE RENTAL/CALL CHARGE,27/01/2022,3.06,15.28,18.34,Cambridge City Business Case ,Landline Call Charges,64082
http://statistics.data.gov.uk/id/local-authority/12UE,Huntingdonshire District Council,200811,ATOS IT SERVICES UK LTD UNIFY,59123,27/01/2022,5584382830,CCC LANDLINE RENTAL/CALL CHARGE DEC21,24/02/2022,2.5,12.5,15,Cambridge City Business Case ,Landline Call Charges,64082
http://statistics.data.gov.uk/id/local-authority/12UE,Huntingdonshire District Council,200072,B & H DIGITAL LTD B & H DIGITAL LTD,59401,31/01/2022,37795,MAINTENANCE EQUIPM,24/02/2022,195.39,976.97,1172.36,Printing,Hire - Equipment Furniture And Materials,61700
http://statistics.data.gov.uk/id/local-authority/12UE,Huntingdonshire District Council,200072,B & H DIGITAL LTD B & H DIGITAL LTD,59401,31/01/2022,37795,MAINTENANCE EQUIPM,24/02/2022,0,122.05,122.05,Printing,Hire - Equipment Furniture And Materials,61700
http://statistics.data.gov.uk/id/local-authority/12UE,Huntingdonshire District Council,200072,B & H DIGITAL LTD B & H DIGITAL LTD,59401,31/01/2022,37795,MAINTENANCE EQUIPM,24/02/2022,0,414.46,414.46,Printing,"Maintenance - Equipment, Furniture And Materials",61702
http://statistics.data.gov.uk/id/local-authority/12UE,Huntingdonshire District Council,200072,B & H DIGITAL LTD B & H DIGITAL LTD,59401,31/01/2022,37795,MAINTENANCE EQUIPM,24/02/2022,113.42,567.07,680.49,Printing,"Maintenance - Equipment, Furniture And Materials",61702
http://statistics.data.gov.uk/id/local-authority/12UE,Huntingdonshire District Council,200072,B & H DIGITAL LTD B & H DIGITAL LTD,59921,04/02/2022,37831,ACTIVE LIFESTYLE LEAFLET,03/03/2022,0,1525.75,1525.75,Integrated Lifestyle Service,Printing,62001
http://statistics.data.gov.uk/id/local-authority/12UE,Huntingdonshire District Council,200072,B & H DIGITAL LTD B & H DIGITAL LTD,60557,28/02/2022,38028,Printing Letters&Waste Transfer Notes,24/03/2022,58.65,293.23,351.88,Trade Refuse,Printing,62001
http://statistics.data.gov.uk/id/local-authority/12UE,Huntingdonshire District Council,200072,B & H DIGITAL LTD B & H DIGITAL LTD,59555,31/01/2022,37796,LEAFLET PRINTING,24/03/2022,300,1500,1800,Waste Minimisation,Printing,62001
http://statistics.data.gov.uk/id/local-authority/12UE,Huntingdonshire District Council,200072,B & H DIGITAL LTD B & H DIGITAL LTD,59899,31/01/2022,37797,A5 LEAFLETS,24/02/2022,63.82,319.09,382.91,Waste Minimisation,Printing,62001
http://statistics.data.gov.uk/id/local-authority/12UE,Huntingdonshire District Council,200072,B & H DIGITAL LTD B & H DIGITAL LTD,59921,04/02/2022,37831,ACTIVE LIFESTYLE LEAFLET,03/03/2022,0,342.5,342.5,Integrated Lifestyle Service,"Advertising, Publicity And Marketing",62005
http://statistics.data.gov.uk/id/local-authority/12UE,Huntingdonshire District Council,200072,B & H DIGITAL LTD B & H DIGITAL LTD,59733,31/01/2022,37830,ONE LEISURE DL FLYERS,24/02/2022,0,275.6,275.6,One Leisure Support Team,"Advertising, Publicity And Marketing",62005
http://statistics.data.gov.uk/id/local-authority/12UE,Huntingdonshire District Council,201608,B I CATERING EQUIPMENT SERVICES,58415,10/01/2022,24839,OLSI FRIDGE REMOVAL/ELEC CABLES,03/02/2022,84.97,424.85,509.82,OLSI - Site & Centre Management,Maintenance - Building,60201
http://statistics.data.gov.uk/id/local-authority/12UE,Huntingdonshire District Council,201608,B I CATERING EQUIPMENT SERVICES,59146,25/01/2022,25004,OLSI INSTALLATION,14/02/2022,63.51,317.54,381.05,OLSI - Site & Centre Management,Maintenance - Building,60201
http://statistics.data.gov.uk/id/local-authority/12UE,Huntingdonshire District Council,200075,B S GRAVES ELECTRICAL LTD B S GRAVES ELECTRICAL LTD,58996,13/01/2022,30386,12 ALL SAINTS-ELEC FIXED WIRE TEST,10/02/2022,260,1300,1560,Commercial Properties,Maintenance - Building,60201
http://statistics.data.gov.uk/id/local-authority/12UE,Huntingdonshire District Council,200075,B S GRAVES ELECTRICAL LTD B S GRAVES ELECTRICAL LTD,59379,01/02/2022,30464,NORMAN CROSS REMEDIAL WORKS,24/02/2022,70,350,420,Env Imps Management,Maintenance - Building,60201
http://statistics.data.gov.uk/id/local-authority/12UE,Huntingdonshire District Council,200075,B S GRAVES ELECTRICAL LTD B S GRAVES ELECTRICAL LTD,59378,21/12/2021,30406,HUNT MULTI STORY CARPARK REPAIRS,10/02/2022,58.02,290.08,348.1,MSCP (HUN),Maintenance - Building,60201
http://statistics.data.gov.uk/id/local-authority/12UE,Huntingdonshire District Council,200075,B S GRAVES ELECTRICAL LTD B S GRAVES ELECTRICAL LTD,60523,23/02/2022,30507,PRIORT PRK OLD PAV,17/03/2022,60,300,360,Parks & Open Spaces,Maintenance - Building,60201
http://statistics.data.gov.uk/id/local-authority/12UE,Huntingdonshire District Council,200075,B S GRAVES ELECTRICAL LTD B S GRAVES ELECTRICAL LTD,61760,21/01/2022,30451,St Ives Bus Station- Gate House,28/03/2022,106.84,534.22,641.06,St Ives Gatehouses/Octagon,Maintenance - Building,60201
http://statistics.data.gov.uk/id/local-authority/12UE,Huntingdonshire District Council,200075,B S GRAVES ELECTRICAL LTD B S GRAVES ELECTRICAL LTD,58885,20/01/2022,30450,29 MHP REMEDIAL WORK,14/02/2022,110,550,660,Mobile Home Park - Electrical Works,Maintenance - Mechanical And Electrical,60203
http://statistics.data.gov.uk/id/local-authority/12UE,Huntingdonshire District Council,200075,B S GRAVES ELECTRICAL LTD B S GRAVES ELECTRICAL LTD,58886,20/01/2022,30447,31 MHP REMEDIAL WORK,14/02/2022,110,550,660,Mobile Home Park - Electrical Works,Maintenance - Mechanical And Electrical,60203
http://statistics.data.gov.uk/id/local-authority/12UE,Huntingdonshire District Council,200075,B S GRAVES ELECTRICAL LTD B S GRAVES ELECTRICAL LTD,58987,25/01/2022,30454,28 MHP REMEDIAL ELEC,14/02/2022,110,550,660,Mobile Home Park - Electrical Works,Maintenance - Mechanical And Electrical,60203
http://statistics.data.gov.uk/id/local-authority/12UE,Huntingdonshire District Council,200075,B S GRAVES ELECTRICAL LTD B S GRAVES ELECTRICAL LTD,58988,25/01/2022,30453,39 MHP REMEDIAL ELEC,14/02/2022,110,550,660,Mobile Home Park - Electrical Works,Maintenance - Mechanical And Electrical,60203
http://statistics.data.gov.uk/id/local-authority/12UE,Huntingdonshire District Council,200075,B S GRAVES ELECTRICAL LTD B S GRAVES ELECTRICAL LTD,59173,27/01/2022,30456,30 MHP REMEDIAL ELEC WORK,24/02/2022,110,550,660,Mobile Home Park - Electrical Works,Maintenance - Mechanical And Electrical,60203
http://statistics.data.gov.uk/id/local-authority/12UE,Huntingdonshire District Council,200075,B S GRAVES ELECTRICAL LTD B S GRAVES ELECTRICAL LTD,59237,01/02/2022,30467,26 MHP REMEDIAL ELEC WORK,03/02/2022,110,550,660,Mobile Home Park - Electrical Works,Maintenance - Mechanical And Electrical,60203
http://statistics.data.gov.uk/id/local-authority/12UE,Huntingdonshire District Council,200075,B S GRAVES ELECTRICAL LTD B S GRAVES ELECTRICAL LTD,59365,03/02/2022,30471,HCP CAFE/WORKSHOP LIGHTING REPAIRS,03/03/2022,68,340,408,Hinchingbrooke Park Management,Responsive Repairs - Building,60267
http://statistics.data.gov.uk/id/local-authority/12UE,Huntingdonshire District Council,200075,B S GRAVES ELECTRICAL LTD B S GRAVES ELECTRICAL LTD,61760,21/01/2022,30451,St Ives Bus Station- Gate House,28/03/2022,0.01,0,0.01,Finance,Over/Under VAT Rounding,68350
http://statistics.data.gov.uk/id/local-authority/12UE,Huntingdonshire District Council,200077,BADGEMASTER BADGEMASTER,58250,04/01/2022,1737137,olsi badges,27/01/2022,15.85,79.27,95.12,OLH - Site & Centre Management,"Clothes, Uniform And Laundry",62000
http://statistics.data.gov.uk/id/local-authority/12UE,Huntingdonshire District Council,200077,BADGEMASTER BADGEMASTER,58250,04/01/2022,1737137,olsi badges,27/01/2022,3.6,18.02,21.62,OLR - Site & Centre Management,"Clothes, Uniform And Laundry",62000
http://statistics.data.gov.uk/id/local-authority/12UE,Huntingdonshire District Council,200077,BADGEMASTER BADGEMASTER,58250,04/01/2022,1737137,olsi badges,27/01/2022,2.16,10.81,12.97,OLSI - Burgess Hall,"Clothes, Uniform And Laundry",62000
http://statistics.data.gov.uk/id/local-authority/12UE,Huntingdonshire District Council,200077,BADGEMASTER BADGEMASTER,58250,04/01/2022,1737137,olsi badges,27/01/2022,19.97,99.85,119.82,OLSI - Site & Centre Management,"Clothes, Uniform And Laundry",62000
http://statistics.data.gov.uk/id/local-authority/12UE,Huntingdonshire District Council,200077,BADGEMASTER BADGEMASTER,58250,04/01/2022,1737137,olsi badges,27/01/2022,7.88,39.41,47.29,OLSIO - Training Shed,"Clothes, Uniform And Laundry",62000
http://statistics.data.gov.uk/id/local-authority/12UE,Huntingdonshire District Council,200077,BADGEMASTER BADGEMASTER,58250,04/01/2022,1737137,olsi badges,27/01/2022,20.69,103.44,124.13,OLSN - Site & Centre Management,"Clothes, Uniform And Laundry",62000
http://statistics.data.gov.uk/id/local-authority/12UE,Huntingdonshire District Council,200077,BADGEMASTER BADGEMASTER,58250,04/01/2022,1737137,olsi badges,27/01/2022,0.01,0,0.01,Finance,Over/Under VAT Rounding,68350
http://statistics.data.gov.uk/id/local-authority/12UE,Huntingdonshire District Council,200934,BAGNALLS PAINTING & DECORATING,61391,21/12/2021,KLI-101104,CIVIC SUITE PAINTING,21/03/2022,1199.4,5997,7196.4,Pathfinder House,Maintenance - Building,60201
http://statistics.data.gov.uk/id/local-authority/12UE,Huntingdonshire District Council,200079,BANDVULC TRUCK TYRES BANDVULC TRUCK TYRES,60455,25/02/2022,167159,TYRES P:2 W:0,24/03/2022,11.4,57,68.4,Domestic Waste Collection,Vehicle Repairs And Maintenance,60904
http://statistics.data.gov.uk/id/local-authority/12UE,Huntingdonshire District Council,200079,BANDVULC TRUCK TYRES BANDVULC TRUCK TYRES,60455,25/02/2022,167159,TYRES P:2 W:0,24/03/2022,205.39,1026.93,1232.32,Domestic Waste Collection,Vehicle Repairs And Maintenance,60904
http://statistics.data.gov.uk/id/local-authority/12UE,Huntingdonshire District Council,200079,BANDVULC TRUCK TYRES BANDVULC TRUCK TYRES,60455,25/02/2022,167159,TYRES P:2 W:0,24/03/2022,14.55,72.73,87.28,Green Waste Collection,Vehicle Repairs And Maintenance,60904
http://statistics.data.gov.uk/id/local-authority/12UE,Huntingdonshire District Council,200079,BANDVULC TRUCK TYRES BANDVULC TRUCK TYRES,60455,25/02/2022,167159,TYRES P:2 W:0,24/03/2022,12.52,62.61,75.13,Recycling Collections,Vehicle Repairs And Maintenance,60904
http://statistics.data.gov.uk/id/local-authority/12UE,Huntingdonshire District Council,200079,BANDVULC TRUCK TYRES BANDVULC TRUCK TYRES,60455,25/02/2022,167159,TYRES P:2 W:0,24/03/2022,296.53,1482.65,1779.18,Recycling Collections,Vehicle Repairs And Maintenance,60904
http://statistics.data.gov.uk/id/local-authority/12UE,Huntingdonshire District Council,200079,BANDVULC TRUCK TYRES BANDVULC TRUCK TYRES,60455,25/02/2022,167159,TYRES P:2 W:0,24/03/2022,288.13,1440.66,1728.79,Recycling Collections,Vehicle Repairs And Maintenance,60904
http://statistics.data.gov.uk/id/local-authority/12UE,Huntingdonshire District Council,200079,BANDVULC TRUCK TYRES BANDVULC TRUCK TYRES,60455,25/02/2022,167159,TYRES P:2 W:0,24/03/2022,284,1420.02,1704.02,Recycling Collections,Vehicle Repairs And Maintenance,60904
http://statistics.data.gov.uk/id/local-authority/12UE,Huntingdonshire District Council,200079,BANDVULC TRUCK TYRES BANDVULC TRUCK TYRES,60455,25/02/2022,167159,TYRES P:2 W:0,24/03/2022,85.99,429.96,515.95,Street Cleansing,Vehicle Repairs And Maintenance,60904
http://statistics.data.gov.uk/id/local-authority/12UE,Huntingdonshire District Council,200079,BANDVULC TRUCK TYRES BANDVULC TRUCK TYRES,60455,25/02/2022,167159,TYRES P:2 W:0,24/03/2022,16.87,84.36,101.23,Weekly Bags,Vehicle Repairs And Maintenance,60904
http://statistics.data.gov.uk/id/local-authority/12UE,Huntingdonshire District Council,200079,BANDVULC TRUCK TYRES BANDVULC TRUCK TYRES,58113,30/12/2021,165312,TYRES P:12 W:0,27/01/2022,27.07,135.34,162.41,Domestic Waste Collection,Vehicle Accident Damage,60925
http://statistics.data.gov.uk/id/local-authority/12UE,Huntingdonshire District Council,200079,BANDVULC TRUCK TYRES BANDVULC TRUCK TYRES,58113,30/12/2021,165312,TYRES P:12 W:0,27/01/2022,14.55,72.73,87.28,Domestic Waste Collection,Vehicle Accident Damage,60925
http://statistics.data.gov.uk/id/local-authority/12UE,Huntingdonshire District Council,200079,BANDVULC TRUCK TYRES BANDVULC TRUCK TYRES,58113,30/12/2021,165312,TYRES P:12 W:0,27/01/2022,7.23,36.17,43.4,Green Waste Collection,Vehicle Accident Damage,60925
http://statistics.data.gov.uk/id/local-authority/12UE,Huntingdonshire District Council,200079,BANDVULC TRUCK TYRES BANDVULC TRUCK TYRES,58113,30/12/2021,165312,TYRES P:12 W:0,27/01/2022,31.88,159.4,191.28,Green Waste Collection,Vehicle Accident Damage,60925
http://statistics.data.gov.uk/id/local-authority/12UE,Huntingdonshire District Council,200079,BANDVULC TRUCK TYRES BANDVULC TRUCK TYRES,58113,30/12/2021,165312,TYRES P:12 W:0,27/01/2022,195.02,975.09,1170.11,Green Waste Collection,Vehicle Accident Damage,60925
http://statistics.data.gov.uk/id/local-authority/12UE,Huntingdonshire District Council,200079,BANDVULC TRUCK TYRES BANDVULC TRUCK TYRES,58113,30/12/2021,165312,TYRES P:12 W:0,27/01/2022,14.55,72.73,87.28,Recycling Collections,Vehicle Accident Damage,60925
http://statistics.data.gov.uk/id/local-authority/12UE,Huntingdonshire District Council,200079,BANDVULC TRUCK TYRES BANDVULC TRUCK TYRES,59631,28/01/2022,166540,194851 PERIOD 1,24/02/2022,199.31,996.53,1195.84,Green Waste Collection,Tyres,62926
http://statistics.data.gov.uk/id/local-authority/12UE,Huntingdonshire District Council,200081,BARCHAM TREES BARCHAM TREES,59923,01/02/2022,150810,MEMORIAL/HILL RISE TREEE,24/02/2022,75.2,376,451.2,Arboricultural Team,Materials,61709
http://statistics.data.gov.uk/id/local-authority/12UE,Huntingdonshire District Council,202841,REDACTED,58869,25/01/2022,1,REPAIRS TO TAPS IN CC&CAFE,27/01/2022,0,500,500,Hinchingbrooke Park Management,Maintenance - Building,60201
http://statistics.data.gov.uk/id/local-authority/12UE,Huntingdonshire District Council,201540,REDACTED,59162,24/01/2022,1,GUITAR PERFORMANCE 12/160122,03/02/2022,0,300,300,OLSI - Burgess Hall,Materials,61709
http://statistics.data.gov.uk/id/local-authority/12UE,Huntingdonshire District Council,202731,BEST 4 SYSTEMS,59491,05/01/2022,428117A,IT HARDWARE,10/02/2022,248,1240,1488,HDC Recoverable,Ict Hardware,64070
http://statistics.data.gov.uk/id/local-authority/12UE,Huntingdonshire District Council,202731,BEST 4 SYSTEMS,59491,05/01/2022,428117A,IT HARDWARE,10/02/2022,2,10,12,HDC Recoverable,Ict Hardware,64070
http://statistics.data.gov.uk/id/local-authority/12UE,Huntingdonshire District Council,200100,BH DOORS & ENGINEERING LTD BH DOORS & ENGINEERING LTD,59229,25/01/2022,32827,BH DOOR BATTERY REPLACEMENT,14/02/2022,72.28,361.4,433.68,OLSI - Site & Centre Management,Maintenance - Building,60201
http://statistics.data.gov.uk/id/local-authority/12UE,Huntingdonshire District Council,200101,BID HUNTINGDON BID HUNTINGDON,59204,18/01/2022,INV-1915,"1,133.75 (20/21) 45,946.50 (21/22)",03/02/2022,9438.85,47194.25,56633.1,Bid Revenue Account,Payment Of Amount Due,23003
http://statistics.data.gov.uk/id/local-authority/12UE,Huntingdonshire District Council,200101,BID HUNTINGDON BID HUNTINGDON,60519,25/02/2022,INV-1916,BID LEVY JAN 20/21-21/22,03/03/2022,337.35,1686.75,2024.1,Bid Revenue Account,Payment Of Amount Due,23003
http://statistics.data.gov.uk/id/local-authority/12UE,Huntingdonshire District Council,200103,BIGPRINTING BIGPRINTING,59652,09/02/2022,1714113,OLSI PAPER,03/03/2022,72,360,432,OLH - Site & Centre Management,Maintenance - Building,60201
http://statistics.data.gov.uk/id/local-authority/12UE,Huntingdonshire District Council,200103,BIGPRINTING BIGPRINTING,59652,09/02/2022,1714113,OLSI PAPER,03/03/2022,391.8,1959,2350.8,OLR - Site & Centre Management,Maintenance - Building,60201
http://statistics.data.gov.uk/id/local-authority/12UE,Huntingdonshire District Council,200103,BIGPRINTING BIGPRINTING,59652,09/02/2022,1714113,OLSI PAPER,03/03/2022,238.2,1191,1429.2,OLSI - Site & Centre Management,Maintenance - Building,60201
http://statistics.data.gov.uk/id/local-authority/12UE,Huntingdonshire District Council,200103,BIGPRINTING BIGPRINTING,59652,09/02/2022,1714113,OLSI PAPER,03/03/2022,442.6,2213,2655.6,OLSN - Site & Centre Management,Maintenance - Building,60201
http://statistics.data.gov.uk/id/local-authority/12UE,Huntingdonshire District Council,200103,BIGPRINTING BIGPRINTING,59652,09/02/2022,1714113,OLSI PAPER,03/03/2022,0,0,0,OLSN - Site & Centre Management,Maintenance - Building,60201
http://statistics.data.gov.uk/id/local-authority/12UE,Huntingdonshire District Council,200103,BIGPRINTING BIGPRINTING,60282,23/02/2022,1714151,OLH STATIONERY,17/03/2022,52.4,262,314.4,One Leisure Support Team,"Advertising, Publicity And Marketing",62005
http://statistics.data.gov.uk/id/local-authority/12UE,Huntingdonshire District Council,202336,BLACKJACK SURFACE TECHNOLOGY LTD,61076,09/03/2022,9406,PFH Paving Cleaning,30/03/2022,240,1200,1440,Pathfinder House,Cleaning Services,60501
http://statistics.data.gov.uk/id/local-authority/12UE,Huntingdonshire District Council,202004,BLOOM PROCUREMENT SERVICES LTD,59568,25/01/2022,SIN030154,PAYMENT SCHEDULE 3 NOV21,10/02/2022,1413.33,7066.67,8480,Bridge Place Car Park Const,Consultancy Fees,62400
http://statistics.data.gov.uk/id/local-authority/12UE,Huntingdonshire District Council,202004,BLOOM PROCUREMENT SERVICES LTD,59568,25/01/2022,SIN030154,PAYMENT SCHEDULE 3 NOV21,10/02/2022,1413.33,7066.67,8480,Hinchingbrooke Country Park,Consultancy Fees,62400
http://statistics.data.gov.uk/id/local-authority/12UE,Huntingdonshire District Council,202004,BLOOM PROCUREMENT SERVICES LTD,58408,04/01/2022,SIN029613,OLR DECARB PM,13/01/2022,1200,6000,7200,OL Ramsey Decarbonisation Scheme,Consultancy Fees,62400
http://statistics.data.gov.uk/id/local-authority/12UE,Huntingdonshire District Council,202004,BLOOM PROCUREMENT SERVICES LTD,58003,30/12/2021,SIN029545,FACILITIES PAYMENT SCHEDULE,06/01/2022,2244.8,11224,13468.8,Pathfinder House Decarbonisation Scheme,Consultancy Fees,62400
http://statistics.data.gov.uk/id/local-authority/12UE,Huntingdonshire District Council,202004,BLOOM PROCUREMENT SERVICES LTD,59568,25/01/2022,SIN030154,PAYMENT SCHEDULE 3 NOV21,10/02/2022,1413.33,7066.67,8480,St Neots Riverside Park Path/Cycle Imps,Consultancy Fees,62400
http://statistics.data.gov.uk/id/local-authority/12UE,Huntingdonshire District Council,201138,BORNEY UK LTD,58614,17/01/2022,54540,PAINTING (EXTERNAL),10/02/2022,78.96,394.8,473.76,Active Huntingdonshire,Printing,62001
http://statistics.data.gov.uk/id/local-authority/12UE,Huntingdonshire District Council,202241,BOSTON SEEDS LTD,60453,14/02/2022,1028653,VARIOUS SEEDS,07/03/2022,687.5,3437.5,4125,Domestic Waste Collection,Equipment,61713
http://statistics.data.gov.uk/id/local-authority/12UE,Huntingdonshire District Council,202241,BOSTON SEEDS LTD,60453,14/02/2022,1028653,VARIOUS SEEDS,07/03/2022,133.33,666.66,799.99,Domestic Waste Collection,Equipment,61713
http://statistics.data.gov.uk/id/local-authority/12UE,Huntingdonshire District Council,202241,BOSTON SEEDS LTD,60453,14/02/2022,1028653,VARIOUS SEEDS,07/03/2022,107.5,537.5,645,Domestic Waste Collection,Equipment,61713
http://statistics.data.gov.uk/id/local-authority/12UE,Huntingdonshire District Council,202241,BOSTON SEEDS LTD,60453,14/02/2022,1028653,VARIOUS SEEDS,07/03/2022,1.08,5.42,6.5,Domestic Waste Collection,Equipment,61713
http://statistics.data.gov.uk/id/local-authority/12UE,Huntingdonshire District Council,201490,BPHA LTD,58821,06/01/2022,REDACTED,REDACTED,25/01/2022,0,322,322,Homelessness,Homeless Prevention Payments,64403
http://statistics.data.gov.uk/id/local-authority/12UE,Huntingdonshire District Council,201201,Brampton Parish Council,57156,09/12/2021,FUL,GRANT PROVISIONS LAND DEVELOPMENT,06/01/2022,0,0,0,VAT,VAT Input Tax,11727
http://statistics.data.gov.uk/id/local-authority/12UE,Huntingdonshire District Council,201201,Brampton Parish Council,57156,09/12/2021,FUL,GRANT PROVISIONS LAND DEVELOPMENT,06/01/2022,0,14139.59,14139.59,S106 Agreements Exp & Inc,S106 Community Facilities (Parish) Payment,66454
http://statistics.data.gov.uk/id/local-authority/12UE,Huntingdonshire District Council,200126,BRITISH GAS BUSINESS BRITISH GAS BUSINESS,59456,07/02/2022,996445364,EFH JAN22,14/02/2022,177.94,889.67,1067.61,Eastfield House,Gas,60305
http://statistics.data.gov.uk/id/local-authority/12UE,Huntingdonshire District Council,200126,BRITISH GAS BUSINESS BRITISH GAS BUSINESS,58299,05/01/2022,965757033,EFH GAS DEC 21,13/01/2022,169.64,848.18,1017.82,Eastfield House,Gas,60305
http://statistics.data.gov.uk/id/local-authority/12UE,Huntingdonshire District Council,200126,BRITISH GAS BUSINESS BRITISH GAS BUSINESS,60594,03/03/2022,281038801,EFH 010222-280222,07/03/2022,160.43,802.17,962.6,Eastfield House,Gas,60305
http://statistics.data.gov.uk/id/local-authority/12UE,Huntingdonshire District Council,200126,BRITISH GAS BUSINESS BRITISH GAS BUSINESS,59429,07/02/2022,996445359,OLH DRY JAN,14/02/2022,197.25,986.25,1183.5,OLH - Site & Centre Management,Gas,60305
http://statistics.data.gov.uk/id/local-authority/12UE,Huntingdonshire District Council,200126,BRITISH GAS BUSINESS BRITISH GAS BUSINESS,58193,05/01/2022,965757026,OLH DRY GAS 01-311221,13/01/2022,183.32,916.58,1099.9,OLH - Site & Centre Management,Gas,60305
http://statistics.data.gov.uk/id/local-authority/12UE,Huntingdonshire District Council,200126,BRITISH GAS BUSINESS BRITISH GAS BUSINESS,60717,03/03/2022,281038796,OLH Dry Feb22,10/03/2022,180.75,903.76,1084.51,OLH - Site & Centre Management,Gas,60305
http://statistics.data.gov.uk/id/local-authority/12UE,Huntingdonshire District Council,200126,BRITISH GAS BUSINESS BRITISH GAS BUSINESS,58195,05/01/2022,965757028,OLH WET GAS DEC21,13/01/2022,607.98,3039.87,3647.85,OLH - Swimming,Gas,60305
http://statistics.data.gov.uk/id/local-authority/12UE,Huntingdonshire District Council,200126,BRITISH GAS BUSINESS BRITISH GAS BUSINESS,59433,07/02/2022,996445360,OLH WET JAN22,14/02/2022,440.08,2200.41,2640.49,OLH - Swimming,Gas,60305
http://statistics.data.gov.uk/id/local-authority/12UE,Huntingdonshire District Council,200126,BRITISH GAS BUSINESS BRITISH GAS BUSINESS,60702,05/03/2022,717457227,OLH Wet Feb22,17/03/2022,391.93,1959.64,2351.57,OLH - Swimming,Gas,60305
http://statistics.data.gov.uk/id/local-authority/12UE,Huntingdonshire District Council,200126,BRITISH GAS BUSINESS BRITISH GAS BUSINESS,60720,03/03/2022,281038802,OLR Feb22,10/03/2022,378.66,1893.32,2271.98,OLR - Site & Centre Management,Gas,60305
http://statistics.data.gov.uk/id/local-authority/12UE,Huntingdonshire District Council,200126,BRITISH GAS BUSINESS BRITISH GAS BUSINESS,58192,01/01/2022,717148994,OLR GAS 01-311221,13/01/2022,363.81,1819.07,2182.88,OLR - Site & Centre Management,Gas,60305
http://statistics.data.gov.uk/id/local-authority/12UE,Huntingdonshire District Council,200126,BRITISH GAS BUSINESS BRITISH GAS BUSINESS,59402,01/02/2022,717294255,OLR JAN22,10/02/2022,294.72,1473.6,1768.32,OLR - Site & Centre Management,Gas,60305
http://statistics.data.gov.uk/id/local-authority/12UE,Huntingdonshire District Council,200126,BRITISH GAS BUSINESS BRITISH GAS BUSINESS,59667,09/02/2022,969715782,OLSI 010122-310122,17/02/2022,1452.11,7260.53,8712.64,OLSI - Site & Centre Management,Gas,60305
http://statistics.data.gov.uk/id/local-authority/12UE,Huntingdonshire District Council,200126,BRITISH GAS BUSINESS BRITISH GAS BUSINESS,60991,07/03/2022,953956000,OLSI Gas Feb22,17/03/2022,1228.45,6142.25,7370.7,OLSI - Site & Centre Management,Gas,60305
http://statistics.data.gov.uk/id/local-authority/12UE,Huntingdonshire District Council,200126,BRITISH GAS BUSINESS BRITISH GAS BUSINESS,58189,05/01/2022,965757029,OLSI GAS 01-311221,13/01/2022,1050.05,5250.22,6300.27,OLSI - Site & Centre Management,Gas,60305
http://statistics.data.gov.uk/id/local-authority/12UE,Huntingdonshire District Council,200126,BRITISH GAS BUSINESS BRITISH GAS BUSINESS,59435,07/02/2022,996445363,OLSIO JAN22,14/02/2022,156.21,781.05,937.26,OLSIO - Site & Centre Management,Gas,60305
http://statistics.data.gov.uk/id/local-authority/12UE,Huntingdonshire District Council,200126,BRITISH GAS BUSINESS BRITISH GAS BUSINESS,58191,05/01/2022,965757032,OLSIO GAS 01-311221,13/01/2022,142.17,710.87,853.04,OLSIO - Site & Centre Management,Gas,60305
http://statistics.data.gov.uk/id/local-authority/12UE,Huntingdonshire District Council,200126,BRITISH GAS BUSINESS BRITISH GAS BUSINESS,60716,03/03/2022,281038800,OLSIO Feb22,10/03/2022,136.88,684.38,821.26,OLSIO - Site & Centre Management,Gas,60305
http://statistics.data.gov.uk/id/local-authority/12UE,Huntingdonshire District Council,200126,BRITISH GAS BUSINESS BRITISH GAS BUSINESS,58190,05/01/2022,965757030,OLSN DRY GAS 01-311221,13/01/2022,13.23,264.58,277.81,OLSN - Site & Centre Management,Gas,60305
http://statistics.data.gov.uk/id/local-authority/12UE,Huntingdonshire District Council,200126,BRITISH GAS BUSINESS BRITISH GAS BUSINESS,59430,07/02/2022,996445361,OLSN DRY JAN22,14/02/2022,13.23,264.58,277.81,OLSN - Site & Centre Management,Gas,60305
http://statistics.data.gov.uk/id/local-authority/12UE,Huntingdonshire District Council,200126,BRITISH GAS BUSINESS BRITISH GAS BUSINESS,58744,15/01/2022,717218770,OLSI WET 111121-010122,27/01/2022,1190.89,5954.46,7145.35,OLSN - Swimming,Gas,60305
http://statistics.data.gov.uk/id/local-authority/12UE,Huntingdonshire District Council,200126,BRITISH GAS BUSINESS BRITISH GAS BUSINESS,58194,05/01/2022,965757027,OLSN WET GAS 01-311221,13/01/2022,1154.11,5770.53,6924.64,OLSN - Swimming,Gas,60305
http://statistics.data.gov.uk/id/local-authority/12UE,Huntingdonshire District Council,200126,BRITISH GAS BUSINESS BRITISH GAS BUSINESS,59387,03/02/2022,717308201,OLSN WET JAN22,10/02/2022,778.64,3893.19,4671.83,OLSN - Swimming,Gas,60305
http://statistics.data.gov.uk/id/local-authority/12UE,Huntingdonshire District Council,200126,BRITISH GAS BUSINESS BRITISH GAS BUSINESS,60728,03/03/2022,281038797,OLSN Wet Feb22,10/03/2022,714.49,3572.46,4286.95,OLSN - Swimming,Gas,60305
http://statistics.data.gov.uk/id/local-authority/12UE,Huntingdonshire District Council,200126,BRITISH GAS BUSINESS BRITISH GAS BUSINESS,58749,21/01/2022,717218768,CANCEL INVOICE 65757027,27/01/2022,-1154.11,-5770.53,-6924.64,OLSN - Swimming,Gas,60305
http://statistics.data.gov.uk/id/local-authority/12UE,Huntingdonshire District Council,200126,BRITISH GAS BUSINESS BRITISH GAS BUSINESS,60596,03/03/2022,281038799,OLH 010222-280222,07/03/2022,198.78,993.92,1192.7,Pathfinder House,Gas,60305
http://statistics.data.gov.uk/id/local-authority/12UE,Huntingdonshire District Council,200126,BRITISH GAS BUSINESS BRITISH GAS BUSINESS,58298,05/01/2022,96575031,PFH GAS DEC 21,13/01/2022,194.59,972.95,1167.54,Pathfinder House,Gas,60305
http://statistics.data.gov.uk/id/local-authority/12UE,Huntingdonshire District Council,200126,BRITISH GAS BUSINESS BRITISH GAS BUSINESS,59455,07/02/2022,996445362,PFH JAN22,14/02/2022,189.02,945.09,1134.11,Pathfinder House,Gas,60305
http://statistics.data.gov.uk/id/local-authority/12UE,Huntingdonshire District Council,200126,BRITISH GAS BUSINESS BRITISH GAS BUSINESS,59667,09/02/2022,969715782,OLSI 010122-310122,17/02/2022,-0.01,0,-0.01,Finance,Over/Under VAT Rounding,68350
http://statistics.data.gov.uk/id/local-authority/12UE,Huntingdonshire District Council,200126,BRITISH GAS BUSINESS BRITISH GAS BUSINESS,60702,05/03/2022,717457227,OLH Wet Feb22,17/03/2022,-0.01,0,-0.01,Finance,Over/Under VAT Rounding,68350
http://statistics.data.gov.uk/id/local-authority/12UE,Huntingdonshire District Council,200126,BRITISH GAS BUSINESS BRITISH GAS BUSINESS,59455,07/02/2022,996445362,PFH JAN22,14/02/2022,-0.01,0,-0.01,Finance,Over/Under VAT Rounding,68350
http://statistics.data.gov.uk/id/local-authority/12UE,Huntingdonshire District Council,200126,BRITISH GAS BUSINESS BRITISH GAS BUSINESS,60716,03/03/2022,281038800,OLSIO Feb22,10/03/2022,-0.01,0,-0.01,Finance,Over/Under VAT Rounding,68350
http://statistics.data.gov.uk/id/local-authority/12UE,Huntingdonshire District Council,202017,BRITISH GYMNASTICS FOUNDATION,59091,26/01/2022,SLIN/00000287,LOVE TO MOVE COURSE APR/MAY22,14/02/2022,0,300,300,HR Services,Staff Development And Training,60115
http://statistics.data.gov.uk/id/local-authority/12UE,Huntingdonshire District Council,200129,BRITISH TELECOMMUNICATIONS PLC BRITISH TELECOMMUNICATIONS PLC,60890,17/01/2022,218119,ops cctv change,14/03/2022,750,3750,4500,Cctv Shared Service Hosting,Telecommunications,60301
http://statistics.data.gov.uk/id/local-authority/12UE,Huntingdonshire District Council,200129,BRITISH TELECOMMUNICATIONS PLC BRITISH TELECOMMUNICATIONS PLC,60231,07/02/2022,Q050LQ,OPS EFH,28/02/2022,59.31,296.53,355.84,Cctv Huntingdonshire,Broadband Line Rental,64080
http://statistics.data.gov.uk/id/local-authority/12UE,Huntingdonshire District Council,201752,BROWN & CO PROPERY & BUSINESS CONSULTANTS LLP,60102,04/02/2022,27039,estates A14 VIADUCT,24/02/2022,361.2,1806,2167.2,Bridge Place Car Park Const,Consultancy Fees,62400
http://statistics.data.gov.uk/id/local-authority/12UE,Huntingdonshire District Council,200133,BSG PROPERTY SERVICES LTD BSG PROPERTY SERVICES LTD,59189,21/12/2021,S50074,20070-7103 NOOR,03/02/2022,0,19279,19279,Disables Facilities Grants,Mandatory Grants,64601
http://statistics.data.gov.uk/id/local-authority/12UE,Huntingdonshire District Council,200133,BSG PROPERTY SERVICES LTD BSG PROPERTY SERVICES LTD,60162,28/01/2022,S50385,REDACTED,24/02/2022,0,14408.85,14408.85,Disables Facilities Grants,Mandatory Grants,64601
http://statistics.data.gov.uk/id/local-authority/12UE,Huntingdonshire District Council,200133,BSG PROPERTY SERVICES LTD BSG PROPERTY SERVICES LTD,59183,21/12/2021,S50078,REDACTED,03/02/2022,0,7436.3,7436.3,Disables Facilities Grants,Mandatory Grants,64601
http://statistics.data.gov.uk/id/local-authority/12UE,Huntingdonshire District Council,200133,BSG PROPERTY SERVICES LTD BSG PROPERTY SERVICES LTD,60794,02/03/2022,S50733,REDACTED,24/03/2022,0,6491,6491,Disables Facilities Grants,Mandatory Grants,64601
http://statistics.data.gov.uk/id/local-authority/12UE,Huntingdonshire District Council,200133,BSG PROPERTY SERVICES LTD BSG PROPERTY SERVICES LTD,59079,21/12/2021,S50077,REDACTED,31/01/2022,0,6208,6208,Disables Facilities Grants,Mandatory Grants,64601
http://statistics.data.gov.uk/id/local-authority/12UE,Huntingdonshire District Council,200133,BSG PROPERTY SERVICES LTD BSG PROPERTY SERVICES LTD,60218,30/11/2021,S49902,REDACTED,28/02/2022,0,5975,5975,Disables Facilities Grants,Mandatory Grants,64601
http://statistics.data.gov.uk/id/local-authority/12UE,Huntingdonshire District Council,200133,BSG PROPERTY SERVICES LTD BSG PROPERTY SERVICES LTD,60795,21/02/2022,S50597,REDACTED,17/03/2022,0,5865,5865,Disables Facilities Grants,Mandatory Grants,64601
http://statistics.data.gov.uk/id/local-authority/12UE,Huntingdonshire District Council,200133,BSG PROPERTY SERVICES LTD BSG PROPERTY SERVICES LTD,60017,24/12/2021,S50142,REDACTED,21/02/2022,0,5368,5368,Disables Facilities Grants,Mandatory Grants,64601
http://statistics.data.gov.uk/id/local-authority/12UE,Huntingdonshire District Council,200133,BSG PROPERTY SERVICES LTD BSG PROPERTY SERVICES LTD,59509,07/02/2022,S50469,LEVEL ACCESS SHOWER,03/03/2022,0,5240,5240,Disables Facilities Grants,Mandatory Grants,64601
http://statistics.data.gov.uk/id/local-authority/12UE,Huntingdonshire District Council,200133,BSG PROPERTY SERVICES LTD BSG PROPERTY SERVICES LTD,60781,01/03/2022,S50699,REDACTED,24/03/2022,0,4688,4688,Disables Facilities Grants,Mandatory Grants,64601
http://statistics.data.gov.uk/id/local-authority/12UE,Huntingdonshire District Council,200133,BSG PROPERTY SERVICES LTD BSG PROPERTY SERVICES LTD,60796,28/02/2022,S50683,REDACTED,24/03/2022,0,3944.8,3944.8,Disables Facilities Grants,Mandatory Grants,64601
http://statistics.data.gov.uk/id/local-authority/12UE,Huntingdonshire District Council,200133,BSG PROPERTY SERVICES LTD BSG PROPERTY SERVICES LTD,60902,02/02/2022,S50450,CHIA 12474,14/03/2022,0,3755,3755,Disables Facilities Grants,Mandatory Grants,64601
http://statistics.data.gov.uk/id/local-authority/12UE,Huntingdonshire District Council,200133,BSG PROPERTY SERVICES LTD BSG PROPERTY SERVICES LTD,61573,01/03/2022,S50820,REDACTED,24/03/2022,0,3509,3509,Disables Facilities Grants,Mandatory Grants,64601
http://statistics.data.gov.uk/id/local-authority/12UE,Huntingdonshire District Council,202559,BUCHER MUNICIPAL LTD,58898,05/01/2022,62055552,CHANNEL BRUSHES ,27/01/2022,113.94,569.7,683.64,Street Cleansing,Vehicle Repairs And Maintenance,60904
http://statistics.data.gov.uk/id/local-authority/12UE,Huntingdonshire District Council,202559,BUCHER MUNICIPAL LTD,58234,21/12/2021,62049522, PANEL,13/01/2022,99.49,497.45,596.94,Street Cleansing,Vehicle Repairs And Maintenance,60904
http://statistics.data.gov.uk/id/local-authority/12UE,Huntingdonshire District Council,202559,BUCHER MUNICIPAL LTD,60690,14/02/2022,62068924, Wheels,10/03/2022,52.88,264.4,317.28,Street Cleansing,Vehicle Repairs And Maintenance,60904
http://statistics.data.gov.uk/id/local-authority/12UE,Huntingdonshire District Council,202876,Bucksbridge Limited,60138,23/02/2022,REDACTED,REDACTED,23/02/2022,0,1649.5,1649.5,Homelessness,Homeless Prevention Payments,64403
http://statistics.data.gov.uk/id/local-authority/12UE,Huntingdonshire District Council,201311,CABINET OFFICE,59156,24/01/2022,3814215,SPOTLIGHT CREDITS,14/02/2022,60,300,360,Covid-19,Enquiries,63400
http://statistics.data.gov.uk/id/local-authority/12UE,Huntingdonshire District Council,202829,CALL CABINET LIMITED,58743,27/10/2021,INV-1194,CORE RECORDING PLAN 2021,27/01/2022,209.3,1046.5,1255.8,HDC Recoverable,Ict Software,64071
http://statistics.data.gov.uk/id/local-authority/12UE,Huntingdonshire District Council,200148,CALLCREDIT LTD CALLCREDIT LTD,58276,01/01/2022,911650,TRANSUNION DEC21,27/01/2022,154.93,774.64,929.57,Benefits Management,Enquiries,63400
http://statistics.data.gov.uk/id/local-authority/12UE,Huntingdonshire District Council,200148,CALLCREDIT LTD CALLCREDIT LTD,60986,01/03/2022,920380,TransUnion Feb22,24/03/2022,122.54,612.68,735.22,Benefits Management,Enquiries,63400
http://statistics.data.gov.uk/id/local-authority/12UE,Huntingdonshire District Council,200148,CALLCREDIT LTD CALLCREDIT LTD,59384,01/02/2022,917176,INV917176 JAN22,24/02/2022,98.65,493.27,591.92,Benefits Management,Enquiries,63400
http://statistics.data.gov.uk/id/local-authority/12UE,Huntingdonshire District Council,200148,CALLCREDIT LTD CALLCREDIT LTD,59384,01/02/2022,917176,INV917176 JAN22,24/02/2022,0,29.02,29.02,Benefits Management,Enquiries,63400
http://statistics.data.gov.uk/id/local-authority/12UE,Huntingdonshire District Council,200148,CALLCREDIT LTD CALLCREDIT LTD,60986,01/03/2022,920380,TransUnion Feb22,24/03/2022,6.7,33.48,40.18,Finance,Enquiries,63400
http://statistics.data.gov.uk/id/local-authority/12UE,Huntingdonshire District Council,200148,CALLCREDIT LTD CALLCREDIT LTD,58276,01/01/2022,911650,TRANSUNION DEC21,27/01/2022,2.77,13.87,16.64,Housing Needs & Resources,Enquiries,63400
http://statistics.data.gov.uk/id/local-authority/12UE,Huntingdonshire District Council,200148,CALLCREDIT LTD CALLCREDIT LTD,59384,01/02/2022,917176,INV917176 JAN22,24/02/2022,4.46,22.32,26.78,Housing Needs & Resources,Enquiries,63400
http://statistics.data.gov.uk/id/local-authority/12UE,Huntingdonshire District Council,200148,CALLCREDIT LTD CALLCREDIT LTD,60986,01/03/2022,920380,TransUnion Feb22,24/03/2022,-0.01,0,-0.01,Finance,Over/Under VAT Rounding,68350
http://statistics.data.gov.uk/id/local-authority/12UE,Huntingdonshire District Council,200148,CALLCREDIT LTD CALLCREDIT LTD,59384,01/02/2022,917176,INV917176 JAN22,24/02/2022,0.01,0,0.01,Finance,Over/Under VAT Rounding,68350
http://statistics.data.gov.uk/id/local-authority/12UE,Huntingdonshire District Council,200149,CAMBRIDGE CITY COUNCIL CAMBRIDGE CITY COUNCIL,59350,22/08/2021,12062189,HRIS PROJECT MANAGER CHARGE APR-JUL21,10/02/2022,2701.74,13508.71,16210.45,HR Services,Licences,60410
http://statistics.data.gov.uk/id/local-authority/12UE,Huntingdonshire District Council,200149,CAMBRIDGE CITY COUNCIL CAMBRIDGE CITY COUNCIL,61764,18/02/2022,12070962,Recharge Mange Services 2021/22,28/03/2022,1200,6000,7200,Cambridge City Business Case ,Ict Software,64071
http://statistics.data.gov.uk/id/local-authority/12UE,Huntingdonshire District Council,200149,CAMBRIDGE CITY COUNCIL CAMBRIDGE CITY COUNCIL,61764,18/02/2022,12070962,Recharge Mange Services 2021/22,28/03/2022,40.8,204,244.8,Cambridge City Business Case ,Ict Software,64071
http://statistics.data.gov.uk/id/local-authority/12UE,Huntingdonshire District Council,200149,CAMBRIDGE CITY COUNCIL CAMBRIDGE CITY COUNCIL,60389,13/01/2022,12069154,BUILDING CONTROL FEES,03/03/2022,0,705.6,705.6,Disables Facilities Grants,Mandatory Grants,64601
http://statistics.data.gov.uk/id/local-authority/12UE,Huntingdonshire District Council,200150,CAMBRIDGE CONSULTANCY IN COUNSELLING CAMBRIDGE CONSULTANCY IN COUNSELLING,58719,31/12/2021,103143,OCCUPATIONAL HEALTH DEC21,27/01/2022,0,666.5,666.5,HR Services,Occupational Health,60111
http://statistics.data.gov.uk/id/local-authority/12UE,Huntingdonshire District Council,200150,CAMBRIDGE CONSULTANCY IN COUNSELLING CAMBRIDGE CONSULTANCY IN COUNSELLING,60043,31/01/2022,103180,HR JAN PLAN,24/02/2022,0,666.5,666.5,HR Services,Occupational Health,60111
http://statistics.data.gov.uk/id/local-authority/12UE,Huntingdonshire District Council,200150,CAMBRIDGE CONSULTANCY IN COUNSELLING CAMBRIDGE CONSULTANCY IN COUNSELLING,61360,28/02/2022,103219,monthly payment plan,24/03/2022,0,666.5,666.5,HR Services,Occupational Health,60111
http://statistics.data.gov.uk/id/local-authority/12UE,Huntingdonshire District Council,202689.01,Cambridge Social Media Ltd,62034,20/03/2022,105,St Neots Mural Design,31/03/2022,0,500,500,Welcome Back Fund,Consultancy Fees,62400
http://statistics.data.gov.uk/id/local-authority/12UE,Huntingdonshire District Council,202800,CAMBRIDGESHIRE & PETERBOROUGH BUSINESS GROWTH COMPANY LTD,61479,26/01/2022,INV-0006,Admin/Delivery Costs- ARG Grants,24/03/2022,10000,50000,60000,ARG Economic Development,Professional Services - General,62402
http://statistics.data.gov.uk/id/local-authority/12UE,Huntingdonshire District Council,201033,CAMBRIDGESHIRE COUNTY COUNCIL,58865,18/01/2022,4.23E+11,TRADE/FOOD WASTE COLLECTION DEC21,10/02/2022,0,10605.48,10605.48,Trade Refuse,Waste Disposal Costs,64050
http://statistics.data.gov.uk/id/local-authority/12UE,Huntingdonshire District Council,201033,CAMBRIDGESHIRE COUNTY COUNCIL,58865,18/01/2022,4.23E+11,TRADE/FOOD WASTE COLLECTION DEC21,10/02/2022,0,64.3,64.3,Trade Refuse,Waste Disposal Costs,64050
http://statistics.data.gov.uk/id/local-authority/12UE,Huntingdonshire District Council,201033,CAMBRIDGESHIRE COUNTY COUNCIL,60510,19/02/2022,4.23E+11,FOOD/TRADE WASTE JAN22,17/03/2022,0,59.86,59.86,Trade Refuse,Waste Disposal Costs,64050
http://statistics.data.gov.uk/id/local-authority/12UE,Huntingdonshire District Council,201033,CAMBRIDGESHIRE COUNTY COUNCIL,60510,19/02/2022,4.23E+11,FOOD/TRADE WASTE JAN22,17/03/2022,0,10245.85,10245.85,Trade Refuse,Waste Disposal Costs,64050
http://statistics.data.gov.uk/id/local-authority/12UE,Huntingdonshire District Council,200159,CAMBRIDGESHIRE COUNTY COUNCIL CAMBRIDGESHIRE COUNTY COUNCIL,61198,31/07/2020,4.23E+11,ProContract Apr20-Mar21,17/03/2022,400,2000,2400,HDC Business Case ,Ict Software,64071
http://statistics.data.gov.uk/id/local-authority/12UE,Huntingdonshire District Council,200159,CAMBRIDGESHIRE COUNTY COUNCIL CAMBRIDGESHIRE COUNTY COUNCIL,58892,18/01/2022,4.23E+11,50% PARTNER CONTRI RECAP PARTNER 20/22,10/02/2022,0,12120,12120,Domestic Waste Collection,Grants And Contributions,64600
http://statistics.data.gov.uk/id/local-authority/12UE,Huntingdonshire District Council,200159,CAMBRIDGESHIRE COUNTY COUNCIL CAMBRIDGESHIRE COUNTY COUNCIL,61256,26/01/2022,4.23E+11,HIGHWAY SEARCHES Q3,17/03/2022,3825.6,19128,22953.6,Land Enquiry Con 29 Full,Membership And Subscriptions,64800
http://statistics.data.gov.uk/id/local-authority/12UE,Huntingdonshire District Council,200877,CAMBRIDGESHIRE FIRE AND RESCUE SERVICE CAMBRIDGESHIRE AND PETERBOROUGH FIRE AUTHORITY,61239,09/02/2022,ASIN5824,HCP THROWLINE STATIONS,28/03/2022,670,3350,4020,Paxton Pits,Health And Safety Supplies And Services,60207
http://statistics.data.gov.uk/id/local-authority/12UE,Huntingdonshire District Council,201054,Cambridgeshire Pension Fund,60069,14/01/2022,4.23E+11,pension fund,24/02/2022,0,1584000,1584000,Corporate Finance,Pensions - Employers Contribution,60002
http://statistics.data.gov.uk/id/local-authority/12UE,Huntingdonshire District Council,201054,Cambridgeshire Pension Fund,60959,02/09/2021,4.23E+11,unfunded APR-JULY 21,14/03/2022,0,53707.55,53707.55,Non Distributed Costs,Pension Increase Act Payments,60101
http://statistics.data.gov.uk/id/local-authority/12UE,Huntingdonshire District Council,201054,Cambridgeshire Pension Fund,60829,11/12/2021,4.23E+11,Oct21 Unfunded Recharges,10/03/2022,0,13490.49,13490.49,Non Distributed Costs,Pension Increase Act Payments,60101
http://statistics.data.gov.uk/id/local-authority/12UE,Huntingdonshire District Council,201054,Cambridgeshire Pension Fund,60831,11/12/2021,4.23E+11,Nov21 Unfunded Re-Charges,10/03/2022,0,13490.49,13490.49,Non Distributed Costs,Pension Increase Act Payments,60101
http://statistics.data.gov.uk/id/local-authority/12UE,Huntingdonshire District Council,201054,Cambridgeshire Pension Fund,60958,20/10/2021,4.23E+11,unfunded august 21,14/03/2022,0,13490.49,13490.49,Non Distributed Costs,Pension Increase Act Payments,60101
http://statistics.data.gov.uk/id/local-authority/12UE,Huntingdonshire District Council,201054,Cambridgeshire Pension Fund,60962,21/10/2021,4.23E+11,UNFUNDED SEPT 21,14/03/2022,0,13490.49,13490.49,Non Distributed Costs,Pension Increase Act Payments,60101
http://statistics.data.gov.uk/id/local-authority/12UE,Huntingdonshire District Council,201054,Cambridgeshire Pension Fund,60828,27/01/2022,4.23E+11,Dec21 Unfunded Re-Charges,10/03/2022,0,13488.58,13488.58,Non Distributed Costs,Pension Increase Act Payments,60101
http://statistics.data.gov.uk/id/local-authority/12UE,Huntingdonshire District Council,201054,Cambridgeshire Pension Fund,60956,17/02/2022,4.23E+11,unfunded charges jan 22,17/03/2022,0,13464.31,13464.31,Non Distributed Costs,Pension Increase Act Payments,60101
http://statistics.data.gov.uk/id/local-authority/12UE,Huntingdonshire District Council,201054,Cambridgeshire Pension Fund,60714,07/07/2021,4.23E+11,Unfunded Benefit 2021/22,14/03/2022,0,1530,1530,Non Distributed Costs,Pension Increase Act Payments,60101
http://statistics.data.gov.uk/id/local-authority/12UE,Huntingdonshire District Council,201054,Cambridgeshire Pension Fund,60833,28/08/2021,4.23E+11,REDACTED,14/03/2022,0,94214.67,94214.67,Non Distributed Costs,Pension Early Retirements,60103
http://statistics.data.gov.uk/id/local-authority/12UE,Huntingdonshire District Council,201054,Cambridgeshire Pension Fund,60888,25/08/2021,4.23E+11,early retirement strain,14/03/2022,0,397.95,397.95,Non Distributed Costs,Pension Early Retirements,60103
http://statistics.data.gov.uk/id/local-authority/12UE,Huntingdonshire District Council,201054,Cambridgeshire Pension Fund,60888,25/08/2021,4.23E+11,early retirement strain,14/03/2022,0,15979.71,15979.71,Non Distributed Costs,Pension Early Retirements,60103
http://statistics.data.gov.uk/id/local-authority/12UE,Huntingdonshire District Council,201054,Cambridgeshire Pension Fund,60888,25/08/2021,4.23E+11,early retirement strain,14/03/2022,0,15327.76,15327.76,Non Distributed Costs,Pension Early Retirements,60103
http://statistics.data.gov.uk/id/local-authority/12UE,Huntingdonshire District Council,201054,Cambridgeshire Pension Fund,60834,06/10/2021,4.23E+11,REDACTED,10/03/2022,0,21067.73,21067.73,Non Distributed Costs,Pension Early Retirements,60103
http://statistics.data.gov.uk/id/local-authority/12UE,Huntingdonshire District Council,201054,Cambridgeshire Pension Fund,60712,17/08/2021,4.23E+11,REDACTED,10/03/2022,0,8993.46,8993.46,Non Distributed Costs,Pension Early Retirements,60103
http://statistics.data.gov.uk/id/local-authority/12UE,Huntingdonshire District Council,201054,Cambridgeshire Pension Fund,59963,11/02/2022,4.23E+11,finance march 21 report,21/02/2022,60,300,360,Corporate Finance,Consultancy Fees,62400
http://statistics.data.gov.uk/id/local-authority/12UE,Huntingdonshire District Council,201054,Cambridgeshire Pension Fund,60192,05/01/2022,4.23E+11,final salary 31.03.2020,28/02/2022,50,250,300,Corporate Finance,Consultancy Fees,62400
http://statistics.data.gov.uk/id/local-authority/12UE,Huntingdonshire District Council,200162,CAMBS & PBORO NHS FOUNDATION TRUST CAMBS & PBORO NHS FOUNDATION TRUST,60815,05/03/2022,67583589,Online Otago Course,30/03/2022,0,300,300,HR Services,Staff Development And Training,60115
http://statistics.data.gov.uk/id/local-authority/12UE,Huntingdonshire District Council,201595,CAMPDEN BRI (CHIPPING CAMPDEN) LTD,60558,08/02/2022,20227534,Membership/Subscription Mar22,07/03/2022,100,500,600,Food Safety General,Membership And Subscriptions,64800
http://statistics.data.gov.uk/id/local-authority/12UE,Huntingdonshire District Council,202824,CANHAM CONTROLS LIMITED,58421,31/12/2021,14344,CYCLICAL/PLANNING MAI,27/01/2022,119,595,714,OLSI - Site & Centre Management,Maintenance - Building,60201
http://statistics.data.gov.uk/id/local-authority/12UE,Huntingdonshire District Council,200167,CAPITA BUSINESS SERVICES LTD CAPITA BUSINESS SERVICES LTD,59211,17/12/2021,6004098835,IT SOFTWARE DEC21-NOV22,03/02/2022,1700,8500,10200,HDC Recoverable,Ict Software,64071
http://statistics.data.gov.uk/id/local-authority/12UE,Huntingdonshire District Council,200166,CAPITA CAPITA,59245,17/12/2021,6004098843,IT SOFTWARE ANNUAL DEC21-NOV22,03/02/2022,3500,17500,21000,SCDC Business Case ,Ict Software,64071
http://statistics.data.gov.uk/id/local-authority/12UE,Huntingdonshire District Council,200169,CARE CHECK LTD CARE CHECK LTD,58419,31/12/2021,322084,DBS CHECKS FEE,27/01/2022,0,263,263,HR Services,Staff Recruitment Costs,60116
http://statistics.data.gov.uk/id/local-authority/12UE,Huntingdonshire District Council,200169,CARE CHECK LTD CARE CHECK LTD,58419,31/12/2021,322084,DBS CHECKS FEE,27/01/2022,7,35,42,HR Services,Staff Recruitment Costs,60116
http://statistics.data.gov.uk/id/local-authority/12UE,Huntingdonshire District Council,200169,CARE CHECK LTD CARE CHECK LTD,60542,28/02/2022,336436,DBS Fee,24/03/2022,0,803,803,HR Services,Enquiries,63400
http://statistics.data.gov.uk/id/local-authority/12UE,Huntingdonshire District Council,200169,CARE CHECK LTD CARE CHECK LTD,60542,28/02/2022,336436,DBS Fee,24/03/2022,29,145,174,HR Services,Enquiries,63400
http://statistics.data.gov.uk/id/local-authority/12UE,Huntingdonshire District Council,202845,REDACTED,59188,31/12/2021,21-001,SUBCONTRACTOR NOV21,03/02/2022,0,300,300,Contaminated Land,Subcontractors,62401
http://statistics.data.gov.uk/id/local-authority/12UE,Huntingdonshire District Council,202845,REDACTED,59188,31/12/2021,21-001,SUBCONTRACTOR NOV21,03/02/2022,21,105,126,Contaminated Land,Subcontractors,62401
http://statistics.data.gov.uk/id/local-authority/12UE,Huntingdonshire District Council,202845,REDACTED,59188,31/12/2021,21-001,SUBCONTRACTOR NOV21,03/02/2022,21,105,126,Contaminated Land,Subcontractors,62401
http://statistics.data.gov.uk/id/local-authority/12UE,Huntingdonshire District Council,202845,REDACTED,59188,31/12/2021,21-001,SUBCONTRACTOR NOV21,03/02/2022,21,105,126,Contaminated Land,Subcontractors,62401
http://statistics.data.gov.uk/id/local-authority/12UE,Huntingdonshire District Council,202845,REDACTED,59188,31/12/2021,21-001,SUBCONTRACTOR NOV21,03/02/2022,21,105,126,Contaminated Land,Subcontractors,62401
http://statistics.data.gov.uk/id/local-authority/12UE,Huntingdonshire District Council,202845,REDACTED,59188,31/12/2021,21-001,SUBCONTRACTOR NOV21,03/02/2022,12,60,72,Contaminated Land,Subcontractors,62401
http://statistics.data.gov.uk/id/local-authority/12UE,Huntingdonshire District Council,202458,CARRINGTON WEST LTD,58293,23/10/2021,183559,REDACTED,13/01/2022,632.5,3162.5,3795,Development Management,Agency Staff,60011
http://statistics.data.gov.uk/id/local-authority/12UE,Huntingdonshire District Council,202458,CARRINGTON WEST LTD,58449,13/01/2022,185406,REDACTED,10/02/2022,632.5,3162.5,3795,Development Management,Agency Staff,60011
http://statistics.data.gov.uk/id/local-authority/12UE,Huntingdonshire District Council,202458,CARRINGTON WEST LTD,58737,20/01/2022,186241,REDACTED,14/02/2022,632.5,3162.5,3795,Development Management,Agency Staff,60011
http://statistics.data.gov.uk/id/local-authority/12UE,Huntingdonshire District Council,202458,CARRINGTON WEST LTD,59154,27/01/2022,187076,REDACTED,24/02/2022,632.5,3162.5,3795,Development Management,Agency Staff,60011
http://statistics.data.gov.uk/id/local-authority/12UE,Huntingdonshire District Council,202458,CARRINGTON WEST LTD,59465,03/02/2022,188018,REDACTED,03/03/2022,632.5,3162.5,3795,Development Management,Agency Staff,60011
http://statistics.data.gov.uk/id/local-authority/12UE,Huntingdonshire District Council,202458,CARRINGTON WEST LTD,59675,10/02/2022,188879,REDACTED,07/03/2022,632.5,3162.5,3795,Development Management,Agency Staff,60011
http://statistics.data.gov.uk/id/local-authority/12UE,Huntingdonshire District Council,202458,CARRINGTON WEST LTD,60018,17/02/2022,189783,REDACTED,17/03/2022,632.5,3162.5,3795,Development Management,Agency Staff,60011
http://statistics.data.gov.uk/id/local-authority/12UE,Huntingdonshire District Council,202458,CARRINGTON WEST LTD,60312,24/02/2022,190672,REDACTED,24/03/2022,632.5,3162.5,3795,Development Management,Agency Staff,60011
http://statistics.data.gov.uk/id/local-authority/12UE,Huntingdonshire District Council,202458,CARRINGTON WEST LTD,60591,03/03/2022,191602,REDACTED,30/03/2022,632.5,3162.5,3795,Development Management,Agency Staff,60011
http://statistics.data.gov.uk/id/local-authority/12UE,Huntingdonshire District Council,202458,CARRINGTON WEST LTD,58294,30/12/2021,184182,REDACTED,27/01/2022,506,2530,3036,Development Management,Agency Staff,60011
http://statistics.data.gov.uk/id/local-authority/12UE,Huntingdonshire District Council,202458,CARRINGTON WEST LTD,58292,06/01/2022,184633,REDACTED,03/02/2022,379.5,1897.5,2277,Development Management,Agency Staff,60011
http://statistics.data.gov.uk/id/local-authority/12UE,Huntingdonshire District Council,202458,CARRINGTON WEST LTD,58096,30/12/2021,18481,REDACTED,27/01/2022,272.32,1361.6,1633.92,Development Management,Agency Staff,60011
http://statistics.data.gov.uk/id/local-authority/12UE,Huntingdonshire District Council,202458,CARRINGTON WEST LTD,58452,13/01/2022,185407,REDACTED,10/02/2022,272.32,1361.6,1633.92,Development Management,Agency Staff,60011
http://statistics.data.gov.uk/id/local-authority/12UE,Huntingdonshire District Council,202458,CARRINGTON WEST LTD,58736,20/01/2022,186242,REDACTED,14/02/2022,272.32,1361.6,1633.92,Development Management,Agency Staff,60011
http://statistics.data.gov.uk/id/local-authority/12UE,Huntingdonshire District Council,202458,CARRINGTON WEST LTD,59153,27/01/2022,187077,REDACTED,24/02/2022,272.32,1361.6,1633.92,Development Management,Agency Staff,60011
http://statistics.data.gov.uk/id/local-authority/12UE,Huntingdonshire District Council,202458,CARRINGTON WEST LTD,59464,03/02/2022,188019,REDACTED,03/03/2022,272.32,1361.6,1633.92,Development Management,Agency Staff,60011
http://statistics.data.gov.uk/id/local-authority/12UE,Huntingdonshire District Council,202458,CARRINGTON WEST LTD,59679,10/02/2022,188880,REDACTED,07/03/2022,272.32,1361.6,1633.92,Development Management,Agency Staff,60011
http://statistics.data.gov.uk/id/local-authority/12UE,Huntingdonshire District Council,202458,CARRINGTON WEST LTD,60031,17/02/2022,189785,REDACTED,17/03/2022,272.32,1361.6,1633.92,Development Management,Agency Staff,60011
http://statistics.data.gov.uk/id/local-authority/12UE,Huntingdonshire District Council,202458,CARRINGTON WEST LTD,60593,03/03/2022,191601,REDACTED,30/03/2022,272.32,1361.6,1633.92,Development Management,Agency Staff,60011
http://statistics.data.gov.uk/id/local-authority/12UE,Huntingdonshire District Council,202458,CARRINGTON WEST LTD,61322,24/02/2022,190674,REDACTED,24/03/2022,272.32,1361.6,1633.92,Development Management,Agency Staff,60011
http://statistics.data.gov.uk/id/local-authority/12UE,Huntingdonshire District Council,202458,CARRINGTON WEST LTD,58877,20/01/2022,186243,REDACTED,14/02/2022,212.75,1063.75,1276.5,Development Management,Agency Staff,60011
http://statistics.data.gov.uk/id/local-authority/12UE,Huntingdonshire District Council,202458,CARRINGTON WEST LTD,59151,27/01/2022,187078,REDACTED,24/02/2022,212.75,1063.75,1276.5,Development Management,Agency Staff,60011
http://statistics.data.gov.uk/id/local-authority/12UE,Huntingdonshire District Council,202458,CARRINGTON WEST LTD,59462,03/02/2022,188020,REDACTED,03/03/2022,212.75,1063.75,1276.5,Development Management,Agency Staff,60011
http://statistics.data.gov.uk/id/local-authority/12UE,Huntingdonshire District Council,202458,CARRINGTON WEST LTD,59674,10/02/2022,188881,REDACTED,07/03/2022,212.75,1063.75,1276.5,Development Management,Agency Staff,60011
http://statistics.data.gov.uk/id/local-authority/12UE,Huntingdonshire District Council,202458,CARRINGTON WEST LTD,60313,24/02/2022,190673,REDACTED,24/03/2022,212.75,1063.75,1276.5,Development Management,Agency Staff,60011
http://statistics.data.gov.uk/id/local-authority/12UE,Huntingdonshire District Council,202458,CARRINGTON WEST LTD,60597,03/03/2022,191600,REDACTED,30/03/2022,212.75,1063.75,1276.5,Development Management,Agency Staff,60011
http://statistics.data.gov.uk/id/local-authority/12UE,Huntingdonshire District Council,202458,CARRINGTON WEST LTD,61320,17/02/2022,189784,REDACTED,21/03/2022,212.75,1063.75,1276.5,Development Management,Agency Staff,60011
http://statistics.data.gov.uk/id/local-authority/12UE,Huntingdonshire District Council,202458,CARRINGTON WEST LTD,58473,06/01/2022,184634,REDACTED,03/02/2022,126.5,632.5,759,Development Management,Agency Staff,60011
http://statistics.data.gov.uk/id/local-authority/12UE,Huntingdonshire District Council,202458,CARRINGTON WEST LTD,58240,06/01/2022,184632,REDACTED,03/02/2022,66.24,331.2,397.44,Development Management,Agency Staff,60011
http://statistics.data.gov.uk/id/local-authority/12UE,Huntingdonshire District Council,202612,CBRE MANAGED SERVICES LTD,60966,24/02/2022,S00962839,Plumber&Electrician At OTC,24/03/2022,350.6,1753,2103.6,Oak Tree Remedial Work,Site Alterations And Materials,60273
http://statistics.data.gov.uk/id/local-authority/12UE,Huntingdonshire District Council,200175,CDW CDW,61458,24/09/2021,PSINV03295757,3CICT BACKPACKS,21/03/2022,44.12,220.6,264.72,Cambridge City Business Case ,Stationery,62002
http://statistics.data.gov.uk/id/local-authority/12UE,Huntingdonshire District Council,200175,CDW CDW,61458,24/09/2021,PSINV03295757,3CICT BACKPACKS,21/03/2022,15.04,75.2,90.24,Cambridge City Business Case ,Stationery,62002
http://statistics.data.gov.uk/id/local-authority/12UE,Huntingdonshire District Council,200175,CDW CDW,61458,24/09/2021,PSINV03295757,3CICT BACKPACKS,21/03/2022,44.12,220.6,264.72,HDC Recoverable,Ict Hardware,64070
http://statistics.data.gov.uk/id/local-authority/12UE,Huntingdonshire District Council,201011,CENTENNIAL PROPERTY LTD,58700,17/01/2022,CP-HDC123,TA 01-160122,20/01/2022,28.13,225,253.13,Homelessness,B&B Accommodation,64401
http://statistics.data.gov.uk/id/local-authority/12UE,Huntingdonshire District Council,201011,CENTENNIAL PROPERTY LTD,58092,01/01/2022,CP-HDC122,TA 17-311221,06/01/2022,41.25,330,371.25,Homelessness,B&B Accommodation,64401
http://statistics.data.gov.uk/id/local-authority/12UE,Huntingdonshire District Council,201011,CENTENNIAL PROPERTY LTD,58092,01/01/2022,CP-HDC122,TA 17-311221,06/01/2022,16.87,135,151.87,Homelessness,B&B Accommodation,64401
http://statistics.data.gov.uk/id/local-authority/12UE,Huntingdonshire District Council,201011,CENTENNIAL PROPERTY LTD,61355,17/03/2022,CP-HDC127,HOUSING TA 1-16.03.22,21/03/2022,76,608,684,Homelessness,B&B Accommodation,64401
http://statistics.data.gov.uk/id/local-authority/12UE,Huntingdonshire District Council,201011,CENTENNIAL PROPERTY LTD,60739,01/03/2022,CP-HDC126,TA 15-28.02.22,10/03/2022,66.5,532,598.5,Homelessness,B&B Accommodation,64401
http://statistics.data.gov.uk/id/local-authority/12UE,Huntingdonshire District Council,201011,CENTENNIAL PROPERTY LTD,60064,15/02/2022,CP-HDC125,HOUSING TA WE 140222,24/02/2022,19,152,171,Homelessness,B&B Accommodation,64401
http://statistics.data.gov.uk/id/local-authority/12UE,Huntingdonshire District Council,201011,CENTENNIAL PROPERTY LTD,61355,17/03/2022,CP-HDC127,HOUSING TA 1-16.03.22,21/03/2022,90,720,810,Homelessness,B&B Accommodation,64401
http://statistics.data.gov.uk/id/local-authority/12UE,Huntingdonshire District Council,201011,CENTENNIAL PROPERTY LTD,60739,01/03/2022,CP-HDC126,TA 15-28.02.22,10/03/2022,78.75,630,708.75,Homelessness,B&B Accommodation,64401
http://statistics.data.gov.uk/id/local-authority/12UE,Huntingdonshire District Council,201011,CENTENNIAL PROPERTY LTD,58700,17/01/2022,CP-HDC123,TA 01-160122,20/01/2022,76,608,684,Homelessness,B&B Accommodation,64401
http://statistics.data.gov.uk/id/local-authority/12UE,Huntingdonshire District Council,201011,CENTENNIAL PROPERTY LTD,58092,01/01/2022,CP-HDC122,TA 17-311221,06/01/2022,71.25,570,641.25,Homelessness,B&B Accommodation,64401
http://statistics.data.gov.uk/id/local-authority/12UE,Huntingdonshire District Council,201011,CENTENNIAL PROPERTY LTD,59502,01/02/2022,CP-HDC124,TA 17-310122,10/02/2022,71.25,570,641.25,Homelessness,B&B Accommodation,64401
http://statistics.data.gov.uk/id/local-authority/12UE,Huntingdonshire District Council,201011,CENTENNIAL PROPERTY LTD,60064,15/02/2022,CP-HDC125,HOUSING TA WE 140222,24/02/2022,14.25,114,128.25,Homelessness,B&B Accommodation,64401
http://statistics.data.gov.uk/id/local-authority/12UE,Huntingdonshire District Council,201011,CENTENNIAL PROPERTY LTD,61355,17/03/2022,CP-HDC127,HOUSING TA 1-16.03.22,21/03/2022,90,720,810,Homelessness,B&B Accommodation,64401
http://statistics.data.gov.uk/id/local-authority/12UE,Huntingdonshire District Council,201011,CENTENNIAL PROPERTY LTD,58700,17/01/2022,CP-HDC123,TA 01-160122,20/01/2022,90,720,810,Homelessness,B&B Accommodation,64401
http://statistics.data.gov.uk/id/local-authority/12UE,Huntingdonshire District Council,201011,CENTENNIAL PROPERTY LTD,58092,01/01/2022,CP-HDC122,TA 17-311221,06/01/2022,84.38,675,759.38,Homelessness,B&B Accommodation,64401
http://statistics.data.gov.uk/id/local-authority/12UE,Huntingdonshire District Council,201011,CENTENNIAL PROPERTY LTD,59502,01/02/2022,CP-HDC124,TA 17-310122,10/02/2022,84.38,675,759.38,Homelessness,B&B Accommodation,64401
http://statistics.data.gov.uk/id/local-authority/12UE,Huntingdonshire District Council,201011,CENTENNIAL PROPERTY LTD,60739,01/03/2022,CP-HDC126,TA 15-28.02.22,10/03/2022,78.75,630,708.75,Homelessness,B&B Accommodation,64401
http://statistics.data.gov.uk/id/local-authority/12UE,Huntingdonshire District Council,201011,CENTENNIAL PROPERTY LTD,60064,15/02/2022,CP-HDC125,HOUSING TA WE 140222,24/02/2022,78.75,630,708.75,Homelessness,B&B Accommodation,64401
http://statistics.data.gov.uk/id/local-authority/12UE,Huntingdonshire District Council,201011,CENTENNIAL PROPERTY LTD,61355,17/03/2022,CP-HDC127,HOUSING TA 1-16.03.22,21/03/2022,66.5,532,598.5,Homelessness,B&B Accommodation,64401
http://statistics.data.gov.uk/id/local-authority/12UE,Huntingdonshire District Council,201011,CENTENNIAL PROPERTY LTD,58700,17/01/2022,CP-HDC123,TA 01-160122,20/01/2022,76,608,684,Homelessness,B&B Accommodation,64401
http://statistics.data.gov.uk/id/local-authority/12UE,Huntingdonshire District Council,201011,CENTENNIAL PROPERTY LTD,58092,01/01/2022,CP-HDC122,TA 17-311221,06/01/2022,71.25,570,641.25,Homelessness,B&B Accommodation,64401
http://statistics.data.gov.uk/id/local-authority/12UE,Huntingdonshire District Council,201011,CENTENNIAL PROPERTY LTD,59502,01/02/2022,CP-HDC124,TA 17-310122,10/02/2022,71.25,570,641.25,Homelessness,B&B Accommodation,64401
http://statistics.data.gov.uk/id/local-authority/12UE,Huntingdonshire District Council,201011,CENTENNIAL PROPERTY LTD,60739,01/03/2022,CP-HDC126,TA 15-28.02.22,10/03/2022,66.5,532,598.5,Homelessness,B&B Accommodation,64401
http://statistics.data.gov.uk/id/local-authority/12UE,Huntingdonshire District Council,201011,CENTENNIAL PROPERTY LTD,60064,15/02/2022,CP-HDC125,HOUSING TA WE 140222,24/02/2022,66.5,532,598.5,Homelessness,B&B Accommodation,64401
http://statistics.data.gov.uk/id/local-authority/12UE,Huntingdonshire District Council,201011,CENTENNIAL PROPERTY LTD,61355,17/03/2022,CP-HDC127,HOUSING TA 1-16.03.22,21/03/2022,110,880,990,Homelessness,B&B Accommodation,64401
http://statistics.data.gov.uk/id/local-authority/12UE,Huntingdonshire District Council,201011,CENTENNIAL PROPERTY LTD,58700,17/01/2022,CP-HDC123,TA 01-160122,20/01/2022,110,880,990,Homelessness,B&B Accommodation,64401
http://statistics.data.gov.uk/id/local-authority/12UE,Huntingdonshire District Council,201011,CENTENNIAL PROPERTY LTD,58092,01/01/2022,CP-HDC122,TA 17-311221,06/01/2022,103.12,825,928.12,Homelessness,B&B Accommodation,64401
http://statistics.data.gov.uk/id/local-authority/12UE,Huntingdonshire District Council,201011,CENTENNIAL PROPERTY LTD,59502,01/02/2022,CP-HDC124,TA 17-310122,10/02/2022,103.12,825,928.12,Homelessness,B&B Accommodation,64401
http://statistics.data.gov.uk/id/local-authority/12UE,Huntingdonshire District Council,201011,CENTENNIAL PROPERTY LTD,60739,01/03/2022,CP-HDC126,TA 15-28.02.22,10/03/2022,96.25,770,866.25,Homelessness,B&B Accommodation,64401
http://statistics.data.gov.uk/id/local-authority/12UE,Huntingdonshire District Council,201011,CENTENNIAL PROPERTY LTD,60064,15/02/2022,CP-HDC125,HOUSING TA WE 140222,24/02/2022,96.25,770,866.25,Homelessness,B&B Accommodation,64401
http://statistics.data.gov.uk/id/local-authority/12UE,Huntingdonshire District Council,201011,CENTENNIAL PROPERTY LTD,61355,17/03/2022,CP-HDC127,HOUSING TA 1-16.03.22,21/03/2022,76,608,684,Homelessness,B&B Accommodation,64401
http://statistics.data.gov.uk/id/local-authority/12UE,Huntingdonshire District Council,201011,CENTENNIAL PROPERTY LTD,58700,17/01/2022,CP-HDC123,TA 01-160122,20/01/2022,76,608,684,Homelessness,B&B Accommodation,64401
http://statistics.data.gov.uk/id/local-authority/12UE,Huntingdonshire District Council,201011,CENTENNIAL PROPERTY LTD,58092,01/01/2022,CP-HDC122,TA 17-311221,06/01/2022,71.25,570,641.25,Homelessness,B&B Accommodation,64401
http://statistics.data.gov.uk/id/local-authority/12UE,Huntingdonshire District Council,201011,CENTENNIAL PROPERTY LTD,59502,01/02/2022,CP-HDC124,TA 17-310122,10/02/2022,71.25,570,641.25,Homelessness,B&B Accommodation,64401
http://statistics.data.gov.uk/id/local-authority/12UE,Huntingdonshire District Council,201011,CENTENNIAL PROPERTY LTD,60739,01/03/2022,CP-HDC126,TA 15-28.02.22,10/03/2022,66.5,532,598.5,Homelessness,B&B Accommodation,64401
http://statistics.data.gov.uk/id/local-authority/12UE,Huntingdonshire District Council,201011,CENTENNIAL PROPERTY LTD,60064,15/02/2022,CP-HDC125,HOUSING TA WE 140222,24/02/2022,66.5,532,598.5,Homelessness,B&B Accommodation,64401
http://statistics.data.gov.uk/id/local-authority/12UE,Huntingdonshire District Council,201011,CENTENNIAL PROPERTY LTD,61355,17/03/2022,CP-HDC127,HOUSING TA 1-16.03.22,21/03/2022,90,720,810,Homelessness,B&B Accommodation,64401
http://statistics.data.gov.uk/id/local-authority/12UE,Huntingdonshire District Council,201011,CENTENNIAL PROPERTY LTD,58700,17/01/2022,CP-HDC123,TA 01-160122,20/01/2022,90,720,810,Homelessness,B&B Accommodation,64401
http://statistics.data.gov.uk/id/local-authority/12UE,Huntingdonshire District Council,201011,CENTENNIAL PROPERTY LTD,58092,01/01/2022,CP-HDC122,TA 17-311221,06/01/2022,84.37,675,759.37,Homelessness,B&B Accommodation,64401
http://statistics.data.gov.uk/id/local-authority/12UE,Huntingdonshire District Council,201011,CENTENNIAL PROPERTY LTD,59502,01/02/2022,CP-HDC124,TA 17-310122,10/02/2022,84.38,675,759.38,Homelessness,B&B Accommodation,64401
http://statistics.data.gov.uk/id/local-authority/12UE,Huntingdonshire District Council,201011,CENTENNIAL PROPERTY LTD,60739,01/03/2022,CP-HDC126,TA 15-28.02.22,10/03/2022,78.75,630,708.75,Homelessness,B&B Accommodation,64401
http://statistics.data.gov.uk/id/local-authority/12UE,Huntingdonshire District Council,201011,CENTENNIAL PROPERTY LTD,60064,15/02/2022,CP-HDC125,HOUSING TA WE 140222,24/02/2022,78.75,630,708.75,Homelessness,B&B Accommodation,64401
http://statistics.data.gov.uk/id/local-authority/12UE,Huntingdonshire District Council,201011,CENTENNIAL PROPERTY LTD,58700,17/01/2022,CP-HDC123,TA 01-160122,20/01/2022,90,720,810,Homelessness,B&B Accommodation,64401
http://statistics.data.gov.uk/id/local-authority/12UE,Huntingdonshire District Council,201011,CENTENNIAL PROPERTY LTD,58092,01/01/2022,CP-HDC122,TA 17-311221,06/01/2022,84.37,675,759.37,Homelessness,B&B Accommodation,64401
http://statistics.data.gov.uk/id/local-authority/12UE,Huntingdonshire District Council,201011,CENTENNIAL PROPERTY LTD,59502,01/02/2022,CP-HDC124,TA 17-310122,10/02/2022,84.37,675,759.37,Homelessness,B&B Accommodation,64401
http://statistics.data.gov.uk/id/local-authority/12UE,Huntingdonshire District Council,201011,CENTENNIAL PROPERTY LTD,60064,15/02/2022,CP-HDC125,HOUSING TA WE 140222,24/02/2022,73.12,585,658.12,Homelessness,B&B Accommodation,64401
http://statistics.data.gov.uk/id/local-authority/12UE,Huntingdonshire District Council,201011,CENTENNIAL PROPERTY LTD,61355,17/03/2022,CP-HDC127,HOUSING TA 1-16.03.22,21/03/2022,90,720,810,Homelessness,B&B Accommodation,64401
http://statistics.data.gov.uk/id/local-authority/12UE,Huntingdonshire District Council,201011,CENTENNIAL PROPERTY LTD,58700,17/01/2022,CP-HDC123,TA 01-160122,20/01/2022,90,720,810,Homelessness,B&B Accommodation,64401
http://statistics.data.gov.uk/id/local-authority/12UE,Huntingdonshire District Council,201011,CENTENNIAL PROPERTY LTD,58092,01/01/2022,CP-HDC122,TA 17-311221,06/01/2022,84.38,675,759.38,Homelessness,B&B Accommodation,64401
http://statistics.data.gov.uk/id/local-authority/12UE,Huntingdonshire District Council,201011,CENTENNIAL PROPERTY LTD,59502,01/02/2022,CP-HDC124,TA 17-310122,10/02/2022,84.38,675,759.38,Homelessness,B&B Accommodation,64401
http://statistics.data.gov.uk/id/local-authority/12UE,Huntingdonshire District Council,201011,CENTENNIAL PROPERTY LTD,60064,15/02/2022,CP-HDC125,HOUSING TA WE 140222,24/02/2022,78.75,630,708.75,Homelessness,B&B Accommodation,64401
http://statistics.data.gov.uk/id/local-authority/12UE,Huntingdonshire District Council,201011,CENTENNIAL PROPERTY LTD,61355,17/03/2022,CP-HDC127,HOUSING TA 1-16.03.22,21/03/2022,90,720,810,Homelessness,B&B Accommodation,64401
http://statistics.data.gov.uk/id/local-authority/12UE,Huntingdonshire District Council,201011,CENTENNIAL PROPERTY LTD,58700,17/01/2022,CP-HDC123,TA 01-160122,20/01/2022,90,720,810,Homelessness,B&B Accommodation,64401
http://statistics.data.gov.uk/id/local-authority/12UE,Huntingdonshire District Council,201011,CENTENNIAL PROPERTY LTD,58092,01/01/2022,CP-HDC122,TA 17-311221,06/01/2022,84.38,675,759.38,Homelessness,B&B Accommodation,64401
http://statistics.data.gov.uk/id/local-authority/12UE,Huntingdonshire District Council,201011,CENTENNIAL PROPERTY LTD,59502,01/02/2022,CP-HDC124,TA 17-310122,10/02/2022,84.38,675,759.38,Homelessness,B&B Accommodation,64401
http://statistics.data.gov.uk/id/local-authority/12UE,Huntingdonshire District Council,201011,CENTENNIAL PROPERTY LTD,60739,01/03/2022,CP-HDC126,TA 15-28.02.22,10/03/2022,78.75,630,708.75,Homelessness,B&B Accommodation,64401
http://statistics.data.gov.uk/id/local-authority/12UE,Huntingdonshire District Council,201011,CENTENNIAL PROPERTY LTD,60064,15/02/2022,CP-HDC125,HOUSING TA WE 140222,24/02/2022,78.75,630,708.75,Homelessness,B&B Accommodation,64401
http://statistics.data.gov.uk/id/local-authority/12UE,Huntingdonshire District Council,201011,CENTENNIAL PROPERTY LTD,60739,01/03/2022,CP-HDC126,TA 15-28.02.22,10/03/2022,78.75,630,708.75,Homelessness,B&B Accommodation,64401
http://statistics.data.gov.uk/id/local-authority/12UE,Huntingdonshire District Council,201011,CENTENNIAL PROPERTY LTD,58700,17/01/2022,CP-HDC123,TA 01-160122,20/01/2022,34.38,275,309.38,Homelessness,B&B Accommodation,64401
http://statistics.data.gov.uk/id/local-authority/12UE,Huntingdonshire District Council,201011,CENTENNIAL PROPERTY LTD,58700,17/01/2022,CP-HDC123,TA 01-160122,20/01/2022,61.87,495,556.87,Homelessness,B&B Accommodation,64401
http://statistics.data.gov.uk/id/local-authority/12UE,Huntingdonshire District Council,201011,CENTENNIAL PROPERTY LTD,58092,01/01/2022,CP-HDC122,TA 17-311221,06/01/2022,61.88,495,556.88,Homelessness,B&B Accommodation,64401
http://statistics.data.gov.uk/id/local-authority/12UE,Huntingdonshire District Council,201011,CENTENNIAL PROPERTY LTD,59502,01/02/2022,CP-HDC124,TA 17-310122,10/02/2022,84.37,675,759.37,Homelessness,B&B Accommodation,64401
http://statistics.data.gov.uk/id/local-authority/12UE,Huntingdonshire District Council,201011,CENTENNIAL PROPERTY LTD,60064,15/02/2022,CP-HDC125,HOUSING TA WE 140222,24/02/2022,16.88,135,151.88,Homelessness,B&B Accommodation,64401
http://statistics.data.gov.uk/id/local-authority/12UE,Huntingdonshire District Council,201011,CENTENNIAL PROPERTY LTD,60212,21/02/2022,CP-HDC125-01,TA WE 160122,28/02/2022,147.25,1178,1325.25,Homelessness,B&B Accommodation,64401
http://statistics.data.gov.uk/id/local-authority/12UE,Huntingdonshire District Council,201011,CENTENNIAL PROPERTY LTD,60739,01/03/2022,CP-HDC126,TA 15-28.02.22,10/03/2022,61.88,495,556.88,Homelessness,B&B Accommodation,64401
http://statistics.data.gov.uk/id/local-authority/12UE,Huntingdonshire District Council,201011,CENTENNIAL PROPERTY LTD,61355,17/03/2022,CP-HDC127,HOUSING TA 1-16.03.22,21/03/2022,110,880,990,Homelessness,B&B Accommodation,64401
http://statistics.data.gov.uk/id/local-authority/12UE,Huntingdonshire District Council,201011,CENTENNIAL PROPERTY LTD,60739,01/03/2022,CP-HDC126,TA 15-28.02.22,10/03/2022,27.5,220,247.5,Homelessness,B&B Accommodation,64401
http://statistics.data.gov.uk/id/local-authority/12UE,Huntingdonshire District Council,201011,CENTENNIAL PROPERTY LTD,61355,17/03/2022,CP-HDC127,HOUSING TA 1-16.03.22,21/03/2022,90,720,810,Homelessness,B&B Accommodation,64401
http://statistics.data.gov.uk/id/local-authority/12UE,Huntingdonshire District Council,200178,CENTRE THEATRE PLAYERS CENTRE THEATRE PLAYERS,58991,26/01/2022,1,FOOD FLYERS/MIC HIRE/MAKEUP ECT JAN22,27/01/2022,0,937.77,937.77,OLSI - Burgess Hall,Materials,61709
http://statistics.data.gov.uk/id/local-authority/12UE,Huntingdonshire District Council,201486,CENTRICA BUSINESS SOLUTIONS UK LTD,58343,10/01/2022,22500105,CALL OUT VARIOUS FAULTS CHP,03/02/2022,150,750,900,OLSI - Site & Centre Management,Maintenance - Building,60201
http://statistics.data.gov.uk/id/local-authority/12UE,Huntingdonshire District Council,200190,CHIPSIDE CHIPSIDE,59158,31/12/2021,S221608,MIPERMIT FEE DEC21,03/02/2022,414.55,2072.75,2487.3,Car Park Management,Contract Charges ,61800
http://statistics.data.gov.uk/id/local-authority/12UE,Huntingdonshire District Council,200190,CHIPSIDE CHIPSIDE,58163,30/11/2021,S221203,,13/01/2022,358.08,1790.42,2148.5,Car Park Management,Contract Charges ,61800
http://statistics.data.gov.uk/id/local-authority/12UE,Huntingdonshire District Council,200190,CHIPSIDE CHIPSIDE,58164,31/10/2021,S220791,MIPERMIT FEE OCT21,13/01/2022,357.27,1786.33,2143.6,Car Park Management,Contract Charges ,61800
http://statistics.data.gov.uk/id/local-authority/12UE,Huntingdonshire District Council,200190,CHIPSIDE CHIPSIDE,60742,28/02/2022,S222463,MiPermit Fee Feb22,24/03/2022,210.55,1052.74,1263.29,Car Park Management,Contract Charges ,61800
http://statistics.data.gov.uk/id/local-authority/12UE,Huntingdonshire District Council,200190,CHIPSIDE CHIPSIDE,60742,28/02/2022,S222463,MiPermit Fee Feb22,24/03/2022,98.04,490.18,588.22,Car Park Management,Contract Charges ,61800
http://statistics.data.gov.uk/id/local-authority/12UE,Huntingdonshire District Council,200190,CHIPSIDE CHIPSIDE,59366,31/01/2022,S222049,MIPERMITFEE JAN22,24/02/2022,308.08,1540.42,1848.5,Car Park Management,Contract Charges ,61800
http://statistics.data.gov.uk/id/local-authority/12UE,Huntingdonshire District Council,200190,CHIPSIDE CHIPSIDE,58068,30/06/2021,S213766,MIPERMIT FEE 21/22,06/01/2022,1.6,8,9.6,Car Park Management,Contract Charges ,61800
http://statistics.data.gov.uk/id/local-authority/12UE,Huntingdonshire District Council,200190,CHIPSIDE CHIPSIDE,58068,30/06/2021,S213766,MIPERMIT FEE 21/22,06/01/2022,4.2,21,25.2,Car Park Management,Contract Charges ,61800
http://statistics.data.gov.uk/id/local-authority/12UE,Huntingdonshire District Council,200190,CHIPSIDE CHIPSIDE,58068,30/06/2021,S213766,MIPERMIT FEE 21/22,06/01/2022,101.09,505.46,606.55,Car Park Management,Contract Charges ,61800
http://statistics.data.gov.uk/id/local-authority/12UE,Huntingdonshire District Council,200190,CHIPSIDE CHIPSIDE,58068,30/06/2021,S213766,MIPERMIT FEE 21/22,06/01/2022,0.27,1.35,1.62,Car Park Management,Contract Charges ,61800
http://statistics.data.gov.uk/id/local-authority/12UE,Huntingdonshire District Council,200190,CHIPSIDE CHIPSIDE,58068,30/06/2021,S213766,MIPERMIT FEE 21/22,06/01/2022,5.8,29,34.8,Car Park Management,Contract Charges ,61800
http://statistics.data.gov.uk/id/local-authority/12UE,Huntingdonshire District Council,200190,CHIPSIDE CHIPSIDE,58068,30/06/2021,S213766,MIPERMIT FEE 21/22,06/01/2022,189.19,945.94,1135.13,Car Park Management,Contract Charges ,61800
http://statistics.data.gov.uk/id/local-authority/12UE,Huntingdonshire District Council,200190,CHIPSIDE CHIPSIDE,59159,31/12/2021,S221684,MIPERMITCHARGE DEC21,03/02/2022,76.34,381.72,458.06,Car Park Management,Contract Charges ,61800
http://statistics.data.gov.uk/id/local-authority/12UE,Huntingdonshire District Council,200190,CHIPSIDE CHIPSIDE,60741,28/02/2022,S222540,MiPermit Charge  Feb22,24/03/2022,75.7,378.5,454.2,Car Park Management,Contract Charges ,61800
http://statistics.data.gov.uk/id/local-authority/12UE,Huntingdonshire District Council,200190,CHIPSIDE CHIPSIDE,59457,31/01/2022,S222126,MIPERMITCHARGE JAN22,24/02/2022,74.58,372.91,447.49,Car Park Management,Contract Charges ,61800
http://statistics.data.gov.uk/id/local-authority/12UE,Huntingdonshire District Council,200190,CHIPSIDE CHIPSIDE,59457,31/01/2022,S222126,MIPERMITCHARGE JAN22,24/02/2022,0.31,1.56,1.87,Car Park Management,Contract Charges ,61800
http://statistics.data.gov.uk/id/local-authority/12UE,Huntingdonshire District Council,200190,CHIPSIDE CHIPSIDE,58162,30/06/2021,S213836,MIPERMIT CHARGE JUN21,13/01/2022,60.91,304.56,365.47,Car Park Management,Contract Charges ,61800
http://statistics.data.gov.uk/id/local-authority/12UE,Huntingdonshire District Council,200190,CHIPSIDE CHIPSIDE,60742,28/02/2022,S222463,MiPermit Fee Feb22,24/03/2022,-0.01,0,-0.01,Finance,Over/Under VAT Rounding,68350
http://statistics.data.gov.uk/id/local-authority/12UE,Huntingdonshire District Council,200511,CHORUS HOMES GROUP LTD,58503,13/01/2022,1178328,REPAIRS AT MHP 0110-311221,20/01/2022,127.15,635.76,762.91,Mobile Home Park,Maintenance - Building,60201
http://statistics.data.gov.uk/id/local-authority/12UE,Huntingdonshire District Council,200511,CHORUS HOMES GROUP LTD,60495,24/02/2022,1181671,MHP MANAGEMENT FEE JAN-MAR22,03/03/2022,1320.49,6602.43,7922.92,Mobile Home Park,Management Charge,60411
http://statistics.data.gov.uk/id/local-authority/12UE,Huntingdonshire District Council,200511.02,CHORUS HOMES LTD  HLPREV,61318,14/03/2022,1183766,HOUSING VOIDS SEPT 21,21/03/2022,0,4233,4233,Afghan Resettlement Scheme,"Purchase - Equipment, Furniture And Materials",61703
http://statistics.data.gov.uk/id/local-authority/12UE,Huntingdonshire District Council,200511.01,CHORUS HOMES LTD (PRIVATE RENTS),58852,21/01/2022,25121,REDACTED,25/01/2022,0,344.78,344.78,Homelessness,B&B Accommodation,64401
http://statistics.data.gov.uk/id/local-authority/12UE,Huntingdonshire District Council,200511.01,CHORUS HOMES LTD (PRIVATE RENTS),60675,04/03/2022,REDACTED,2 Weeks Rent In Advance,10/03/2022,0,333.14,333.14,Homelessness,Homeless Prevention Payments,64403
http://statistics.data.gov.uk/id/local-authority/12UE,Huntingdonshire District Council,200511.01,CHORUS HOMES LTD (PRIVATE RENTS),61023,11/03/2022,406842,HPREV Clear Rent Arrears,14/03/2022,0,1038.24,1038.24,Homelessness,Homeless Prevention Payments,64403
http://statistics.data.gov.uk/id/local-authority/12UE,Huntingdonshire District Council,200511.01,CHORUS HOMES LTD (PRIVATE RENTS),61021,11/03/2022,644557,HPREV Clear Rent Arrears,14/03/2022,0,992.34,992.34,Homelessness,Homeless Prevention Payments,64403
http://statistics.data.gov.uk/id/local-authority/12UE,Huntingdonshire District Council,200511.01,CHORUS HOMES LTD (PRIVATE RENTS),60182,11/02/2022,REDACTED,REDACTED,24/02/2022,0,1133.22,1133.22,Homelessness,Homeless Prevention Payments,64403
http://statistics.data.gov.uk/id/local-authority/12UE,Huntingdonshire District Council,200511.01,CHORUS HOMES LTD (PRIVATE RENTS),59104,26/01/2022,REDACTED,REDACTED,01/02/2022,0,930.35,930.35,Homelessness,Homeless Prevention Payments,64403
http://statistics.data.gov.uk/id/local-authority/12UE,Huntingdonshire District Council,200511.01,CHORUS HOMES LTD (PRIVATE RENTS),59614,10/02/2022,REDACTED,REDACTED,14/02/2022,0,2095.54,2095.54,Homelessness,Homeless Prevention Payments,64403
http://statistics.data.gov.uk/id/local-authority/12UE,Huntingdonshire District Council,200511.01,CHORUS HOMES LTD (PRIVATE RENTS),61111,19/01/2022,REDACTED,REDACTED,17/03/2022,0,2894.08,2894.08,Homelessness,Homeless Prevention Payments,64403
http://statistics.data.gov.uk/id/local-authority/12UE,Huntingdonshire District Council,200511.01,CHORUS HOMES LTD (PRIVATE RENTS),61110,19/01/2022,REDACTED,REDACTED,17/03/2022,0,419.94,419.94,Homelessness,Homeless Prevention Payments,64403
http://statistics.data.gov.uk/id/local-authority/12UE,Huntingdonshire District Council,200511.01,CHORUS HOMES LTD (PRIVATE RENTS),61170,09/03/2022,REDACTED,REDACTED,17/03/2022,0,1898.61,1898.61,Homelessness,Homeless Prevention Payments,64403
http://statistics.data.gov.uk/id/local-authority/12UE,Huntingdonshire District Council,200511.01,CHORUS HOMES LTD (PRIVATE RENTS),60074,22/02/2022,REDACTED,REDACTED,22/02/2022,0,3673.8,3673.8,Homelessness,Homeless Prevention Payments,64403
http://statistics.data.gov.uk/id/local-authority/12UE,Huntingdonshire District Council,200511.01,CHORUS HOMES LTD (PRIVATE RENTS),58086,24/12/2021,647764,REDACTED,06/01/2022,0,2040,2040,Homelessness,Homeless Prevention Payments,64403
http://statistics.data.gov.uk/id/local-authority/12UE,Huntingdonshire District Council,200511.01,CHORUS HOMES LTD (PRIVATE RENTS),58140,05/01/2022,647419,REDACTED,06/01/2022,0,2553.28,2553.28,Homelessness,Homeless Prevention Payments,64403
http://statistics.data.gov.uk/id/local-authority/12UE,Huntingdonshire District Council,200511.01,CHORUS HOMES LTD (PRIVATE RENTS),58539,13/01/2022,537011,REDACTED,18/01/2022,0,1960.36,1960.36,Homelessness,Homeless Prevention Payments,64403
http://statistics.data.gov.uk/id/local-authority/12UE,Huntingdonshire District Council,200511.01,CHORUS HOMES LTD (PRIVATE RENTS),58653,19/01/2022,341837,REDACTED,19/01/2022,0,596,596,Homelessness,Homeless Prevention Payments,64403
http://statistics.data.gov.uk/id/local-authority/12UE,Huntingdonshire District Council,200511.01,CHORUS HOMES LTD (PRIVATE RENTS),59615,09/02/2022,REDACTED,REDACTED,14/02/2022,0,442.74,442.74,Homelessness,Homeless Prevention Payments,64403
http://statistics.data.gov.uk/id/local-authority/12UE,Huntingdonshire District Council,200511.01,CHORUS HOMES LTD (PRIVATE RENTS),59849,07/02/2022,437276,REDACTED,17/02/2022,0,2093.23,2093.23,Homelessness,Homeless Prevention Payments,64403
http://statistics.data.gov.uk/id/local-authority/12UE,Huntingdonshire District Council,200511.01,CHORUS HOMES LTD (PRIVATE RENTS),59852,11/02/2022,440639,REDACTED,17/02/2022,0,448.64,448.64,Homelessness,Homeless Prevention Payments,64403
http://statistics.data.gov.uk/id/local-authority/12UE,Huntingdonshire District Council,200511.01,CHORUS HOMES LTD (PRIVATE RENTS),60235,23/02/2022,REDACTED,REDACTED,28/02/2022,0,1350,1350,Homelessness,Homeless Prevention Payments,64403
http://statistics.data.gov.uk/id/local-authority/12UE,Huntingdonshire District Council,200511.01,CHORUS HOMES LTD (PRIVATE RENTS),60427,25/02/2022,643575,REDACTED,03/03/2022,0,1498.75,1498.75,Homelessness,Homeless Prevention Payments,64403
http://statistics.data.gov.uk/id/local-authority/12UE,Huntingdonshire District Council,200511.01,CHORUS HOMES LTD (PRIVATE RENTS),60551,02/03/2022,364554,REDACTED,07/03/2022,0,514.56,514.56,Homelessness,Homeless Prevention Payments,64403
http://statistics.data.gov.uk/id/local-authority/12UE,Huntingdonshire District Council,200511.01,CHORUS HOMES LTD (PRIVATE RENTS),61031,14/03/2022,REDACTED,REDACTED,14/03/2022,0,1137.83,1137.83,Homelessness,Homeless Prevention Payments,64403
http://statistics.data.gov.uk/id/local-authority/12UE,Huntingdonshire District Council,200511.01,CHORUS HOMES LTD (PRIVATE RENTS),61173,15/03/2022,REDACTED,REDACTED,17/03/2022,0,901.15,901.15,Homelessness,Homeless Prevention Payments,64403
http://statistics.data.gov.uk/id/local-authority/12UE,Huntingdonshire District Council,200511.01,CHORUS HOMES LTD (PRIVATE RENTS),61851,15/03/2022,649035,REDACTED,28/03/2022,0,3210.79,3210.79,Homelessness,Homeless Prevention Payments,64403
http://statistics.data.gov.uk/id/local-authority/12UE,Huntingdonshire District Council,200511.01,CHORUS HOMES LTD (PRIVATE RENTS),61116,16/03/2022,457732,REDACTED,17/03/2022,0,1718.86,1718.86,Homelessness,Homeless Prevention Payments,64403
http://statistics.data.gov.uk/id/local-authority/12UE,Huntingdonshire District Council,200511.01,CHORUS HOMES LTD (PRIVATE RENTS),61117,15/03/2022,437678,REDACTED,17/03/2022,0,1270.15,1270.15,Homelessness,Homeless Prevention Payments,64403
http://statistics.data.gov.uk/id/local-authority/12UE,Huntingdonshire District Council,200511.01,CHORUS HOMES LTD (PRIVATE RENTS),61158,14/03/2022,468075,REDACTED,17/03/2022,0,470,470,Homelessness,Homeless Prevention Payments,64403
http://statistics.data.gov.uk/id/local-authority/12UE,Huntingdonshire District Council,200511.01,CHORUS HOMES LTD (PRIVATE RENTS),61244,16/03/2022,REDACTED,REDACTED,17/03/2022,0,1159.51,1159.51,Homelessness,Homeless Prevention Payments,64403
http://statistics.data.gov.uk/id/local-authority/12UE,Huntingdonshire District Council,200511.01,CHORUS HOMES LTD (PRIVATE RENTS),61313,16/03/2022,REDACTED,REDACTED,21/03/2022,0,582.3,582.3,Homelessness,Homeless Prevention Payments,64403
http://statistics.data.gov.uk/id/local-authority/12UE,Huntingdonshire District Council,200511.01,CHORUS HOMES LTD (PRIVATE RENTS),61462,17/03/2022,541686,REDACTED,21/03/2022,0,506.6,506.6,Homelessness,Homeless Prevention Payments,64403
http://statistics.data.gov.uk/id/local-authority/12UE,Huntingdonshire District Council,200511.01,CHORUS HOMES LTD (PRIVATE RENTS),61315,10/03/2022,539104,Clear Rent Arrears,21/03/2022,0,1347.22,1347.22,Homelessness,Homeless Prevention Payments,64403
http://statistics.data.gov.uk/id/local-authority/12UE,Huntingdonshire District Council,200511.01,CHORUS HOMES LTD (PRIVATE RENTS),61342,23/02/2022,REDACTED,REDACTED,21/03/2022,0,1030.36,1030.36,Homelessness,Homeless Prevention Payments,64403
http://statistics.data.gov.uk/id/local-authority/12UE,Huntingdonshire District Council,200511.01,CHORUS HOMES LTD (PRIVATE RENTS),61390,17/03/2022,REDACTED,REDACTED,21/03/2022,0,1637.34,1637.34,Homelessness,Homeless Prevention Payments,64403
http://statistics.data.gov.uk/id/local-authority/12UE,Huntingdonshire District Council,200511.01,CHORUS HOMES LTD (PRIVATE RENTS),61418,17/03/2022,REDACTED,REDACTED,21/03/2022,0,738.77,738.77,Homelessness,Homeless Prevention Payments,64403
http://statistics.data.gov.uk/id/local-authority/12UE,Huntingdonshire District Council,200511.01,CHORUS HOMES LTD (PRIVATE RENTS),61357,18/03/2022,REDACTED,REDACTED,21/03/2022,0,1612.36,1612.36,Homelessness,Homeless Prevention Payments,64403
http://statistics.data.gov.uk/id/local-authority/12UE,Huntingdonshire District Council,200511.01,CHORUS HOMES LTD (PRIVATE RENTS),61356,16/03/2022,REDACTED,REDACTED,21/03/2022,0,1103.59,1103.59,Homelessness,Homeless Prevention Payments,64403
http://statistics.data.gov.uk/id/local-authority/12UE,Huntingdonshire District Council,200511.01,CHORUS HOMES LTD (PRIVATE RENTS),61422,17/03/2022,REDACTED,REDACTED,21/03/2022,0,1641.97,1641.97,Homelessness,Homeless Prevention Payments,64403
http://statistics.data.gov.uk/id/local-authority/12UE,Huntingdonshire District Council,200511.01,CHORUS HOMES LTD (PRIVATE RENTS),61457,17/03/2022,REDACTED,REDACTED,21/03/2022,0,1736.36,1736.36,Homelessness,Homeless Prevention Payments,64403
http://statistics.data.gov.uk/id/local-authority/12UE,Huntingdonshire District Council,200511.01,CHORUS HOMES LTD (PRIVATE RENTS),61853,21/03/2022,526456,REDACTED,28/03/2022,0,1136.4,1136.4,Homelessness,Homeless Prevention Payments,64403
http://statistics.data.gov.uk/id/local-authority/12UE,Huntingdonshire District Council,200511.01,CHORUS HOMES LTD (PRIVATE RENTS),61667,23/03/2022,349600,REDACTED,24/03/2022,0,942.68,942.68,Homelessness,Homeless Prevention Payments,64403
http://statistics.data.gov.uk/id/local-authority/12UE,Huntingdonshire District Council,202713,Cinderella Support Services LTD,58563,06/01/2022,93167,GUTTER INSPECTIONS/ROOF CLEANING NOV21,03/02/2022,21,105,126,Eastfield House,Cleaning Contract,60502
http://statistics.data.gov.uk/id/local-authority/12UE,Huntingdonshire District Council,202713,Cinderella Support Services LTD,58563,06/01/2022,93167,GUTTER INSPECTIONS/ROOF CLEANING NOV21,03/02/2022,14,70,84,Huntingdon Bus Station,Cleaning Contract,60502
http://statistics.data.gov.uk/id/local-authority/12UE,Huntingdonshire District Council,202713,Cinderella Support Services LTD,58563,06/01/2022,93167,GUTTER INSPECTIONS/ROOF CLEANING NOV21,03/02/2022,14,70,84,OLH - Site & Centre Management,Cleaning Contract,60502
http://statistics.data.gov.uk/id/local-authority/12UE,Huntingdonshire District Council,202713,Cinderella Support Services LTD,58563,06/01/2022,93167,GUTTER INSPECTIONS/ROOF CLEANING NOV21,03/02/2022,57,285,342,OLR - Site & Centre Management,Cleaning Contract,60502
http://statistics.data.gov.uk/id/local-authority/12UE,Huntingdonshire District Council,202713,Cinderella Support Services LTD,58563,06/01/2022,93167,GUTTER INSPECTIONS/ROOF CLEANING NOV21,03/02/2022,60,300,360,OLSI - Site & Centre Management,Cleaning Contract,60502
http://statistics.data.gov.uk/id/local-authority/12UE,Huntingdonshire District Council,202713,Cinderella Support Services LTD,58563,06/01/2022,93167,GUTTER INSPECTIONS/ROOF CLEANING NOV21,03/02/2022,64,320,384,OLSIO - Site & Centre Management,Cleaning Contract,60502
http://statistics.data.gov.uk/id/local-authority/12UE,Huntingdonshire District Council,202713,Cinderella Support Services LTD,58563,06/01/2022,93167,GUTTER INSPECTIONS/ROOF CLEANING NOV21,03/02/2022,57,285,342,OLSN - Site & Centre Management,Cleaning Contract,60502
http://statistics.data.gov.uk/id/local-authority/12UE,Huntingdonshire District Council,202713,Cinderella Support Services LTD,58563,06/01/2022,93167,GUTTER INSPECTIONS/ROOF CLEANING NOV21,03/02/2022,14,70,84,Parks & Open Spaces,Cleaning Contract,60502
http://statistics.data.gov.uk/id/local-authority/12UE,Huntingdonshire District Council,202713,Cinderella Support Services LTD,58563,06/01/2022,93167,GUTTER INSPECTIONS/ROOF CLEANING NOV21,03/02/2022,14,70,84,Parks & Open Spaces,Cleaning Contract,60502
http://statistics.data.gov.uk/id/local-authority/12UE,Huntingdonshire District Council,202713,Cinderella Support Services LTD,58563,06/01/2022,93167,GUTTER INSPECTIONS/ROOF CLEANING NOV21,03/02/2022,14,70,84,Parks & Open Spaces,Cleaning Contract,60502
http://statistics.data.gov.uk/id/local-authority/12UE,Huntingdonshire District Council,202713,Cinderella Support Services LTD,58563,06/01/2022,93167,GUTTER INSPECTIONS/ROOF CLEANING NOV21,03/02/2022,21,105,126,Parks & Open Spaces,Cleaning Contract,60502
http://statistics.data.gov.uk/id/local-authority/12UE,Huntingdonshire District Council,202713,Cinderella Support Services LTD,58563,06/01/2022,93167,GUTTER INSPECTIONS/ROOF CLEANING NOV21,03/02/2022,14,70,84,Pathfinder House,Cleaning Contract,60502
http://statistics.data.gov.uk/id/local-authority/12UE,Huntingdonshire District Council,202713,Cinderella Support Services LTD,58563,06/01/2022,93167,GUTTER INSPECTIONS/ROOF CLEANING NOV21,03/02/2022,21,105,126,St Ives Bus Station,Cleaning Contract,60502
http://statistics.data.gov.uk/id/local-authority/12UE,Huntingdonshire District Council,200195,CIPFA BUSINESS LIMITED CIPFA BUSINESS LIMITED,61172,09/03/2022,3163690,REDACTED,30/03/2022,69,345,414,HR Services,Staff Development And Training,60115
http://statistics.data.gov.uk/id/local-authority/12UE,Huntingdonshire District Council,200195,CIPFA BUSINESS LIMITED CIPFA BUSINESS LIMITED,60256,07/02/2022,3162216,REDACTED,03/03/2022,59,295,354,HR Services,Staff Development And Training,60115
http://statistics.data.gov.uk/id/local-authority/12UE,Huntingdonshire District Council,200195,CIPFA BUSINESS LIMITED CIPFA BUSINESS LIMITED,60257,17/02/2022,3162708,REDACTED,17/03/2022,59,295,354,HR Services,Staff Development And Training,60115
http://statistics.data.gov.uk/id/local-authority/12UE,Huntingdonshire District Council,200195,CIPFA BUSINESS LIMITED CIPFA BUSINESS LIMITED,59643,04/02/2022,3162086,finance 21/22,03/03/2022,300,1500,1800,Finance,Miscellaneous Expenses,63900
http://statistics.data.gov.uk/id/local-authority/12UE,Huntingdonshire District Council,200195,CIPFA BUSINESS LIMITED CIPFA BUSINESS LIMITED,60103,18/02/2022,3162820,FINANCE S151 OFFICER,17/03/2022,1044,5220,6264,Finance,Membership And Subscriptions,64800
http://statistics.data.gov.uk/id/local-authority/12UE,Huntingdonshire District Council,200195,CIPFA BUSINESS LIMITED CIPFA BUSINESS LIMITED,59940,16/02/2022,3162367,PUBLICATIONS SUBSCRIPT 22/23,07/03/2022,0,3860,3860,Finance,Membership And Subscriptions,64800
http://statistics.data.gov.uk/id/local-authority/12UE,Huntingdonshire District Council,200195,CIPFA BUSINESS LIMITED CIPFA BUSINESS LIMITED,59941,16/02/2022,3162581,TISONLINE SUBSCRIPT 22/23,07/03/2022,0,3100,3100,Finance,Membership And Subscriptions,64800
http://statistics.data.gov.uk/id/local-authority/12UE,Huntingdonshire District Council,202817,CIVICA ELECTION SERVICES LIMITED,60105,14/02/2022,M/XP097892,ANNUAL FEE 22-23,07/03/2022,2332.05,11660.24,13992.29,Electoral Registration,Electoral Registration Fees,60017
http://statistics.data.gov.uk/id/local-authority/12UE,Huntingdonshire District Council,202817,CIVICA ELECTION SERVICES LIMITED,60105,14/02/2022,M/XP097892,ANNUAL FEE 22-23,07/03/2022,0.01,0,0.01,Finance,Over/Under VAT Rounding,68350
http://statistics.data.gov.uk/id/local-authority/12UE,Huntingdonshire District Council,200197,CIVICA UK LTD CIVICA UK LTD,60397,28/02/2022,M/MG098433,GOV ANNUAL LICENCES,24/03/2022,1619.67,8098.36,9718.03,Cambridge City Business Case ,Ict Software,64071
http://statistics.data.gov.uk/id/local-authority/12UE,Huntingdonshire District Council,200197,CIVICA UK LTD CIVICA UK LTD,60501,14/02/2022,MXP097892,IT SOFTWARE,07/03/2022,2332.05,11660.24,13992.29,HDC Business Case ,Ict Software,64071
http://statistics.data.gov.uk/id/local-authority/12UE,Huntingdonshire District Council,200197,CIVICA UK LTD CIVICA UK LTD,61542,14/02/2022,M/RB097777,IT Software,24/03/2022,12876.13,64380.67,77256.8,SCDC Business Case ,Ict Software,64071
http://statistics.data.gov.uk/id/local-authority/12UE,Huntingdonshire District Council,200197,CIVICA UK LTD CIVICA UK LTD,60082,14/02/2022,M/RB097776,3CICT BENEFIT INTERFACES,07/03/2022,4592.74,22963.69,27556.43,SCDC Business Case ,Ict Software,64071
http://statistics.data.gov.uk/id/local-authority/12UE,Huntingdonshire District Council,200197,CIVICA UK LTD CIVICA UK LTD,61010,14/02/2022,MXP097947,eXpress Annual Fee,14/03/2022,2460.97,12304.87,14765.84,SCDC Business Case ,Ict Software,64071
http://statistics.data.gov.uk/id/local-authority/12UE,Huntingdonshire District Council,200197,CIVICA UK LTD CIVICA UK LTD,60177,14/02/2022,M/MG097631,3CICT SCDC MAINTENANCE,07/03/2022,1954.78,9773.88,11728.66,SCDC Business Case ,Ict Software,64071
http://statistics.data.gov.uk/id/local-authority/12UE,Huntingdonshire District Council,200197,CIVICA UK LTD CIVICA UK LTD,60081,14/02/2022,M/RB097522,3CICT REVS BILLING,07/03/2022,1086.35,5431.76,6518.11,SCDC Business Case ,Ict Software,64071
http://statistics.data.gov.uk/id/local-authority/12UE,Huntingdonshire District Council,200197,CIVICA UK LTD CIVICA UK LTD,59087,22/11/2021,M/RB094235,NDR MODELLING TOOL,03/02/2022,215.59,1077.96,1293.55,SCDC Business Case ,Ict Software,64071
http://statistics.data.gov.uk/id/local-authority/12UE,Huntingdonshire District Council,200197,CIVICA UK LTD CIVICA UK LTD,60261,03/02/2022,C/RB235219,3CICT SOFTWARE,03/03/2022,3468.47,17342.33,20810.8,SCDC Recoverable,Ict Software,64071
http://statistics.data.gov.uk/id/local-authority/12UE,Huntingdonshire District Council,200197,CIVICA UK LTD CIVICA UK LTD,61542,14/02/2022,M/RB097777,IT Software,24/03/2022,0.01,0,0.01,Finance,Over/Under VAT Rounding,68350
http://statistics.data.gov.uk/id/local-authority/12UE,Huntingdonshire District Council,200197,CIVICA UK LTD CIVICA UK LTD,60082,14/02/2022,M/RB097776,3CICT BENEFIT INTERFACES,07/03/2022,-0.01,0,-0.01,Finance,Over/Under VAT Rounding,68350
http://statistics.data.gov.uk/id/local-authority/12UE,Huntingdonshire District Council,200197,CIVICA UK LTD CIVICA UK LTD,61010,14/02/2022,MXP097947,eXpress Annual Fee,14/03/2022,0.02,0,0.02,Finance,Over/Under VAT Rounding,68350
http://statistics.data.gov.uk/id/local-authority/12UE,Huntingdonshire District Council,200197,CIVICA UK LTD CIVICA UK LTD,60501,14/02/2022,MXP097892,IT SOFTWARE,07/03/2022,0.01,0,0.01,Finance,Over/Under VAT Rounding,68350
http://statistics.data.gov.uk/id/local-authority/12UE,Huntingdonshire District Council,200197,CIVICA UK LTD CIVICA UK LTD,60177,14/02/2022,M/MG097631,3CICT SCDC MAINTENANCE,07/03/2022,-0.01,0,-0.01,Finance,Over/Under VAT Rounding,68350
http://statistics.data.gov.uk/id/local-authority/12UE,Huntingdonshire District Council,202891,CLICKERS ARCHERY LTD,60790,04/03/2022,18066,Arrows Archery Kit-Six Bow Pack,30/03/2022,85.17,425.83,511,Active Huntingdonshire,Sports Equipment,61708
http://statistics.data.gov.uk/id/local-authority/12UE,Huntingdonshire District Council,200797,CLOSOMAT LTD CLOSOMAT LTD,60390,27/01/2022,SI-091922,REDACTED,03/03/2022,0,4305,4305,Disables Facilities Grants,Mandatory Grants,64601
http://statistics.data.gov.uk/id/local-authority/12UE,Huntingdonshire District Council,201012,COACH & HORSES,60996,06/03/2022,530,TA 28.02-06.03.22,14/03/2022,39.38,315,354.38,Homelessness,B&B Accommodation,64401
http://statistics.data.gov.uk/id/local-authority/12UE,Huntingdonshire District Council,201012,COACH & HORSES,60459,27/02/2022,529,TA 21-270222,03/03/2022,39.38,315,354.38,Homelessness,B&B Accommodation,64401
http://statistics.data.gov.uk/id/local-authority/12UE,Huntingdonshire District Council,201012,COACH & HORSES,59929,13/02/2022,527,TA 07-130222,21/02/2022,39.37,315,354.37,Homelessness,B&B Accommodation,64401
http://statistics.data.gov.uk/id/local-authority/12UE,Huntingdonshire District Council,201012,COACH & HORSES,60215,20/02/2022,528,TA WE 200222,28/02/2022,39.37,315,354.37,Homelessness,B&B Accommodation,64401
http://statistics.data.gov.uk/id/local-authority/12UE,Huntingdonshire District Council,201012,COACH & HORSES,61972,27/03/2022,533,TA 21-27.03.22,30/03/2022,39.38,315,354.38,Homelessness,B&B Accommodation,64401
http://statistics.data.gov.uk/id/local-authority/12UE,Huntingdonshire District Council,201012,COACH & HORSES,61203,13/03/2022,531,housing ta we 130322,17/03/2022,39.37,315,354.37,Homelessness,B&B Accommodation,64401
http://statistics.data.gov.uk/id/local-authority/12UE,Huntingdonshire District Council,201012,COACH & HORSES,59876,06/02/2022,526,TA 3101-060222,17/02/2022,39.37,315,354.37,Homelessness,B&B Accommodation,64401
http://statistics.data.gov.uk/id/local-authority/12UE,Huntingdonshire District Council,201012,COACH & HORSES,61430,20/03/2022,532,TA 14-20.03.22,24/03/2022,39.38,315,354.38,Homelessness,B&B Accommodation,64401
http://statistics.data.gov.uk/id/local-authority/12UE,Huntingdonshire District Council,201012,COACH & HORSES,58591,16/01/2022,523,TA 09-160122,20/01/2022,33.75,270,303.75,Homelessness,B&B Accommodation,64401
http://statistics.data.gov.uk/id/local-authority/12UE,Huntingdonshire District Council,201012,COACH & HORSES,58913,23/01/2022,524,TA 17-230122,27/01/2022,39.38,315,354.38,Homelessness,B&B Accommodation,64401
http://statistics.data.gov.uk/id/local-authority/12UE,Huntingdonshire District Council,201012,COACH & HORSES,59130,30/01/2022,525,TA 24-300122,03/02/2022,39.38,315,354.38,Homelessness,B&B Accommodation,64401
http://statistics.data.gov.uk/id/local-authority/12UE,Huntingdonshire District Council,201012,COACH & HORSES,58090,02/01/2022,521,TA 2712-020122,06/01/2022,39.37,315,354.37,Homelessness,B&B Accommodation,64401
http://statistics.data.gov.uk/id/local-authority/12UE,Huntingdonshire District Council,201012,COACH & HORSES,58855,26/12/2021,520,TA 20-261221,25/01/2022,28.13,225,253.13,Homelessness,B&B Accommodation,64401
http://statistics.data.gov.uk/id/local-authority/12UE,Huntingdonshire District Council,201012,COACH & HORSES,58350,09/01/2022,522,TA 03-090122,13/01/2022,22.5,180,202.5,Homelessness,B&B Accommodation,64401
http://statistics.data.gov.uk/id/local-authority/12UE,Huntingdonshire District Council,201012,COACH & HORSES,58090,02/01/2022,521,TA 2712-020122,06/01/2022,39.38,315,354.38,Homelessness,B&B Accommodation,64401
http://statistics.data.gov.uk/id/local-authority/12UE,Huntingdonshire District Council,201012,COACH & HORSES,58350,09/01/2022,522,TA 03-090122,13/01/2022,39.38,315,354.38,Homelessness,B&B Accommodation,64401
http://statistics.data.gov.uk/id/local-authority/12UE,Huntingdonshire District Council,201012,COACH & HORSES,59929,13/02/2022,527,TA 07-130222,21/02/2022,43.75,350,393.75,Homelessness,B&B Accommodation,64401
http://statistics.data.gov.uk/id/local-authority/12UE,Huntingdonshire District Council,201012,COACH & HORSES,59876,06/02/2022,526,TA 3101-060222,17/02/2022,43.75,350,393.75,Homelessness,B&B Accommodation,64401
http://statistics.data.gov.uk/id/local-authority/12UE,Huntingdonshire District Council,201012,COACH & HORSES,58090,02/01/2022,521,TA 2712-020122,06/01/2022,43.75,350,393.75,Homelessness,B&B Accommodation,64401
http://statistics.data.gov.uk/id/local-authority/12UE,Huntingdonshire District Council,201012,COACH & HORSES,58591,16/01/2022,523,TA 09-160122,20/01/2022,43.75,350,393.75,Homelessness,B&B Accommodation,64401
http://statistics.data.gov.uk/id/local-authority/12UE,Huntingdonshire District Council,201012,COACH & HORSES,58913,23/01/2022,524,TA 17-230122,27/01/2022,43.75,350,393.75,Homelessness,B&B Accommodation,64401
http://statistics.data.gov.uk/id/local-authority/12UE,Huntingdonshire District Council,201012,COACH & HORSES,59130,30/01/2022,525,TA 24-300122,03/02/2022,43.75,350,393.75,Homelessness,B&B Accommodation,64401
http://statistics.data.gov.uk/id/local-authority/12UE,Huntingdonshire District Council,201012,COACH & HORSES,58855,26/12/2021,520,TA 20-261221,25/01/2022,43.75,350,393.75,Homelessness,B&B Accommodation,64401
http://statistics.data.gov.uk/id/local-authority/12UE,Huntingdonshire District Council,201012,COACH & HORSES,58350,09/01/2022,522,TA 03-090122,13/01/2022,43.75,350,393.75,Homelessness,B&B Accommodation,64401
http://statistics.data.gov.uk/id/local-authority/12UE,Huntingdonshire District Council,201012,COACH & HORSES,58090,02/01/2022,521,TA 2712-020122,06/01/2022,16.87,135,151.87,Homelessness,B&B Accommodation,64401
http://statistics.data.gov.uk/id/local-authority/12UE,Huntingdonshire District Council,201012,COACH & HORSES,58855,26/12/2021,520,TA 20-261221,25/01/2022,39.37,315,354.37,Homelessness,B&B Accommodation,64401
http://statistics.data.gov.uk/id/local-authority/12UE,Huntingdonshire District Council,201012,COACH & HORSES,58090,02/01/2022,521,TA 2712-020122,06/01/2022,39.38,315,354.38,Homelessness,B&B Accommodation,64401
http://statistics.data.gov.uk/id/local-authority/12UE,Huntingdonshire District Council,201012,COACH & HORSES,58855,26/12/2021,520,TA 20-261221,25/01/2022,39.38,315,354.38,Homelessness,B&B Accommodation,64401
http://statistics.data.gov.uk/id/local-authority/12UE,Huntingdonshire District Council,201012,COACH & HORSES,58350,09/01/2022,522,TA 03-090122,13/01/2022,5.63,45,50.63,Homelessness,B&B Accommodation,64401
http://statistics.data.gov.uk/id/local-authority/12UE,Huntingdonshire District Council,201012,COACH & HORSES,58090,02/01/2022,521,TA 2712-020122,06/01/2022,39.38,315,354.38,Homelessness,B&B Accommodation,64401
http://statistics.data.gov.uk/id/local-authority/12UE,Huntingdonshire District Council,201012,COACH & HORSES,58591,16/01/2022,523,TA 09-160122,20/01/2022,39.37,315,354.37,Homelessness,B&B Accommodation,64401
http://statistics.data.gov.uk/id/local-authority/12UE,Huntingdonshire District Council,201012,COACH & HORSES,58855,26/12/2021,520,TA 20-261221,25/01/2022,39.37,315,354.37,Homelessness,B&B Accommodation,64401
http://statistics.data.gov.uk/id/local-authority/12UE,Huntingdonshire District Council,201012,COACH & HORSES,58350,09/01/2022,522,TA 03-090122,13/01/2022,11.25,90,101.25,Homelessness,B&B Accommodation,64401
http://statistics.data.gov.uk/id/local-authority/12UE,Huntingdonshire District Council,201012,COACH & HORSES,60996,06/03/2022,530,TA 28.02-06.03.22,14/03/2022,39.38,315,354.38,Homelessness,B&B Accommodation,64401
http://statistics.data.gov.uk/id/local-authority/12UE,Huntingdonshire District Council,201012,COACH & HORSES,60459,27/02/2022,529,TA 21-270222,03/03/2022,39.38,315,354.38,Homelessness,B&B Accommodation,64401
http://statistics.data.gov.uk/id/local-authority/12UE,Huntingdonshire District Council,201012,COACH & HORSES,59929,13/02/2022,527,TA 07-130222,21/02/2022,39.37,315,354.37,Homelessness,B&B Accommodation,64401
http://statistics.data.gov.uk/id/local-authority/12UE,Huntingdonshire District Council,201012,COACH & HORSES,60215,20/02/2022,528,TA WE 200222,28/02/2022,39.37,315,354.37,Homelessness,B&B Accommodation,64401
http://statistics.data.gov.uk/id/local-authority/12UE,Huntingdonshire District Council,201012,COACH & HORSES,61972,27/03/2022,533,TA 21-27.03.22,30/03/2022,39.37,315,354.37,Homelessness,B&B Accommodation,64401
http://statistics.data.gov.uk/id/local-authority/12UE,Huntingdonshire District Council,201012,COACH & HORSES,61203,13/03/2022,531,housing ta we 130322,17/03/2022,39.37,315,354.37,Homelessness,B&B Accommodation,64401
http://statistics.data.gov.uk/id/local-authority/12UE,Huntingdonshire District Council,201012,COACH & HORSES,59876,06/02/2022,526,TA 3101-060222,17/02/2022,39.37,315,354.37,Homelessness,B&B Accommodation,64401
http://statistics.data.gov.uk/id/local-authority/12UE,Huntingdonshire District Council,201012,COACH & HORSES,61430,20/03/2022,532,TA 14-20.03.22,24/03/2022,39.37,315,354.37,Homelessness,B&B Accommodation,64401
http://statistics.data.gov.uk/id/local-authority/12UE,Huntingdonshire District Council,201012,COACH & HORSES,58090,02/01/2022,521,TA 2712-020122,06/01/2022,33.75,270,303.75,Homelessness,B&B Accommodation,64401
http://statistics.data.gov.uk/id/local-authority/12UE,Huntingdonshire District Council,201012,COACH & HORSES,58913,23/01/2022,524,TA 17-230122,27/01/2022,39.37,315,354.37,Homelessness,B&B Accommodation,64401
http://statistics.data.gov.uk/id/local-authority/12UE,Huntingdonshire District Council,201012,COACH & HORSES,59130,30/01/2022,525,TA 24-300122,03/02/2022,39.37,315,354.37,Homelessness,B&B Accommodation,64401
http://statistics.data.gov.uk/id/local-authority/12UE,Huntingdonshire District Council,201012,COACH & HORSES,58350,09/01/2022,522,TA 03-090122,13/01/2022,39.37,315,354.37,Homelessness,B&B Accommodation,64401
http://statistics.data.gov.uk/id/local-authority/12UE,Huntingdonshire District Council,201012,COACH & HORSES,60996,06/03/2022,530,TA 28.02-06.03.22,14/03/2022,39.38,315,354.38,Homelessness,B&B Accommodation,64401
http://statistics.data.gov.uk/id/local-authority/12UE,Huntingdonshire District Council,201012,COACH & HORSES,60459,27/02/2022,529,TA 21-270222,03/03/2022,39.38,315,354.38,Homelessness,B&B Accommodation,64401
http://statistics.data.gov.uk/id/local-authority/12UE,Huntingdonshire District Council,201012,COACH & HORSES,59929,13/02/2022,527,TA 07-130222,21/02/2022,39.38,315,354.38,Homelessness,B&B Accommodation,64401
http://statistics.data.gov.uk/id/local-authority/12UE,Huntingdonshire District Council,201012,COACH & HORSES,60215,20/02/2022,528,TA WE 200222,28/02/2022,39.37,315,354.37,Homelessness,B&B Accommodation,64401
http://statistics.data.gov.uk/id/local-authority/12UE,Huntingdonshire District Council,201012,COACH & HORSES,61203,13/03/2022,531,housing ta we 130322,17/03/2022,5.62,45,50.62,Homelessness,B&B Accommodation,64401
http://statistics.data.gov.uk/id/local-authority/12UE,Huntingdonshire District Council,201012,COACH & HORSES,59876,06/02/2022,526,TA 3101-060222,17/02/2022,39.38,315,354.38,Homelessness,B&B Accommodation,64401
http://statistics.data.gov.uk/id/local-authority/12UE,Huntingdonshire District Council,201012,COACH & HORSES,58591,16/01/2022,523,TA 09-160122,20/01/2022,39.38,315,354.38,Homelessness,B&B Accommodation,64401
http://statistics.data.gov.uk/id/local-authority/12UE,Huntingdonshire District Council,201012,COACH & HORSES,58913,23/01/2022,524,TA 17-230122,27/01/2022,39.37,315,354.37,Homelessness,B&B Accommodation,64401
http://statistics.data.gov.uk/id/local-authority/12UE,Huntingdonshire District Council,201012,COACH & HORSES,59130,30/01/2022,525,TA 24-300122,03/02/2022,39.37,315,354.37,Homelessness,B&B Accommodation,64401
http://statistics.data.gov.uk/id/local-authority/12UE,Huntingdonshire District Council,201012,COACH & HORSES,58350,09/01/2022,522,TA 03-090122,13/01/2022,5.62,45,50.62,Homelessness,B&B Accommodation,64401
http://statistics.data.gov.uk/id/local-authority/12UE,Huntingdonshire District Council,201012,COACH & HORSES,60996,06/03/2022,530,TA 28.02-06.03.22,14/03/2022,39.37,315,354.37,Homelessness,B&B Accommodation,64401
http://statistics.data.gov.uk/id/local-authority/12UE,Huntingdonshire District Council,201012,COACH & HORSES,60459,27/02/2022,529,TA 21-270222,03/03/2022,39.38,315,354.38,Homelessness,B&B Accommodation,64401
http://statistics.data.gov.uk/id/local-authority/12UE,Huntingdonshire District Council,201012,COACH & HORSES,59929,13/02/2022,527,TA 07-130222,21/02/2022,39.37,315,354.37,Homelessness,B&B Accommodation,64401
http://statistics.data.gov.uk/id/local-authority/12UE,Huntingdonshire District Council,201012,COACH & HORSES,60215,20/02/2022,528,TA WE 200222,28/02/2022,39.38,315,354.38,Homelessness,B&B Accommodation,64401
http://statistics.data.gov.uk/id/local-authority/12UE,Huntingdonshire District Council,201012,COACH & HORSES,61203,13/03/2022,531,housing ta we 130322,17/03/2022,16.88,135,151.88,Homelessness,B&B Accommodation,64401
http://statistics.data.gov.uk/id/local-authority/12UE,Huntingdonshire District Council,201012,COACH & HORSES,59876,06/02/2022,526,TA 3101-060222,17/02/2022,39.37,315,354.37,Homelessness,B&B Accommodation,64401
http://statistics.data.gov.uk/id/local-authority/12UE,Huntingdonshire District Council,201012,COACH & HORSES,58591,16/01/2022,523,TA 09-160122,20/01/2022,45,360,405,Homelessness,B&B Accommodation,64401
http://statistics.data.gov.uk/id/local-authority/12UE,Huntingdonshire District Council,201012,COACH & HORSES,58913,23/01/2022,524,TA 17-230122,27/01/2022,39.38,315,354.38,Homelessness,B&B Accommodation,64401
http://statistics.data.gov.uk/id/local-authority/12UE,Huntingdonshire District Council,201012,COACH & HORSES,59130,30/01/2022,525,TA 24-300122,03/02/2022,39.38,315,354.38,Homelessness,B&B Accommodation,64401
http://statistics.data.gov.uk/id/local-authority/12UE,Huntingdonshire District Council,201012,COACH & HORSES,60996,06/03/2022,530,TA 28.02-06.03.22,14/03/2022,39.37,315,354.37,Homelessness,B&B Accommodation,64401
http://statistics.data.gov.uk/id/local-authority/12UE,Huntingdonshire District Council,201012,COACH & HORSES,60459,27/02/2022,529,TA 21-270222,03/03/2022,39.38,315,354.38,Homelessness,B&B Accommodation,64401
http://statistics.data.gov.uk/id/local-authority/12UE,Huntingdonshire District Council,201012,COACH & HORSES,59929,13/02/2022,527,TA 07-130222,21/02/2022,39.38,315,354.38,Homelessness,B&B Accommodation,64401
http://statistics.data.gov.uk/id/local-authority/12UE,Huntingdonshire District Council,201012,COACH & HORSES,60215,20/02/2022,528,TA WE 200222,28/02/2022,39.38,315,354.38,Homelessness,B&B Accommodation,64401
http://statistics.data.gov.uk/id/local-authority/12UE,Huntingdonshire District Council,201012,COACH & HORSES,61203,13/03/2022,531,housing ta we 130322,17/03/2022,39.38,315,354.38,Homelessness,B&B Accommodation,64401
http://statistics.data.gov.uk/id/local-authority/12UE,Huntingdonshire District Council,201012,COACH & HORSES,59876,06/02/2022,526,TA 3101-060222,17/02/2022,16.88,135,151.88,Homelessness,B&B Accommodation,64401
http://statistics.data.gov.uk/id/local-authority/12UE,Huntingdonshire District Council,201012,COACH & HORSES,61430,20/03/2022,532,TA 14-20.03.22,24/03/2022,5.63,45,50.63,Homelessness,B&B Accommodation,64401
http://statistics.data.gov.uk/id/local-authority/12UE,Huntingdonshire District Council,201012,COACH & HORSES,60459,27/02/2022,529,TA 21-270222,03/03/2022,15,120,135,Homelessness,B&B Accommodation,64401
http://statistics.data.gov.uk/id/local-authority/12UE,Huntingdonshire District Council,201012,COACH & HORSES,59929,13/02/2022,527,TA 07-130222,21/02/2022,52.5,420,472.5,Homelessness,B&B Accommodation,64401
http://statistics.data.gov.uk/id/local-authority/12UE,Huntingdonshire District Council,201012,COACH & HORSES,60215,20/02/2022,528,TA WE 200222,28/02/2022,52.5,420,472.5,Homelessness,B&B Accommodation,64401
http://statistics.data.gov.uk/id/local-authority/12UE,Huntingdonshire District Council,201012,COACH & HORSES,59876,06/02/2022,526,TA 3101-060222,17/02/2022,30,240,270,Homelessness,B&B Accommodation,64401
http://statistics.data.gov.uk/id/local-authority/12UE,Huntingdonshire District Council,201012,COACH & HORSES,60996,06/03/2022,530,TA 28.02-06.03.22,14/03/2022,39.37,315,354.37,Homelessness,B&B Accommodation,64401
http://statistics.data.gov.uk/id/local-authority/12UE,Huntingdonshire District Council,201012,COACH & HORSES,60459,27/02/2022,529,TA 21-270222,03/03/2022,39.37,315,354.37,Homelessness,B&B Accommodation,64401
http://statistics.data.gov.uk/id/local-authority/12UE,Huntingdonshire District Council,201012,COACH & HORSES,59929,13/02/2022,527,TA 07-130222,21/02/2022,39.38,315,354.38,Homelessness,B&B Accommodation,64401
http://statistics.data.gov.uk/id/local-authority/12UE,Huntingdonshire District Council,201012,COACH & HORSES,60215,20/02/2022,528,TA WE 200222,28/02/2022,39.38,315,354.38,Homelessness,B&B Accommodation,64401
http://statistics.data.gov.uk/id/local-authority/12UE,Huntingdonshire District Council,201012,COACH & HORSES,61203,13/03/2022,531,housing ta we 130322,17/03/2022,39.38,315,354.38,Homelessness,B&B Accommodation,64401
http://statistics.data.gov.uk/id/local-authority/12UE,Huntingdonshire District Council,201012,COACH & HORSES,59876,06/02/2022,526,TA 3101-060222,17/02/2022,39.38,315,354.38,Homelessness,B&B Accommodation,64401
http://statistics.data.gov.uk/id/local-authority/12UE,Huntingdonshire District Council,201012,COACH & HORSES,61430,20/03/2022,532,TA 14-20.03.22,24/03/2022,11.25,90,101.25,Homelessness,B&B Accommodation,64401
http://statistics.data.gov.uk/id/local-authority/12UE,Huntingdonshire District Council,201012,COACH & HORSES,60996,06/03/2022,530,TA 28.02-06.03.22,14/03/2022,39.38,315,354.38,Homelessness,B&B Accommodation,64401
http://statistics.data.gov.uk/id/local-authority/12UE,Huntingdonshire District Council,201012,COACH & HORSES,60459,27/02/2022,529,TA 21-270222,03/03/2022,39.37,315,354.37,Homelessness,B&B Accommodation,64401
http://statistics.data.gov.uk/id/local-authority/12UE,Huntingdonshire District Council,201012,COACH & HORSES,59929,13/02/2022,527,TA 07-130222,21/02/2022,22.5,180,202.5,Homelessness,B&B Accommodation,64401
http://statistics.data.gov.uk/id/local-authority/12UE,Huntingdonshire District Council,201012,COACH & HORSES,60215,20/02/2022,528,TA WE 200222,28/02/2022,39.37,315,354.37,Homelessness,B&B Accommodation,64401
http://statistics.data.gov.uk/id/local-authority/12UE,Huntingdonshire District Council,201012,COACH & HORSES,61972,27/03/2022,533,TA 21-27.03.22,30/03/2022,39.37,315,354.37,Homelessness,B&B Accommodation,64401
http://statistics.data.gov.uk/id/local-authority/12UE,Huntingdonshire District Council,201012,COACH & HORSES,61203,13/03/2022,531,housing ta we 130322,17/03/2022,39.37,315,354.37,Homelessness,B&B Accommodation,64401
http://statistics.data.gov.uk/id/local-authority/12UE,Huntingdonshire District Council,201012,COACH & HORSES,61430,20/03/2022,532,TA 14-20.03.22,24/03/2022,39.37,315,354.37,Homelessness,B&B Accommodation,64401
http://statistics.data.gov.uk/id/local-authority/12UE,Huntingdonshire District Council,201012,COACH & HORSES,60996,06/03/2022,530,TA 28.02-06.03.22,14/03/2022,39.37,315,354.37,Homelessness,B&B Accommodation,64401
http://statistics.data.gov.uk/id/local-authority/12UE,Huntingdonshire District Council,201012,COACH & HORSES,60459,27/02/2022,529,TA 21-270222,03/03/2022,39.37,315,354.37,Homelessness,B&B Accommodation,64401
http://statistics.data.gov.uk/id/local-authority/12UE,Huntingdonshire District Council,201012,COACH & HORSES,60215,20/02/2022,528,TA WE 200222,28/02/2022,16.88,135,151.88,Homelessness,B&B Accommodation,64401
http://statistics.data.gov.uk/id/local-authority/12UE,Huntingdonshire District Council,201012,COACH & HORSES,61203,13/03/2022,531,housing ta we 130322,17/03/2022,5.63,45,50.63,Homelessness,B&B Accommodation,64401
http://statistics.data.gov.uk/id/local-authority/12UE,Huntingdonshire District Council,201012,COACH & HORSES,60996,06/03/2022,530,TA 28.02-06.03.22,14/03/2022,39.38,315,354.38,Homelessness,B&B Accommodation,64401
http://statistics.data.gov.uk/id/local-authority/12UE,Huntingdonshire District Council,201012,COACH & HORSES,60459,27/02/2022,529,TA 21-270222,03/03/2022,39.37,315,354.37,Homelessness,B&B Accommodation,64401
http://statistics.data.gov.uk/id/local-authority/12UE,Huntingdonshire District Council,201012,COACH & HORSES,61972,27/03/2022,533,TA 21-27.03.22,30/03/2022,39.38,315,354.38,Homelessness,B&B Accommodation,64401
http://statistics.data.gov.uk/id/local-authority/12UE,Huntingdonshire District Council,201012,COACH & HORSES,61203,13/03/2022,531,housing ta we 130322,17/03/2022,39.37,315,354.37,Homelessness,B&B Accommodation,64401
http://statistics.data.gov.uk/id/local-authority/12UE,Huntingdonshire District Council,201012,COACH & HORSES,61430,20/03/2022,532,TA 14-20.03.22,24/03/2022,39.38,315,354.38,Homelessness,B&B Accommodation,64401
http://statistics.data.gov.uk/id/local-authority/12UE,Huntingdonshire District Council,201012,COACH & HORSES,60996,06/03/2022,530,TA 28.02-06.03.22,14/03/2022,28.13,225,253.13,Homelessness,B&B Accommodation,64401
http://statistics.data.gov.uk/id/local-authority/12UE,Huntingdonshire District Council,201012,COACH & HORSES,61203,13/03/2022,531,housing ta we 130322,17/03/2022,11.25,90,101.25,Homelessness,B&B Accommodation,64401
http://statistics.data.gov.uk/id/local-authority/12UE,Huntingdonshire District Council,201012,COACH & HORSES,60996,06/03/2022,530,TA 28.02-06.03.22,14/03/2022,28.12,225,253.12,Homelessness,B&B Accommodation,64401
http://statistics.data.gov.uk/id/local-authority/12UE,Huntingdonshire District Council,201012,COACH & HORSES,61203,13/03/2022,531,housing ta we 130322,17/03/2022,5.63,45,50.63,Homelessness,B&B Accommodation,64401
http://statistics.data.gov.uk/id/local-authority/12UE,Huntingdonshire District Council,201012,COACH & HORSES,61972,27/03/2022,533,TA 21-27.03.22,30/03/2022,39.37,315,354.37,Homelessness,B&B Accommodation,64401
http://statistics.data.gov.uk/id/local-authority/12UE,Huntingdonshire District Council,201012,COACH & HORSES,61203,13/03/2022,531,housing ta we 130322,17/03/2022,16.88,135,151.88,Homelessness,B&B Accommodation,64401
http://statistics.data.gov.uk/id/local-authority/12UE,Huntingdonshire District Council,201012,COACH & HORSES,61430,20/03/2022,532,TA 14-20.03.22,24/03/2022,39.37,315,354.37,Homelessness,B&B Accommodation,64401
http://statistics.data.gov.uk/id/local-authority/12UE,Huntingdonshire District Council,201012,COACH & HORSES,61972,27/03/2022,533,TA 21-27.03.22,30/03/2022,39.37,315,354.37,Homelessness,B&B Accommodation,64401
http://statistics.data.gov.uk/id/local-authority/12UE,Huntingdonshire District Council,201012,COACH & HORSES,61430,20/03/2022,532,TA 14-20.03.22,24/03/2022,33.75,270,303.75,Homelessness,B&B Accommodation,64401
http://statistics.data.gov.uk/id/local-authority/12UE,Huntingdonshire District Council,201012,COACH & HORSES,61972,27/03/2022,533,TA 21-27.03.22,30/03/2022,11.25,90,101.25,Homelessness,B&B Accommodation,64401
http://statistics.data.gov.uk/id/local-authority/12UE,Huntingdonshire District Council,201012,COACH & HORSES,61430,20/03/2022,532,TA 14-20.03.22,24/03/2022,16.88,135,151.88,Homelessness,B&B Accommodation,64401
http://statistics.data.gov.uk/id/local-authority/12UE,Huntingdonshire District Council,201012,COACH & HORSES,61972,27/03/2022,533,TA 21-27.03.22,30/03/2022,39.38,315,354.38,Homelessness,B&B Accommodation,64401
http://statistics.data.gov.uk/id/local-authority/12UE,Huntingdonshire District Council,201012,COACH & HORSES,61972,27/03/2022,533,TA 21-27.03.22,30/03/2022,16.88,135,151.88,Homelessness,B&B Accommodation,64401
http://statistics.data.gov.uk/id/local-authority/12UE,Huntingdonshire District Council,202749,COMPLETE POOL CONTROLS LTD,60769,12/01/2022,INV069439,OLSI Pool Chemicals,10/03/2022,121.06,605.28,726.34,OLSI - Swimming,Chemicals,64000
http://statistics.data.gov.uk/id/local-authority/12UE,Huntingdonshire District Council,202749,COMPLETE POOL CONTROLS LTD,60769,12/01/2022,INV069439,OLSI Pool Chemicals,10/03/2022,8.99,44.97,53.96,OLSI - Swimming,Chemicals,64000
http://statistics.data.gov.uk/id/local-authority/12UE,Huntingdonshire District Council,202749,COMPLETE POOL CONTROLS LTD,60769,12/01/2022,INV069439,OLSI Pool Chemicals,10/03/2022,8.4,42,50.4,OLSI - Swimming,Chemicals,64000
http://statistics.data.gov.uk/id/local-authority/12UE,Huntingdonshire District Council,202749,COMPLETE POOL CONTROLS LTD,60769,12/01/2022,INV069439,OLSI Pool Chemicals,10/03/2022,1.6,8,9.6,OLSI - Swimming,Chemicals,64000
http://statistics.data.gov.uk/id/local-authority/12UE,Huntingdonshire District Council,202749,COMPLETE POOL CONTROLS LTD,59524,31/01/2022,INV070188,OLSI POOL CHEMICALS,24/02/2022,75.66,378.3,453.96,OLSI - Swimming,Chemicals,64000
http://statistics.data.gov.uk/id/local-authority/12UE,Huntingdonshire District Council,202749,COMPLETE POOL CONTROLS LTD,59524,31/01/2022,INV070188,OLSI POOL CHEMICALS,24/02/2022,8.8,44,52.8,OLSI - Swimming,Chemicals,64000
http://statistics.data.gov.uk/id/local-authority/12UE,Huntingdonshire District Council,202749,COMPLETE POOL CONTROLS LTD,59524,31/01/2022,INV070188,OLSI POOL CHEMICALS,24/02/2022,0,8,8,OLSI - Swimming,Chemicals,64000
http://statistics.data.gov.uk/id/local-authority/12UE,Huntingdonshire District Council,202749,COMPLETE POOL CONTROLS LTD,59524,31/01/2022,INV070188,OLSI POOL CHEMICALS,24/02/2022,0,52,52,OLSI - Swimming,Chemicals,64000
http://statistics.data.gov.uk/id/local-authority/12UE,Huntingdonshire District Council,202749,COMPLETE POOL CONTROLS LTD,59253,28/01/2022,INV070058,POOL CHEMICALS,24/02/2022,94.56,472.8,567.36,OLSN - Swimming,Chemicals,64000
http://statistics.data.gov.uk/id/local-authority/12UE,Huntingdonshire District Council,202749,COMPLETE POOL CONTROLS LTD,60462,28/02/2022,INV071162,OLSN POOL CHEMICALS,24/03/2022,91.96,459.8,551.76,OLSN - Swimming,Chemicals,64000
http://statistics.data.gov.uk/id/local-authority/12UE,Huntingdonshire District Council,200210,COMPUTERSHARE VOUCHERS LTD COMPUTERSHARE VOUCHERS LTD,61664,24/03/2022,C-0003304961,ChildCare Admin Voucher,24/03/2022,0,1726,1726,Child Care Vouchers - Payroll,Childcare Admin Vouchers,60106
http://statistics.data.gov.uk/id/local-authority/12UE,Huntingdonshire District Council,200210,COMPUTERSHARE VOUCHERS LTD COMPUTERSHARE VOUCHERS LTD,60170,23/02/2022,C-0003295621,HR CHILD CARE VOUCHERS,24/02/2022,0,1554,1554,Child Care Vouchers - Payroll,Childcare Admin Vouchers,60106
http://statistics.data.gov.uk/id/local-authority/12UE,Huntingdonshire District Council,200210,COMPUTERSHARE VOUCHERS LTD COMPUTERSHARE VOUCHERS LTD,58882,25/01/2022,C-0003286041,CHILDCARE VOUCHER,27/01/2022,0,1494,1494,Child Care Vouchers - Payroll,Childcare Admin Vouchers,60106
http://statistics.data.gov.uk/id/local-authority/12UE,Huntingdonshire District Council,200210,COMPUTERSHARE VOUCHERS LTD COMPUTERSHARE VOUCHERS LTD,61664,24/03/2022,C-0003304961,ChildCare Admin Voucher,24/03/2022,8.63,43.15,51.78,Payroll Services,Childcare Admin Vouchers,60106
http://statistics.data.gov.uk/id/local-authority/12UE,Huntingdonshire District Council,200210,COMPUTERSHARE VOUCHERS LTD COMPUTERSHARE VOUCHERS LTD,60170,23/02/2022,C-0003295621,HR CHILD CARE VOUCHERS,24/02/2022,7.77,38.85,46.62,Payroll Services,Childcare Admin Vouchers,60106
http://statistics.data.gov.uk/id/local-authority/12UE,Huntingdonshire District Council,200210,COMPUTERSHARE VOUCHERS LTD COMPUTERSHARE VOUCHERS LTD,58882,25/01/2022,C-0003286041,CHILDCARE VOUCHER,27/01/2022,7.47,37.35,44.82,Payroll Services,Childcare Admin Vouchers,60106
http://statistics.data.gov.uk/id/local-authority/12UE,Huntingdonshire District Council,202410,CORAL DESIGN MANAGEMENT,59772,31/12/2021,2141,ANGLING INTERPRETATION HCP,17/02/2022,0,850,850,Hinchingbrooke Country Park,Site Alterations And Materials,60273
http://statistics.data.gov.uk/id/local-authority/12UE,Huntingdonshire District Council,200215,CORNERSTONE BARRISTERS CORNERSTONE BARRISTERS,60543,22/02/2022,001 152559,Barrister Fees Case 152559,17/03/2022,642,3210,3852,Development Management,Consultancy Fees,62400
http://statistics.data.gov.uk/id/local-authority/12UE,Huntingdonshire District Council,200215,CORNERSTONE BARRISTERS CORNERSTONE BARRISTERS,60546,01/03/2022,155178 01/03/22,Barrister Fees Case 155178,24/03/2022,450,2250,2700,Development Management,Consultancy Fees,62400
http://statistics.data.gov.uk/id/local-authority/12UE,Huntingdonshire District Council,200215,CORNERSTONE BARRISTERS CORNERSTONE BARRISTERS,58365,10/01/2022,1,DRAFTING PAP LETTER,03/02/2022,200,1000,1200,Development Management,Consultancy Fees,62400
http://statistics.data.gov.uk/id/local-authority/12UE,Huntingdonshire District Council,200215,CORNERSTONE BARRISTERS CORNERSTONE BARRISTERS,60468,21/02/2022,155647,BARRISTER FEES 161121,03/03/2022,200,1000,1200,Development Management,Consultancy Fees,62400
http://statistics.data.gov.uk/id/local-authority/12UE,Huntingdonshire District Council,200215,CORNERSTONE BARRISTERS CORNERSTONE BARRISTERS,60555,22/11/2021,155390 22/11/21,Barrister Fees Case 155390,07/03/2022,200,1000,1200,Development Management,Consultancy Fees,62400
http://statistics.data.gov.uk/id/local-authority/12UE,Huntingdonshire District Council,200215,CORNERSTONE BARRISTERS CORNERSTONE BARRISTERS,58119,14/12/2021,155139,PLANNING REPORT REVIEW,06/01/2022,120,600,720,Development Management,Consultancy Fees,62400
http://statistics.data.gov.uk/id/local-authority/12UE,Huntingdonshire District Council,200215,CORNERSTONE BARRISTERS CORNERSTONE BARRISTERS,60559,01/03/2022,155682 01/03/22,Barristers Fees Case 155682,24/03/2022,60,300,360,Development Management,Consultancy Fees,62400
http://statistics.data.gov.uk/id/local-authority/12UE,Huntingdonshire District Council,200215,CORNERSTONE BARRISTERS CORNERSTONE BARRISTERS,59400,02/02/2022,155791,ADVICE REAWARDED WATER COURSE,24/02/2022,400,2000,2400,Watercourses,Subcontractors,62401
http://statistics.data.gov.uk/id/local-authority/12UE,Huntingdonshire District Council,200215,CORNERSTONE BARRISTERS CORNERSTONE BARRISTERS,59400,02/02/2022,155791,ADVICE REAWARDED WATER COURSE,24/02/2022,20,100,120,Watercourses,Subcontractors,62401
http://statistics.data.gov.uk/id/local-authority/12UE,Huntingdonshire District Council,200215,CORNERSTONE BARRISTERS CORNERSTONE BARRISTERS,60196,08/12/2021,155682,REDACTED,28/02/2022,60,300,360,Customer Service Centres,Legal Fees,63200
http://statistics.data.gov.uk/id/local-authority/12UE,Huntingdonshire District Council,202837,CPSL MIND,59560,08/02/2022,348 CHAIRMAN CHARITIES,CPSL MIND CHAIRMANS CHARITIES 348,24/02/2022,0,0,0,VAT,VAT Input Tax,11727
http://statistics.data.gov.uk/id/local-authority/12UE,Huntingdonshire District Council,202837,CPSL MIND,59560,08/02/2022,348 CHAIRMAN CHARITIES,CPSL MIND CHAIRMANS CHARITIES 348,24/02/2022,0,500,500,Civic Allowances & Support,Grants And Contributions,64600
http://statistics.data.gov.uk/id/local-authority/12UE,Huntingdonshire District Council,200900,CRAEMER UK LTD,60223,22/02/2022,3042031,ops dry waste only,17/03/2022,3090.36,15451.8,18542.16,Wheeled Bins,Refuse Containers/Litter Bins,61200
http://statistics.data.gov.uk/id/local-authority/12UE,Huntingdonshire District Council,200900,CRAEMER UK LTD,60070,14/02/2022,3041875,ops lid printing,07/03/2022,2711.28,13556.4,16267.68,Wheeled Bins,Refuse Containers/Litter Bins,61200
http://statistics.data.gov.uk/id/local-authority/12UE,Huntingdonshire District Council,200900,CRAEMER UK LTD,60547,01/03/2022,3042179,Refuse Container,24/03/2022,2711.28,13556.4,16267.68,Wheeled Bins,Refuse Containers/Litter Bins,61200
http://statistics.data.gov.uk/id/local-authority/12UE,Huntingdonshire District Council,200900,CRAEMER UK LTD,61324,21/01/2022,3041365,ops bin numbers,21/03/2022,1401.66,7008.3,8409.96,Wheeled Bins,Refuse Containers/Litter Bins,61200
http://statistics.data.gov.uk/id/local-authority/12UE,Huntingdonshire District Council,201341,CROSS KEYS HOMES LTD,58851,25/01/2022,506046808,REDACTED,25/01/2022,0,258.46,258.46,Homelessness,Homeless Prevention Payments,64403
http://statistics.data.gov.uk/id/local-authority/12UE,Huntingdonshire District Council,201341,CROSS KEYS HOMES LTD,61125,11/03/2022,506113306,REDACTED,17/03/2022,0,260.06,260.06,Homelessness,Homeless Prevention Payments,64403
http://statistics.data.gov.uk/id/local-authority/12UE,Huntingdonshire District Council,202513,CV-LIBRARY LTD,61266,01/02/2022,391087,Staff Recruitment Costs 12Months,17/03/2022,590,2950,3540,HR Services,Staff Recruitment Costs,60116
http://statistics.data.gov.uk/id/local-authority/12UE,Huntingdonshire District Council,202821,CVSS LIMITED,61000,09/03/2022,13755,CCTV St Neots Car Park,30/03/2022,1395.4,6977,8372.4,Cctv Huntingdonshire,Cctv Cameras,69319
http://statistics.data.gov.uk/id/local-authority/12UE,Huntingdonshire District Council,202821,CVSS LIMITED,59010,20/01/2022,13673,TIME SERVER CLOCK CCTV ROOM,14/02/2022,646.4,3232,3878.4,Cctv Huntingdonshire,Cctv Cameras,69319
http://statistics.data.gov.uk/id/local-authority/12UE,Huntingdonshire District Council,201395,CWE TRAINING LTD,61833,23/02/2022,11843,EFH TRAINING,28/03/2022,139,695,834,HR Services,Staff Development And Training,60115
http://statistics.data.gov.uk/id/local-authority/12UE,Huntingdonshire District Council,202187,CYCLESCHEME LTD,61583,12/03/2022,W613577,REDACTED,24/03/2022,86.67,433.33,520,Cycle to Work,Vehicles Plant Furniture & Equipment Cost,11300
http://statistics.data.gov.uk/id/local-authority/12UE,Huntingdonshire District Council,202187,CYCLESCHEME LTD,61583,12/03/2022,W613577,REDACTED,24/03/2022,0,40,40,Cycle to Work,Vehicles Plant Furniture & Equipment Cost,11300
http://statistics.data.gov.uk/id/local-authority/12UE,Huntingdonshire District Council,202187,CYCLESCHEME LTD,59821,15/02/2022,W610100,REDACTED,17/02/2022,77.5,387.5,465,Cycle to Work,Vehicles Plant Furniture & Equipment Cost,11300
http://statistics.data.gov.uk/id/local-authority/12UE,Huntingdonshire District Council,200220,D & H SIGN & DISPLAY SERVICE D & H SIGN & DISPLAY SERVICE,58013,21/12/2021,7075,OPS VAUXHALL COMBO,13/01/2022,79.2,396,475.2,Vehicles & Plant,Purchase Of Vehicles Related Costs,60906
http://statistics.data.gov.uk/id/local-authority/12UE,Huntingdonshire District Council,200221,D B TRANSPORT SERVICES D B TRANSPORT SERVICES,60130,11/02/2022,13909,OPS HOSES,07/03/2022,69.97,349.84,419.81,Vehicle Maintenance,Materials,61709
http://statistics.data.gov.uk/id/local-authority/12UE,Huntingdonshire District Council,200221,D B TRANSPORT SERVICES D B TRANSPORT SERVICES,58793,23/12/2021,13892,ops auto lube,27/01/2022,55,275,330,Vehicle Maintenance,Materials,61709
http://statistics.data.gov.uk/id/local-authority/12UE,Huntingdonshire District Council,200226,DAL-ROD (CAMRIDGESHIRE) DAL-ROD (CAMRIDGESHIRE),58599,12/11/2021,57948,34&355 LL BLOCKED WC FOUL DRAIN,20/01/2022,50,250,300,Industrial Properties,Maintenance - Building,60201
http://statistics.data.gov.uk/id/local-authority/12UE,Huntingdonshire District Council,200226,DAL-ROD (CAMRIDGESHIRE) DAL-ROD (CAMRIDGESHIRE),59656,09/02/2022,59010,FACILITIES INSTALL FLEXI,03/03/2022,251,1255,1506,Pathfinder House,Maintenance - Building,60201
http://statistics.data.gov.uk/id/local-authority/12UE,Huntingdonshire District Council,200226,DAL-ROD (CAMRIDGESHIRE) DAL-ROD (CAMRIDGESHIRE),59845,19/11/2021,58112,PFH CAR PARK DRAINAGE,17/02/2022,182,910,1092,Pathfinder House,Maintenance - Building,60201
http://statistics.data.gov.uk/id/local-authority/12UE,Huntingdonshire District Council,200226,DAL-ROD (CAMRIDGESHIRE) DAL-ROD (CAMRIDGESHIRE),60076,13/01/2022,58643,facilities CB28213,24/02/2022,130.4,652,782.4,Pathfinder House,Maintenance - Building,60201
http://statistics.data.gov.uk/id/local-authority/12UE,Huntingdonshire District Council,201715,DATASHREDDERS LTD,59306,31/01/2022,101249,PFH SHREDDING 21/22,24/02/2022,73.8,369,442.8,Eastfield House,Shredding,64055
http://statistics.data.gov.uk/id/local-authority/12UE,Huntingdonshire District Council,201715,DATASHREDDERS LTD,58180,31/12/2021,100716,PFH SHREDDING 21/22,27/01/2022,57.6,288,345.6,Eastfield House,Shredding,64055
http://statistics.data.gov.uk/id/local-authority/12UE,Huntingdonshire District Council,201715,DATASHREDDERS LTD,58917,31/10/2021,99628 REMAINING AMOUNT,PFH SHREDDING 21/22,27/01/2022,53.6,268,321.6,Eastfield House,Shredding,64055
http://statistics.data.gov.uk/id/local-authority/12UE,Huntingdonshire District Council,201715,DATASHREDDERS LTD,60578,28/02/2022,101774,community wheeled bins,24/03/2022,50.4,252,302.4,Eastfield House,Shredding,64055
http://statistics.data.gov.uk/id/local-authority/12UE,Huntingdonshire District Council,202479,DAVID OGILVIE ENGINEERING LTD,61008,09/03/2022,187773,Bench Seat/Bolt Down Kit/Plaque,30/03/2022,223.2,1116,1339.2,Parks & Open Spaces,Site Alterations And Materials,60273
http://statistics.data.gov.uk/id/local-authority/12UE,Huntingdonshire District Council,202479,DAVID OGILVIE ENGINEERING LTD,61237,09/03/2022,187774,Memorial Bench,30/03/2022,182.4,912,1094.4,Parks & Open Spaces,Site Alterations And Materials,60273
http://statistics.data.gov.uk/id/local-authority/12UE,Huntingdonshire District Council,202375,WALDEN HOUSE LTD,58363,17/12/2021,REDACTED,REDACTED,12/01/2022,0,1901.5,1901.5,Homelessness,Homeless Prevention Payments,64403
http://statistics.data.gov.uk/id/local-authority/12UE,Huntingdonshire District Council,202375,WALDEN HOUSE LTD,60220,22/02/2022,REDACTED,REDACTED,28/02/2022,0,1600,1600,Homelessness,Homeless Prevention Payments,64403
http://statistics.data.gov.uk/id/local-authority/12UE,Huntingdonshire District Council,202375,WALDEN HOUSE LTD,60100,18/02/2022,REDACTED,REDACTED,24/02/2022,0,415.36,415.36,Homelessness,Homeless Prevention Payments,64403
http://statistics.data.gov.uk/id/local-authority/12UE,Huntingdonshire District Council,202375,WALDEN HOUSE LTD,60807,24/02/2022,REDACTED,Clear Rent Arrears/ Months Rent Advance,10/03/2022,0,800,800,Homelessness,Homeless Prevention Payments,64403
http://statistics.data.gov.uk/id/local-authority/12UE,Huntingdonshire District Council,202375,WALDEN HOUSE LTD,59616,11/02/2022,REDACTED,REDACTED,14/02/2022,0,720,720,Homelessness,Homeless Prevention Payments,64403
http://statistics.data.gov.uk/id/local-authority/12UE,Huntingdonshire District Council,202375,WALDEN HOUSE LTD,60098,22/02/2022,REDACTED,REDACTED,24/02/2022,0,720,720,Homelessness,Homeless Prevention Payments,64403
http://statistics.data.gov.uk/id/local-authority/12UE,Huntingdonshire District Council,202375,WALDEN HOUSE LTD,61436,21/03/2022,BED 1/16- 24843,REDACTED,24/03/2022,0,990,990,Homelessness,Homeless Prevention Payments,64403
http://statistics.data.gov.uk/id/local-authority/12UE,Huntingdonshire District Council,200236,DENNIS EAGLE LTD DENNIS EAGLE LTD,60486,22/02/2022,DE11475304,WINDOW REGULATOR ,17/03/2022,60.49,302.43,362.92,Domestic Waste Collection,Vehicle Repairs And Maintenance,60904
http://statistics.data.gov.uk/id/local-authority/12UE,Huntingdonshire District Council,200236,DENNIS EAGLE LTD DENNIS EAGLE LTD,60116,10/02/2022,DE11472512,OPS WINDOW REGULATOR,07/03/2022,58.22,291.11,349.33,Domestic Waste Collection,Vehicle Repairs And Maintenance,60904
http://statistics.data.gov.uk/id/local-authority/12UE,Huntingdonshire District Council,200236,DENNIS EAGLE LTD DENNIS EAGLE LTD,60475,18/02/2022,DE11474557,PIPE/CLAMP ,17/03/2022,87.86,439.29,527.15,Domestic Waste Collection,Vehicle Repairs And Maintenance,60904
http://statistics.data.gov.uk/id/local-authority/12UE,Huntingdonshire District Council,200236,DENNIS EAGLE LTD DENNIS EAGLE LTD,58394,04/01/2022,DE11462389,VARIUOS PARTS,27/01/2022,521.15,2605.74,3126.89,Domestic Waste Collection,Vehicle Repairs And Maintenance,60904
http://statistics.data.gov.uk/id/local-authority/12UE,Huntingdonshire District Council,200236,DENNIS EAGLE LTD DENNIS EAGLE LTD,58935,14/01/2022,430088,FIT NEW BODY CONTROLLER ,10/02/2022,391.88,1959.37,2351.25,Domestic Waste Collection,Vehicle Repairs And Maintenance,60904
http://statistics.data.gov.uk/id/local-authority/12UE,Huntingdonshire District Council,200236,DENNIS EAGLE LTD DENNIS EAGLE LTD,60114,31/01/2022,DE11469515,OPS VEHICLE EQUIPMENT,24/02/2022,197.4,987.01,1184.41,Domestic Waste Collection,Vehicle Repairs And Maintenance,60904
http://statistics.data.gov.uk/id/local-authority/12UE,Huntingdonshire District Council,200236,DENNIS EAGLE LTD DENNIS EAGLE LTD,59446,24/01/2022,DE11467444,OPS PARTS,14/02/2022,219,1094.99,1313.99,Green Waste Collection,Vehicle Repairs And Maintenance,60904
http://statistics.data.gov.uk/id/local-authority/12UE,Huntingdonshire District Council,200236,DENNIS EAGLE LTD DENNIS EAGLE LTD,60117,10/02/2022,DE11472511,OPS SELECTOR UNIT,07/03/2022,128.31,641.53,769.84,Green Waste Collection,Vehicle Repairs And Maintenance,60904
http://statistics.data.gov.uk/id/local-authority/12UE,Huntingdonshire District Council,200236,DENNIS EAGLE LTD DENNIS EAGLE LTD,59024,04/01/2022,DE11462390,PUMP/SEALS/PTO ,03/02/2022,560.14,2800.69,3360.83,Green Waste Collection,Vehicle Repairs And Maintenance,60904
http://statistics.data.gov.uk/id/local-authority/12UE,Huntingdonshire District Council,200236,DENNIS EAGLE LTD DENNIS EAGLE LTD,59018,06/01/2022,DE11463307,POWER TAKE FF ASSY ,03/02/2022,254.69,1273.43,1528.12,Green Waste Collection,Vehicle Repairs And Maintenance,60904
http://statistics.data.gov.uk/id/local-authority/12UE,Huntingdonshire District Council,200236,DENNIS EAGLE LTD DENNIS EAGLE LTD,58890,10/01/2022,DE11463987,PINS/CYLINDER ,03/02/2022,180.17,900.84,1081.01,Green Waste Collection,Vehicle Repairs And Maintenance,60904
http://statistics.data.gov.uk/id/local-authority/12UE,Huntingdonshire District Council,200236,DENNIS EAGLE LTD DENNIS EAGLE LTD,59794,01/02/2022,431955,FILTER KIT ,24/02/2022,97.12,485.58,582.7,Green Waste Collection,Vehicle Repairs And Maintenance,60904
http://statistics.data.gov.uk/id/local-authority/12UE,Huntingdonshire District Council,200236,DENNIS EAGLE LTD DENNIS EAGLE LTD,59052,19/01/2022,DE30057549,OPS PARTS,03/02/2022,-254.69,-1273.43,-1528.12,Green Waste Collection,Vehicle Repairs And Maintenance,60904
http://statistics.data.gov.uk/id/local-authority/12UE,Huntingdonshire District Council,200236,DENNIS EAGLE LTD DENNIS EAGLE LTD,60133,16/02/2022,DE11473896,OPS  EQUIPMENT,07/03/2022,177.29,886.44,1063.73,Recycling Collections,Vehicle Repairs And Maintenance,60904
http://statistics.data.gov.uk/id/local-authority/12UE,Huntingdonshire District Council,200236,DENNIS EAGLE LTD DENNIS EAGLE LTD,58797,12/01/2022,DE11464834/DE11464420,OPS LINK ROAD,03/02/2022,504.43,2522.14,3026.57,Recycling Collections,Vehicle Repairs And Maintenance,60904
http://statistics.data.gov.uk/id/local-authority/12UE,Huntingdonshire District Council,200236,DENNIS EAGLE LTD DENNIS EAGLE LTD,58797,12/01/2022,DE11464834/DE11464420,OPS LINK ROAD,03/02/2022,69.5,347.48,416.98,Recycling Collections,Vehicle Repairs And Maintenance,60904
http://statistics.data.gov.uk/id/local-authority/12UE,Huntingdonshire District Council,200236,DENNIS EAGLE LTD DENNIS EAGLE LTD,58397,22/12/2021,428612,REPAIRS TO STEERING ,13/01/2022,524.89,2624.44,3149.33,Recycling Collections,Vehicle Repairs And Maintenance,60904
http://statistics.data.gov.uk/id/local-authority/12UE,Huntingdonshire District Council,200236,DENNIS EAGLE LTD DENNIS EAGLE LTD,58118,21/12/2021,DE11460737,OPS BRAKE PADS,13/01/2022,126.47,632.35,758.82,Recycling Collections,Vehicle Repairs And Maintenance,60904
http://statistics.data.gov.uk/id/local-authority/12UE,Huntingdonshire District Council,200236,DENNIS EAGLE LTD DENNIS EAGLE LTD,59516,27/01/2022,DE11468796,HOSE/BRAKE CHABR/SEATBELT STACK ,24/02/2022,77.75,388.77,466.52,Recycling Collections,Vehicle Repairs And Maintenance,60904
http://statistics.data.gov.uk/id/local-authority/12UE,Huntingdonshire District Council,200236,DENNIS EAGLE LTD DENNIS EAGLE LTD,59019,17/01/2022,DE11465904,VARIOUS PARTS VU64AGY,10/02/2022,340.13,1700.62,2040.75,Recycling Collections,Vehicle Repairs And Maintenance,60904
http://statistics.data.gov.uk/id/local-authority/12UE,Huntingdonshire District Council,200236,DENNIS EAGLE LTD DENNIS EAGLE LTD,58795,12/01/2022,DE11464833,OPS WINDOW REPAIR,03/02/2022,107.84,539.2,647.04,Recycling Collections,Vehicle Repairs And Maintenance,60904
http://statistics.data.gov.uk/id/local-authority/12UE,Huntingdonshire District Council,200236,DENNIS EAGLE LTD DENNIS EAGLE LTD,60119,11/02/2022,432900,OPS ADBLUE FAULT,07/03/2022,227.23,1136.15,1363.38,Recycling Collections,Vehicle Repairs And Maintenance,60904
http://statistics.data.gov.uk/id/local-authority/12UE,Huntingdonshire District Council,200236,DENNIS EAGLE LTD DENNIS EAGLE LTD,61089,16/02/2022,DE11473897,Filter Kit/Air Dryer/Steering Kit,17/03/2022,53.16,265.79,318.95,Recycling Collections,Vehicle Repairs And Maintenance,60904
http://statistics.data.gov.uk/id/local-authority/12UE,Huntingdonshire District Council,200236,DENNIS EAGLE LTD DENNIS EAGLE LTD,58237,22/12/2021,DE11461036, SPRING,13/01/2022,166.66,833.28,999.94,Trade Refuse,Vehicle Repairs And Maintenance,60904
http://statistics.data.gov.uk/id/local-authority/12UE,Huntingdonshire District Council,200236,DENNIS EAGLE LTD DENNIS EAGLE LTD,58121,21/12/2021,DE11460736,ops fuel tank,13/01/2022,104.14,520.68,624.82,Trade Refuse,Vehicle Repairs And Maintenance,60904
http://statistics.data.gov.uk/id/local-authority/12UE,Huntingdonshire District Council,200236,DENNIS EAGLE LTD DENNIS EAGLE LTD,58894,13/01/2022,DE11465260,RUBBER BAND/SEAT BELT ,10/02/2022,61.2,305.98,367.18,Trade Refuse,Vehicle Repairs And Maintenance,60904
http://statistics.data.gov.uk/id/local-authority/12UE,Huntingdonshire District Council,200236,DENNIS EAGLE LTD DENNIS EAGLE LTD,58235,20/12/2021,DE1460425,AIRBAG CONNECTOR,13/01/2022,52.82,264.11,316.93,Trade Refuse,Vehicle Repairs And Maintenance,60904
http://statistics.data.gov.uk/id/local-authority/12UE,Huntingdonshire District Council,200236,DENNIS EAGLE LTD DENNIS EAGLE LTD,58125,24/12/2021,DE11461640,BEACON ,20/01/2022,58.05,290.24,348.29,Weekly Bags,Vehicle Repairs And Maintenance,60904
http://statistics.data.gov.uk/id/local-authority/12UE,Huntingdonshire District Council,200236,DENNIS EAGLE LTD DENNIS EAGLE LTD,58281,16/12/2021,428051,REPAIRS TO PACKER SYSTEM ,13/01/2022,88.45,442.23,530.68,Domestic Waste Collection,Vehicle Maintenance - External,60921
http://statistics.data.gov.uk/id/local-authority/12UE,Huntingdonshire District Council,200236,DENNIS EAGLE LTD DENNIS EAGLE LTD,61054,24/02/2022,434171,Repairs,24/03/2022,803.51,4017.53,4821.04,Recycling Collections,Vehicle Maintenance - External,60921
http://statistics.data.gov.uk/id/local-authority/12UE,Huntingdonshire District Council,200236,DENNIS EAGLE LTD DENNIS EAGLE LTD,61919,18/08/2021,417631,Re-Install Vehicle Trackers,30/03/2022,100,500,600,Grounds Maintenance,Equipment,61713
http://statistics.data.gov.uk/id/local-authority/12UE,Huntingdonshire District Council,200236,DENNIS EAGLE LTD DENNIS EAGLE LTD,58795,12/01/2022,DE11464833,OPS WINDOW REPAIR,03/02/2022,-0.01,0,-0.01,Finance,Over/Under VAT Rounding,68350
http://statistics.data.gov.uk/id/local-authority/12UE,Huntingdonshire District Council,200236,DENNIS EAGLE LTD DENNIS EAGLE LTD,59516,27/01/2022,DE11468796,HOSE/BRAKE CHABR/SEATBELT STACK ,24/02/2022,0.01,0,0.01,Finance,Over/Under VAT Rounding,68350
http://statistics.data.gov.uk/id/local-authority/12UE,Huntingdonshire District Council,201313,DENNIS EASTON FUNERAL SERVICE,60141,09/02/2022,60303150,COMMUNITY SIMPLE COFFIN,24/02/2022,0,905,905,Burials Under Health Act,Cremation And Burial Costs,62600
http://statistics.data.gov.uk/id/local-authority/12UE,Huntingdonshire District Council,201979,Department for Work and Pensions,58167,29/12/2021,4013228,KICKSTART GRANT GATEWAY PAYMENT,13/01/2022,0,4683.48,4683.48,Kickstart - External,Mandatory Grants,64601
http://statistics.data.gov.uk/id/local-authority/12UE,Huntingdonshire District Council,202443,DIAMOND HAMPERS,60577,02/03/2022,1010,KICKSTARTER WAGES,07/03/2022,0,2516.17,2516.17,Kickstart - External,Mandatory Grants,64601
http://statistics.data.gov.uk/id/local-authority/12UE,Huntingdonshire District Council,202443,DIAMOND HAMPERS,58296,07/01/2022,1008,,13/01/2022,0,1657.55,1657.55,Kickstart - External,Mandatory Grants,64601
http://statistics.data.gov.uk/id/local-authority/12UE,Huntingdonshire District Council,202443,DIAMOND HAMPERS,60893,28/01/2022,1009,KICKSTART EC / KD,14/03/2022,0,1657.55,1657.55,Kickstart - External,Mandatory Grants,64601
http://statistics.data.gov.uk/id/local-authority/12UE,Huntingdonshire District Council,202443,DIAMOND HAMPERS,61609,22/03/2022,1011,Wages Including IN,24/03/2022,0,1478.46,1478.46,Kickstart - External,Mandatory Grants,64601
http://statistics.data.gov.uk/id/local-authority/12UE,Huntingdonshire District Council,200887,DIAMOND LIFT SERVICES (GB) LTD,60662,08/03/2022,741190,,24/02/2022,0,1657.55,1657.55,Paymaster Account,Paymaster Account,10082
http://statistics.data.gov.uk/id/local-authority/12UE,Huntingdonshire District Council,202871,DIGITAL CREATIONS,60460,28/02/2022,6274,PRINTED BANNERS/POSTERS,24/03/2022,257.6,1288,1545.6,Welcome Back Fund,Signs,60299
http://statistics.data.gov.uk/id/local-authority/12UE,Huntingdonshire District Council,202489,DIRECT HEALTHCARE GROUP LTD,58061,23/12/2021,133441,REPAIRS/ASBESTOS TEST,20/01/2022,0,2939,2939,Disables Facilities Grants,Mandatory Grants,64601
http://statistics.data.gov.uk/id/local-authority/12UE,Huntingdonshire District Council,202727,DOLPHIN MOBILITY HOISTS LTD,58017,29/12/2021,INV-10945,OLSI DIAPER COMMODE,20/01/2022,1374.2,6871,8245.2,Leisure Cents - Future Improve,Equipment,61713
http://statistics.data.gov.uk/id/local-authority/12UE,Huntingdonshire District Council,200363,Drax Energy Solutions Limited Drax Energy Solutions Limited,59832,15/02/2022,1001338070,CREDIT IN1105650497 OLSI,24/02/2022,0,-1061.52,-1061.52,OLSI - Site & Centre Management,VAT Input Tax,11727
http://statistics.data.gov.uk/id/local-authority/12UE,Huntingdonshire District Council,200363,Drax Energy Solutions Limited Drax Energy Solutions Limited,59830,15/02/2022,1001316425,RE-CREDIT IN1105366620 OLSN,24/02/2022,0,-1176.52,-1176.52,OLSN - Swimming,VAT Input Tax,11727
http://statistics.data.gov.uk/id/local-authority/12UE,Huntingdonshire District Council,200363,Drax Energy Solutions Limited Drax Energy Solutions Limited,59828,15/02/2022,1001355741,CREDIT IN1105720531,24/02/2022,0,-734.71,-734.71,VAT,VAT Input Tax,11727
http://statistics.data.gov.uk/id/local-authority/12UE,Huntingdonshire District Council,200363,Drax Energy Solutions Limited Drax Energy Solutions Limited,59831,15/02/2022,PRF1338070,CREDIT CN1001338070-PROCESSED AS INVOICE,24/02/2022,0,-1061.52,-1061.52,VAT,VAT Input Tax,11727
http://statistics.data.gov.uk/id/local-authority/12UE,Huntingdonshire District Council,200363,Drax Energy Solutions Limited Drax Energy Solutions Limited,59829,15/02/2022,PRF1316425,CREDIT CN1001316425-PROCESSED AS INVOICE,24/02/2022,0,-1176.52,-1176.52,VAT,VAT Input Tax,11727
http://statistics.data.gov.uk/id/local-authority/12UE,Huntingdonshire District Council,200363,Drax Energy Solutions Limited Drax Energy Solutions Limited,59827,15/02/2022,1001355739,CREDIT IN1105720527,24/02/2022,0,-1407.82,-1407.82,VAT,VAT Input Tax,11727
http://statistics.data.gov.uk/id/local-authority/12UE,Huntingdonshire District Council,200363,Drax Energy Solutions Limited Drax Energy Solutions Limited,58297,07/01/2022,IN1105720529,ELEC EFH DEC 21,13/01/2022,826.93,4134.65,4961.58,Eastfield House,Electricity,60303
http://statistics.data.gov.uk/id/local-authority/12UE,Huntingdonshire District Council,200363,Drax Energy Solutions Limited Drax Energy Solutions Limited,61235,03/03/2022,IN1105862854,EFH Electricity Jan22 Re-Bill,17/03/2022,812.67,4063.37,4876.04,Eastfield House,Electricity,60303
http://statistics.data.gov.uk/id/local-authority/12UE,Huntingdonshire District Council,200363,Drax Energy Solutions Limited Drax Energy Solutions Limited,59713,14/02/2022,IN1105833487,EFH ELEC JAN22,24/02/2022,795.82,3979.08,4774.9,Eastfield House,Electricity,60303
http://statistics.data.gov.uk/id/local-authority/12UE,Huntingdonshire District Council,200363,Drax Energy Solutions Limited Drax Energy Solutions Limited,61196,03/03/2022,IN1105862855,EFH Electricity Feb22,17/03/2022,640.6,3203,3843.6,Eastfield House,Electricity,60303
http://statistics.data.gov.uk/id/local-authority/12UE,Huntingdonshire District Council,200363,Drax Energy Solutions Limited Drax Energy Solutions Limited,60814,03/03/2022,IN1105862852,OLH Jan22,10/03/2022,641.87,3209.34,3851.21,OLH - Site & Centre Management,Electricity,60303
http://statistics.data.gov.uk/id/local-authority/12UE,Huntingdonshire District Council,200363,Drax Energy Solutions Limited Drax Energy Solutions Limited,60094,14/02/2022,IN1105833486,OL 010122-310122,24/02/2022,630.55,3152.76,3783.31,OLH - Site & Centre Management,Electricity,60303
http://statistics.data.gov.uk/id/local-authority/12UE,Huntingdonshire District Council,200363,Drax Energy Solutions Limited Drax Energy Solutions Limited,60736,03/03/2022,IN1105862853,OLH Feb22,10/03/2022,590.08,2950.41,3540.49,OLH - Site & Centre Management,Electricity,60303
http://statistics.data.gov.uk/id/local-authority/12UE,Huntingdonshire District Council,200363,Drax Energy Solutions Limited Drax Energy Solutions Limited,60093,14/02/2022,IN1105833485,OL 011221-311221,24/02/2022,559.19,2795.95,3355.14,OLH - Site & Centre Management,Electricity,60303
http://statistics.data.gov.uk/id/local-authority/12UE,Huntingdonshire District Council,200363,Drax Energy Solutions Limited Drax Energy Solutions Limited,60093,14/02/2022,IN1105833485,OL 011221-311221,24/02/2022,0,67.35,67.35,OLH - Site & Centre Management,Electricity,60303
http://statistics.data.gov.uk/id/local-authority/12UE,Huntingdonshire District Council,200363,Drax Energy Solutions Limited Drax Energy Solutions Limited,58921,07/01/2022,IN1105720528,OLH ELEC DEC21,27/01/2022,561.37,2806.85,3368.22,OLH - Site & Centre Management,Electricity,60303
http://statistics.data.gov.uk/id/local-authority/12UE,Huntingdonshire District Council,200363,Drax Energy Solutions Limited Drax Energy Solutions Limited,60095,14/02/2022,CN10013557,OL 01.12.21-31.12.21,24/02/2022,-561.37,-2806.85,-3368.22,OLH - Site & Centre Management,Electricity,60303
http://statistics.data.gov.uk/id/local-authority/12UE,Huntingdonshire District Council,200363,Drax Energy Solutions Limited Drax Energy Solutions Limited,60845,10/03/2022,1001360685,OLH Jan22,10/03/2022,-630.55,-3152.76,-3783.31,OLH - Site & Centre Management,Electricity,60303
http://statistics.data.gov.uk/id/local-authority/12UE,Huntingdonshire District Council,200363,Drax Energy Solutions Limited Drax Energy Solutions Limited,60172,14/02/2022,IN1105833492,OLSI 011221-311221,24/02/2022,1481.28,7406.38,8887.66,OLSI - Site & Centre Management,Electricity,60303
http://statistics.data.gov.uk/id/local-authority/12UE,Huntingdonshire District Council,200363,Drax Energy Solutions Limited Drax Energy Solutions Limited,60172,14/02/2022,IN1105833492,OLSI 011221-311221,24/02/2022,0,181.65,181.65,OLSI - Site & Centre Management,Electricity,60303
http://statistics.data.gov.uk/id/local-authority/12UE,Huntingdonshire District Council,200363,Drax Energy Solutions Limited Drax Energy Solutions Limited,58836,07/01/2022,IN1105720533,OLSI ELEC DEC21,27/01/2022,1513.73,7568.63,9082.36,OLSI - Site & Centre Management,Electricity,60303
http://statistics.data.gov.uk/id/local-authority/12UE,Huntingdonshire District Council,200363,Drax Energy Solutions Limited Drax Energy Solutions Limited,60730,03/03/2022,IN1105862861,OLSI Feb22,10/03/2022,1370.07,6850.34,8220.41,OLSI - Site & Centre Management,Electricity,60303
http://statistics.data.gov.uk/id/local-authority/12UE,Huntingdonshire District Council,200363,Drax Energy Solutions Limited Drax Energy Solutions Limited,60816,03/03/2022,IN1105862860,OLSI Jan22,10/03/2022,1361.73,6808.66,8170.39,OLSI - Site & Centre Management,Electricity,60303
http://statistics.data.gov.uk/id/local-authority/12UE,Huntingdonshire District Council,200363,Drax Energy Solutions Limited Drax Energy Solutions Limited,60173,14/02/2022,IN1105833493,OLSI 010122 - 310122,24/02/2022,1338.84,6694.21,8033.05,OLSI - Site & Centre Management,Electricity,60303
http://statistics.data.gov.uk/id/local-authority/12UE,Huntingdonshire District Council,200363,Drax Energy Solutions Limited Drax Energy Solutions Limited,60174,14/02/2022,IN1105833491,OLSI 011121-301121,24/02/2022,1130.38,5651.9,6782.28,OLSI - Site & Centre Management,Electricity,60303
http://statistics.data.gov.uk/id/local-authority/12UE,Huntingdonshire District Council,200363,Drax Energy Solutions Limited Drax Energy Solutions Limited,60174,14/02/2022,IN1105833491,OLSI 011121-301121,24/02/2022,0,8.46,8.46,OLSI - Site & Centre Management,Electricity,60303
http://statistics.data.gov.uk/id/local-authority/12UE,Huntingdonshire District Council,200363,Drax Energy Solutions Limited Drax Energy Solutions Limited,58919,07/01/2022,IN1105720532,OLSI ELEC NOV21,27/01/2022,1130.41,5652.07,6782.48,OLSI - Site & Centre Management,Electricity,60303
http://statistics.data.gov.uk/id/local-authority/12UE,Huntingdonshire District Council,200363,Drax Energy Solutions Limited Drax Energy Solutions Limited,58924,26/01/2022,CN10013380,OLSI ELEC CREDIT NOTE,27/01/2022,1061.53,5307.66,6369.19,OLSI - Site & Centre Management,Electricity,60303
http://statistics.data.gov.uk/id/local-authority/12UE,Huntingdonshire District Council,200363,Drax Energy Solutions Limited Drax Energy Solutions Limited,59831,15/02/2022,PRF1338070,CREDIT CN1001338070-PROCESSED AS INVOICE,24/02/2022,-884.61,-4423.06,-5307.67,OLSI - Site & Centre Management,Electricity,60303
http://statistics.data.gov.uk/id/local-authority/12UE,Huntingdonshire District Council,200363,Drax Energy Solutions Limited Drax Energy Solutions Limited,59832,15/02/2022,1001338070,CREDIT IN1105650497 OLSI,24/02/2022,-884.61,-4423.06,-5307.67,OLSI - Site & Centre Management,Electricity,60303
http://statistics.data.gov.uk/id/local-authority/12UE,Huntingdonshire District Council,200363,Drax Energy Solutions Limited Drax Energy Solutions Limited,60176,14/02/2022,CN1001355,CN10013555742 OL NOV 21,24/02/2022,-1130.41,-5652.07,-6782.48,OLSI - Site & Centre Management,Electricity,60303
http://statistics.data.gov.uk/id/local-authority/12UE,Huntingdonshire District Council,200363,Drax Energy Solutions Limited Drax Energy Solutions Limited,60843,10/03/2022,1001360689,OLSI Jan 22,10/03/2022,-1338.84,-6694.22,-8033.06,OLSI - Site & Centre Management,Electricity,60303
http://statistics.data.gov.uk/id/local-authority/12UE,Huntingdonshire District Council,200363,Drax Energy Solutions Limited Drax Energy Solutions Limited,60175,14/02/2022,CN10013555,CN10013555743 DEC 21 OLSI,24/02/2022,-1513.73,-7568.63,-9082.36,OLSI - Site & Centre Management,Electricity,60303
http://statistics.data.gov.uk/id/local-authority/12UE,Huntingdonshire District Council,200363,Drax Energy Solutions Limited Drax Energy Solutions Limited,60817,03/03/2022,IN1105862858,OLSIO Jan22,10/03/2022,868.02,4340.09,5208.11,OLSIO - Site & Centre Management,Electricity,60303
http://statistics.data.gov.uk/id/local-authority/12UE,Huntingdonshire District Council,200363,Drax Energy Solutions Limited Drax Energy Solutions Limited,59824,14/02/2022,IN1105833490,OLSIO ELEC JAN22,24/02/2022,853.89,4269.43,5123.32,OLSIO - Site & Centre Management,Electricity,60303
http://statistics.data.gov.uk/id/local-authority/12UE,Huntingdonshire District Council,200363,Drax Energy Solutions Limited Drax Energy Solutions Limited,60725,03/03/2022,IN1105862859,OLSIO Feb22,10/03/2022,774.89,3874.44,4649.33,OLSIO - Site & Centre Management,Electricity,60303
http://statistics.data.gov.uk/id/local-authority/12UE,Huntingdonshire District Council,200363,Drax Energy Solutions Limited Drax Energy Solutions Limited,58922,07/01/2022,INV1105720531,OLSIO ELEC DEC21,27/01/2022,734.73,3673.63,4408.36,OLSIO - Site & Centre Management,Electricity,60303
http://statistics.data.gov.uk/id/local-authority/12UE,Huntingdonshire District Council,200363,Drax Energy Solutions Limited Drax Energy Solutions Limited,59823,14/02/2022,IN1105833489,OLSIO ELEC DEC21,24/02/2022,726.7,3633.5,4360.2,OLSIO - Site & Centre Management,Electricity,60303
http://statistics.data.gov.uk/id/local-authority/12UE,Huntingdonshire District Council,200363,Drax Energy Solutions Limited Drax Energy Solutions Limited,59828,15/02/2022,1001355741,CREDIT IN1105720531,24/02/2022,-612.28,-3061.37,-3673.65,OLSIO - Site & Centre Management,Electricity,60303
http://statistics.data.gov.uk/id/local-authority/12UE,Huntingdonshire District Council,200363,Drax Energy Solutions Limited Drax Energy Solutions Limited,60844,10/03/2022,1001360688,OCOMP Jan22,10/03/2022,-853.89,-4269.43,-5123.32,OLSIO - Site & Centre Management,Electricity,60303
http://statistics.data.gov.uk/id/local-authority/12UE,Huntingdonshire District Council,200363,Drax Energy Solutions Limited Drax Energy Solutions Limited,60818,03/03/2022,IN1105862850,OLSN Jan22,10/03/2022,1488.78,7443.9,8932.68,OLSN - Swimming,Electricity,60303
http://statistics.data.gov.uk/id/local-authority/12UE,Huntingdonshire District Council,200363,Drax Energy Solutions Limited Drax Energy Solutions Limited,59826,14/02/2022,IN1105833484,OLSN ELEC JAN22,24/02/2022,1459.11,7295.55,8754.66,OLSN - Swimming,Electricity,60303
http://statistics.data.gov.uk/id/local-authority/12UE,Huntingdonshire District Council,200363,Drax Energy Solutions Limited Drax Energy Solutions Limited,58920,07/01/2022,IN1105720527,OLSN ELEC DEC21,27/01/2022,1407.81,7039.03,8446.84,OLSN - Swimming,Electricity,60303
http://statistics.data.gov.uk/id/local-authority/12UE,Huntingdonshire District Council,200363,Drax Energy Solutions Limited Drax Energy Solutions Limited,59825,14/02/2022,IN1105833483,OLSN ELEC DEC21,24/02/2022,1342.72,6713.61,8056.33,OLSN - Swimming,Electricity,60303
http://statistics.data.gov.uk/id/local-authority/12UE,Huntingdonshire District Council,200363,Drax Energy Solutions Limited Drax Energy Solutions Limited,60735,03/03/2022,IN1105862851,OLSN Feb22,10/03/2022,1283.28,6416.42,7699.7,OLSN - Swimming,Electricity,60303
http://statistics.data.gov.uk/id/local-authority/12UE,Huntingdonshire District Council,200363,Drax Energy Solutions Limited Drax Energy Solutions Limited,59829,15/02/2022,PRF1316425,CREDIT CN1001316425-PROCESSED AS INVOICE,24/02/2022,-980.45,-4902.24,-5882.69,OLSN - Swimming,Electricity,60303
http://statistics.data.gov.uk/id/local-authority/12UE,Huntingdonshire District Council,200363,Drax Energy Solutions Limited Drax Energy Solutions Limited,59830,15/02/2022,1001316425,RE-CREDIT IN1105366620 OLSN,24/02/2022,-980.45,-4902.24,-5882.69,OLSN - Swimming,Electricity,60303
http://statistics.data.gov.uk/id/local-authority/12UE,Huntingdonshire District Council,200363,Drax Energy Solutions Limited Drax Energy Solutions Limited,59827,15/02/2022,1001355739,CREDIT IN1105720527,24/02/2022,-1173.17,-5865.85,-7039.02,OLSN - Swimming,Electricity,60303
http://statistics.data.gov.uk/id/local-authority/12UE,Huntingdonshire District Council,200363,Drax Energy Solutions Limited Drax Energy Solutions Limited,60842,10/03/2022,1001360684,OLSTN JAN 22,10/03/2022,-1459.11,-7295.55,-8754.66,OLSN - Swimming,Electricity,60303
http://statistics.data.gov.uk/id/local-authority/12UE,Huntingdonshire District Council,200363,Drax Energy Solutions Limited Drax Energy Solutions Limited,61234,03/03/2022,IN1105862856,PFH Electricity Jan22 Re-bill,17/03/2022,2500.28,12501.42,15001.7,Pathfinder House,Electricity,60303
http://statistics.data.gov.uk/id/local-authority/12UE,Huntingdonshire District Council,200363,Drax Energy Solutions Limited Drax Energy Solutions Limited,59715,14/02/2022,IN115833488,PFH ELEC JAN22,24/02/2022,2442.76,12213.79,14656.55,Pathfinder House,Electricity,60303
http://statistics.data.gov.uk/id/local-authority/12UE,Huntingdonshire District Council,200363,Drax Energy Solutions Limited Drax Energy Solutions Limited,58410,07/01/2022,IN1105720530,ELEC SUPPLY PFH DEC 21,13/01/2022,2129.51,10647.56,12777.07,Pathfinder House,Electricity,60303
http://statistics.data.gov.uk/id/local-authority/12UE,Huntingdonshire District Council,200363,Drax Energy Solutions Limited Drax Energy Solutions Limited,61201,03/03/2022,IN1105862857,PFH Electricity Feb22,17/03/2022,2004.56,10022.81,12027.37,Pathfinder House,Electricity,60303
http://statistics.data.gov.uk/id/local-authority/12UE,Huntingdonshire District Council,200363,Drax Energy Solutions Limited Drax Energy Solutions Limited,60172,14/02/2022,IN1105833492,OLSI 011221-311221,24/02/2022,-0.02,0,-0.02,Finance,Over/Under VAT Rounding,68350
http://statistics.data.gov.uk/id/local-authority/12UE,Huntingdonshire District Council,200363,Drax Energy Solutions Limited Drax Energy Solutions Limited,60818,03/03/2022,IN1105862850,OLSN Jan22,10/03/2022,-0.01,0,-0.01,Finance,Over/Under VAT Rounding,68350
http://statistics.data.gov.uk/id/local-authority/12UE,Huntingdonshire District Council,200363,Drax Energy Solutions Limited Drax Energy Solutions Limited,60173,14/02/2022,IN1105833493,OLSI 010122 - 310122,24/02/2022,0.01,0,0.01,Finance,Over/Under VAT Rounding,68350
http://statistics.data.gov.uk/id/local-authority/12UE,Huntingdonshire District Council,200363,Drax Energy Solutions Limited Drax Energy Solutions Limited,60735,03/03/2022,IN1105862851,OLSN Feb22,10/03/2022,-0.01,0,-0.01,Finance,Over/Under VAT Rounding,68350
http://statistics.data.gov.uk/id/local-authority/12UE,Huntingdonshire District Council,200363,Drax Energy Solutions Limited Drax Energy Solutions Limited,60817,03/03/2022,IN1105862858,OLSIO Jan22,10/03/2022,0.01,0,0.01,Finance,Over/Under VAT Rounding,68350
http://statistics.data.gov.uk/id/local-authority/12UE,Huntingdonshire District Council,200363,Drax Energy Solutions Limited Drax Energy Solutions Limited,61235,03/03/2022,IN1105862854,EFH Electricity Jan22 Re-Bill,17/03/2022,-0.01,0,-0.01,Finance,Over/Under VAT Rounding,68350
http://statistics.data.gov.uk/id/local-authority/12UE,Huntingdonshire District Council,200363,Drax Energy Solutions Limited Drax Energy Solutions Limited,60736,03/03/2022,IN1105862853,OLH Feb22,10/03/2022,-0.01,0,-0.01,Finance,Over/Under VAT Rounding,68350
http://statistics.data.gov.uk/id/local-authority/12UE,Huntingdonshire District Council,200250,DTS SOLUTIONS (UK) LTD DTS SOLUTIONS (UK) LTD,59447,21/01/2022,SVC002418,OPS REPAIRS,14/02/2022,55.3,276.5,331.8,Green Waste Collection,Vehicle Maintenance - External,60921
http://statistics.data.gov.uk/id/local-authority/12UE,Huntingdonshire District Council,200250,DTS SOLUTIONS (UK) LTD DTS SOLUTIONS (UK) LTD,61603,02/02/2022,S008588,TRBnet Support 1 Year,24/03/2022,480,2400,2880,Vehicle Maintenance,Ict Software,64071
http://statistics.data.gov.uk/id/local-authority/12UE,Huntingdonshire District Council,201644,DUN & BRADSTREET LTD,58696,14/03/2021,CI-00012167,D&G CREDIT REPORTER BRONZE,20/01/2022,200,1000,1200,Finance,Consultancy Fees,62400
http://statistics.data.gov.uk/id/local-authority/12UE,Huntingdonshire District Council,201394,DWF LLP,59289,27/01/2022,157-0251084,WATSON FEE VAT ONLY,24/02/2022,0,587.6,587.6,VAT,VAT Input Tax,11727
http://statistics.data.gov.uk/id/local-authority/12UE,Huntingdonshire District Council,201394,DWF LLP,58318,22/12/2021,157-0242665,WATSON FEE VAT ONLY 221221,13/01/2022,0,250,250,VAT,VAT Input Tax,11727
http://statistics.data.gov.uk/id/local-authority/12UE,Huntingdonshire District Council,200253,EACS LTD EACS LTD,61531,10/02/2022,SIN138303,It Software 2022/23,24/03/2022,27537.42,137687.09,165224.51,3CICT NON STAFF HOLDING ACCOUNT,Ict Software,64071
http://statistics.data.gov.uk/id/local-authority/12UE,Huntingdonshire District Council,200253,EACS LTD EACS LTD,61692,26/01/2022,SIN137854,It Software,28/03/2022,2926.8,14634,17560.8,3CICT NON STAFF HOLDING ACCOUNT,Ict Software,64071
http://statistics.data.gov.uk/id/local-authority/12UE,Huntingdonshire District Council,200254,EAST ANGLIAN CHILDREN'S HOSPICES EAST ANGLIAN CHILDREN'S HOSPICES,59562,08/02/2022,CHAIRMANS CHARITIES,CHAIRMANS CAHRITIES FEB22,24/02/2022,0,0,0,VAT,VAT Input Tax,11727
http://statistics.data.gov.uk/id/local-authority/12UE,Huntingdonshire District Council,200254,EAST ANGLIAN CHILDREN'S HOSPICES EAST ANGLIAN CHILDREN'S HOSPICES,59562,08/02/2022,CHAIRMANS CHARITIES,CHAIRMANS CAHRITIES FEB22,24/02/2022,0,1000,1000,Civic Allowances & Support,Grants And Contributions,64600
http://statistics.data.gov.uk/id/local-authority/12UE,Huntingdonshire District Council,200255,EAST OF ENGLAND LGA EAST OF ENGLAND LGA,61167,31/07/2021,1001928,Staff Training&Development,17/03/2022,525,2625,3150,HR Services,Consultancy Fees,62400
http://statistics.data.gov.uk/id/local-authority/12UE,Huntingdonshire District Council,200255,EAST OF ENGLAND LGA EAST OF ENGLAND LGA,60846,24/06/2021,1001880,Pension Liability,10/03/2022,400,2000,2400,Managing Directors Team,Membership And Subscriptions,64800
http://statistics.data.gov.uk/id/local-authority/12UE,Huntingdonshire District Council,200255,EAST OF ENGLAND LGA EAST OF ENGLAND LGA,60847,10/03/2022,1001966,Pension Liability,10/03/2022,0,-400,-400,Managing Directors Team,Membership And Subscriptions,64800
http://statistics.data.gov.uk/id/local-authority/12UE,Huntingdonshire District Council,202872,Eastern Counties Cat Society,60187,24/02/2022,PRF  BURGESS HALL REFUND,covid refund for burgess hall,24/02/2022,83.33,416.67,500,OLSI - Burgess Hall,"Hire Of Rooms, Halls And Open Spaces Income ",53400
http://statistics.data.gov.uk/id/local-authority/12UE,Huntingdonshire District Council,202236,EASTFIELD GUESTHOUSE LTD,57973,27/12/2021,HUN0138,TA WE 26.12.21,06/01/2022,52.5,420,472.5,Homelessness,B&B Costs Recovered,51406
http://statistics.data.gov.uk/id/local-authority/12UE,Huntingdonshire District Council,202236,EASTFIELD GUESTHOUSE LTD,57973,27/12/2021,HUN0138,TA WE 26.12.21,06/01/2022,52.5,420,472.5,Homelessness,B&B Costs Recovered,51406
http://statistics.data.gov.uk/id/local-authority/12UE,Huntingdonshire District Council,202236,EASTFIELD GUESTHOUSE LTD,57973,27/12/2021,HUN0138,TA WE 26.12.21,06/01/2022,52.5,420,472.5,Homelessness,B&B Costs Recovered,51406
http://statistics.data.gov.uk/id/local-authority/12UE,Huntingdonshire District Council,202236,EASTFIELD GUESTHOUSE LTD,57973,27/12/2021,HUN0138,TA WE 26.12.21,06/01/2022,52.5,420,472.5,Homelessness,B&B Costs Recovered,51406
http://statistics.data.gov.uk/id/local-authority/12UE,Huntingdonshire District Council,202236,EASTFIELD GUESTHOUSE LTD,57973,27/12/2021,HUN0138,TA WE 26.12.21,06/01/2022,52.5,420,472.5,Homelessness,B&B Costs Recovered,51406
http://statistics.data.gov.uk/id/local-authority/12UE,Huntingdonshire District Council,202236,EASTFIELD GUESTHOUSE LTD,57973,27/12/2021,HUN0138,TA WE 26.12.21,06/01/2022,30,240,270,Homelessness,B&B Costs Recovered,51406
http://statistics.data.gov.uk/id/local-authority/12UE,Huntingdonshire District Council,202236,EASTFIELD GUESTHOUSE LTD,57973,27/12/2021,HUN0138,TA WE 26.12.21,06/01/2022,30,240,270,Homelessness,B&B Costs Recovered,51406
http://statistics.data.gov.uk/id/local-authority/12UE,Huntingdonshire District Council,202236,EASTFIELD GUESTHOUSE LTD,57973,27/12/2021,HUN0138,TA WE 26.12.21,06/01/2022,52.5,420,472.5,Homelessness,B&B Costs Recovered,51406
http://statistics.data.gov.uk/id/local-authority/12UE,Huntingdonshire District Council,202236,EASTFIELD GUESTHOUSE LTD,57973,27/12/2021,HUN0138,TA WE 26.12.21,06/01/2022,52.5,420,472.5,Homelessness,B&B Costs Recovered,51406
http://statistics.data.gov.uk/id/local-authority/12UE,Huntingdonshire District Council,202236,EASTFIELD GUESTHOUSE LTD,57973,27/12/2021,HUN0138,TA WE 26.12.21,06/01/2022,52.5,420,472.5,Homelessness,B&B Costs Recovered,51406
http://statistics.data.gov.uk/id/local-authority/12UE,Huntingdonshire District Council,202236,EASTFIELD GUESTHOUSE LTD,59507,31/01/2022,HUN0149,NAGS HEAD TA 24-300122,28/02/2022,0,877.5,877.5,Homelessness,B&B Accommodation,64401
http://statistics.data.gov.uk/id/local-authority/12UE,Huntingdonshire District Council,202236,EASTFIELD GUESTHOUSE LTD,59816,07/02/2022,HUN0151,NAGS HEAD TA JAN-FEB22,17/02/2022,97.5,780,877.5,Homelessness,B&B Accommodation,64401
http://statistics.data.gov.uk/id/local-authority/12UE,Huntingdonshire District Council,202236,EASTFIELD GUESTHOUSE LTD,60237,14/02/2022,HUN0153,TA WE 130222,28/02/2022,60,480,540,Homelessness,B&B Accommodation,64401
http://statistics.data.gov.uk/id/local-authority/12UE,Huntingdonshire District Council,202236,EASTFIELD GUESTHOUSE LTD,60548,21/01/2022,HUN0155,TA Nags Head 14-200222,07/03/2022,45,360,405,Homelessness,B&B Accommodation,64401
http://statistics.data.gov.uk/id/local-authority/12UE,Huntingdonshire District Council,202236,EASTFIELD GUESTHOUSE LTD,60548,21/01/2022,HUN0155,TA Nags Head 14-200222,07/03/2022,15,120,135,Homelessness,B&B Accommodation,64401
http://statistics.data.gov.uk/id/local-authority/12UE,Huntingdonshire District Council,202236,EASTFIELD GUESTHOUSE LTD,60548,21/01/2022,HUN0155,TA Nags Head 14-200222,07/03/2022,30,240,270,Homelessness,B&B Accommodation,64401
http://statistics.data.gov.uk/id/local-authority/12UE,Huntingdonshire District Council,202236,EASTFIELD GUESTHOUSE LTD,60772,27/02/2022,HUN0157,Nag Head TA 21-27.02.22,10/03/2022,120,960,1080,Homelessness,B&B Accommodation,64401
http://statistics.data.gov.uk/id/local-authority/12UE,Huntingdonshire District Council,202236,EASTFIELD GUESTHOUSE LTD,61446,07/03/2022,HUN0158,Nags Head TA 28.01-06.03.22,21/03/2022,210,1680,1890,Homelessness,B&B Accommodation,64401
http://statistics.data.gov.uk/id/local-authority/12UE,Huntingdonshire District Council,202236,EASTFIELD GUESTHOUSE LTD,61468,14/03/2022,HUN0160,Hags Head TA 07-13.03.22,21/03/2022,120,960,1080,Homelessness,B&B Accommodation,64401
http://statistics.data.gov.uk/id/local-authority/12UE,Huntingdonshire District Council,202236,EASTFIELD GUESTHOUSE LTD,61612,21/03/2022,HUN0162,Nags Head TA- 14-20.03.22,24/03/2022,45,360,405,Homelessness,B&B Accommodation,64401
http://statistics.data.gov.uk/id/local-authority/12UE,Huntingdonshire District Council,202236,EASTFIELD GUESTHOUSE LTD,61950,28/03/2022,HUN0164,TA WE 270322,30/03/2022,52.5,420,472.5,Homelessness,B&B Accommodation,64401
http://statistics.data.gov.uk/id/local-authority/12UE,Huntingdonshire District Council,202236,EASTFIELD GUESTHOUSE LTD,59312,24/01/2022,HUN0147,NAGS HEAD 17-230122,10/02/2022,15,120,135,Homelessness,B&B Accommodation,64401
http://statistics.data.gov.uk/id/local-authority/12UE,Huntingdonshire District Council,202236,EASTFIELD GUESTHOUSE LTD,58429,20/12/2021,HUN0136,TA13-191221,13/01/2022,7.5,60,67.5,Homelessness,B&B Accommodation,64401
http://statistics.data.gov.uk/id/local-authority/12UE,Huntingdonshire District Council,202236,EASTFIELD GUESTHOUSE LTD,57973,27/12/2021,HUN0138,TA WE 26.12.21,06/01/2022,22.5,180,202.5,Homelessness,B&B Accommodation,64401
http://statistics.data.gov.uk/id/local-authority/12UE,Huntingdonshire District Council,202236,EASTFIELD GUESTHOUSE LTD,57973,27/12/2021,HUN0138,TA WE 26.12.21,06/01/2022,22.5,180,202.5,Homelessness,B&B Accommodation,64401
http://statistics.data.gov.uk/id/local-authority/12UE,Huntingdonshire District Council,202236,EASTFIELD GUESTHOUSE LTD,58084,03/01/2022,HUN0140,TA 271221-020122,06/01/2022,52.5,420,472.5,Homelessness,B&B Accommodation,64401
http://statistics.data.gov.uk/id/local-authority/12UE,Huntingdonshire District Council,202236,EASTFIELD GUESTHOUSE LTD,58084,03/01/2022,HUN0140,TA 271221-020122,06/01/2022,52.5,420,472.5,Homelessness,B&B Accommodation,64401
http://statistics.data.gov.uk/id/local-authority/12UE,Huntingdonshire District Council,202236,EASTFIELD GUESTHOUSE LTD,58084,03/01/2022,HUN0140,TA 271221-020122,06/01/2022,30,240,270,Homelessness,B&B Accommodation,64401
http://statistics.data.gov.uk/id/local-authority/12UE,Huntingdonshire District Council,202236,EASTFIELD GUESTHOUSE LTD,58914,17/01/2022,HUN0144,TA 10-160122,27/01/2022,37.5,300,337.5,Homelessness,B&B Accommodation,64401
http://statistics.data.gov.uk/id/local-authority/12UE,Huntingdonshire District Council,202236,EASTFIELD GUESTHOUSE LTD,58914,17/01/2022,HUN0144,TA 10-160122,27/01/2022,45,360,405,Homelessness,B&B Accommodation,64401
http://statistics.data.gov.uk/id/local-authority/12UE,Huntingdonshire District Council,202236,EASTFIELD GUESTHOUSE LTD,58914,17/01/2022,HUN0144,TA 10-160122,27/01/2022,52.5,420,472.5,Homelessness,B&B Accommodation,64401
http://statistics.data.gov.uk/id/local-authority/12UE,Huntingdonshire District Council,202236,EASTFIELD GUESTHOUSE LTD,58914,17/01/2022,HUN0144,TA 10-160122,27/01/2022,52.5,420,472.5,Homelessness,B&B Accommodation,64401
http://statistics.data.gov.uk/id/local-authority/12UE,Huntingdonshire District Council,202236,EASTFIELD GUESTHOUSE LTD,58914,17/01/2022,HUN0144,TA 10-160122,27/01/2022,45,360,405,Homelessness,B&B Accommodation,64401
http://statistics.data.gov.uk/id/local-authority/12UE,Huntingdonshire District Council,202236,EASTFIELD GUESTHOUSE LTD,59313,24/01/2022,HUN0146,TA 17-230122,10/02/2022,127.5,1020,1147.5,Homelessness,B&B Accommodation,64401
http://statistics.data.gov.uk/id/local-authority/12UE,Huntingdonshire District Council,202236,EASTFIELD GUESTHOUSE LTD,61018,31/01/2022,HUN0148,TA WE 30.01.22,14/03/2022,15,120,135,Homelessness,B&B Accommodation,64401
http://statistics.data.gov.uk/id/local-authority/12UE,Huntingdonshire District Council,202236,EASTFIELD GUESTHOUSE LTD,61018,31/01/2022,HUN0148,TA WE 30.01.22,14/03/2022,52.5,420,472.5,Homelessness,B&B Accommodation,64401
http://statistics.data.gov.uk/id/local-authority/12UE,Huntingdonshire District Council,202236,EASTFIELD GUESTHOUSE LTD,58085,03/01/2022,HUN0141,NAGS HEAD TA 271221-020122,06/01/2022,52.5,420,472.5,Homelessness,B&B Accommodation,64401
http://statistics.data.gov.uk/id/local-authority/12UE,Huntingdonshire District Council,202236,EASTFIELD GUESTHOUSE LTD,58085,03/01/2022,HUN0141,NAGS HEAD TA 271221-020122,06/01/2022,22.5,180,202.5,Homelessness,B&B Accommodation,64401
http://statistics.data.gov.uk/id/local-authority/12UE,Huntingdonshire District Council,202236,EASTFIELD GUESTHOUSE LTD,58085,03/01/2022,HUN0141,NAGS HEAD TA 271221-020122,06/01/2022,52.5,420,472.5,Homelessness,B&B Accommodation,64401
http://statistics.data.gov.uk/id/local-authority/12UE,Huntingdonshire District Council,202236,EASTFIELD GUESTHOUSE LTD,58349,10/01/2022,HUN0143,TA NAGS HEAD 03-090122,13/01/2022,15,120,135,Homelessness,B&B Accommodation,64401
http://statistics.data.gov.uk/id/local-authority/12UE,Huntingdonshire District Council,202236,EASTFIELD GUESTHOUSE LTD,58349,10/01/2022,HUN0143,TA NAGS HEAD 03-090122,13/01/2022,7.5,60,67.5,Homelessness,B&B Accommodation,64401
http://statistics.data.gov.uk/id/local-authority/12UE,Huntingdonshire District Council,202236,EASTFIELD GUESTHOUSE LTD,58488,27/12/2021,HUN0139,TA NAGS HEAD 20-261221,20/01/2022,30,240,270,Homelessness,B&B Accommodation,64401
http://statistics.data.gov.uk/id/local-authority/12UE,Huntingdonshire District Council,202236,EASTFIELD GUESTHOUSE LTD,58488,27/12/2021,HUN0139,TA NAGS HEAD 20-261221,20/01/2022,52.5,420,472.5,Homelessness,B&B Accommodation,64401
http://statistics.data.gov.uk/id/local-authority/12UE,Huntingdonshire District Council,202236,EASTFIELD GUESTHOUSE LTD,58488,27/12/2021,HUN0139,TA NAGS HEAD 20-261221,20/01/2022,15,120,135,Homelessness,B&B Accommodation,64401
http://statistics.data.gov.uk/id/local-authority/12UE,Huntingdonshire District Council,202236,EASTFIELD GUESTHOUSE LTD,58488,27/12/2021,HUN0139,TA NAGS HEAD 20-261221,20/01/2022,30,240,270,Homelessness,B&B Accommodation,64401
http://statistics.data.gov.uk/id/local-authority/12UE,Huntingdonshire District Council,202236,EASTFIELD GUESTHOUSE LTD,60830,28/02/2022,HUN0156,TA 21-27.02.22,10/03/2022,8.12,65,73.12,Homelessness,B&B Accommodation,64401
http://statistics.data.gov.uk/id/local-authority/12UE,Huntingdonshire District Council,202236,EASTFIELD GUESTHOUSE LTD,61475,14/03/2022,HUN0161,TA 07-13.03.22,24/03/2022,8.12,65,73.12,Homelessness,B&B Accommodation,64401
http://statistics.data.gov.uk/id/local-authority/12UE,Huntingdonshire District Council,202236,EASTFIELD GUESTHOUSE LTD,59037,20/01/2022,HUN013SE,HOUSING TA WE 12.12.21,03/02/2022,45,360,405,Homelessness,B&B Accommodation,64401
http://statistics.data.gov.uk/id/local-authority/12UE,Huntingdonshire District Council,202236,EASTFIELD GUESTHOUSE LTD,60260,21/02/2022,HUN0154,HOUSING TA WE 200222,28/02/2022,56.88,455,511.88,Homelessness,B&B Accommodation,64401
http://statistics.data.gov.uk/id/local-authority/12UE,Huntingdonshire District Council,202236,EASTFIELD GUESTHOUSE LTD,61478,07/03/2022,HUN0159,TA 28.02-06.03.22,24/03/2022,24.38,195,219.38,Homelessness,B&B Accommodation,64401
http://statistics.data.gov.uk/id/local-authority/12UE,Huntingdonshire District Council,202236,EASTFIELD GUESTHOUSE LTD,61553,21/03/2022,HUN0163,TA WE 200322,24/03/2022,56.87,455,511.87,Homelessness,B&B Accommodation,64401
http://statistics.data.gov.uk/id/local-authority/12UE,Huntingdonshire District Council,202236,EASTFIELD GUESTHOUSE LTD,61475,14/03/2022,HUN0161,TA 07-13.03.22,24/03/2022,56.87,455,511.87,Homelessness,B&B Accommodation,64401
http://statistics.data.gov.uk/id/local-authority/12UE,Huntingdonshire District Council,202236,EASTFIELD GUESTHOUSE LTD,58429,20/12/2021,HUN0136,TA13-191221,13/01/2022,52.5,420,472.5,Homelessness,B&B Accommodation,64401
http://statistics.data.gov.uk/id/local-authority/12UE,Huntingdonshire District Council,202236,EASTFIELD GUESTHOUSE LTD,58084,03/01/2022,HUN0140,TA 271221-020122,06/01/2022,52.5,420,472.5,Homelessness,B&B Accommodation,64401
http://statistics.data.gov.uk/id/local-authority/12UE,Huntingdonshire District Council,202236,EASTFIELD GUESTHOUSE LTD,58914,17/01/2022,HUN0144,TA 10-160122,27/01/2022,15,120,135,Homelessness,B&B Accommodation,64401
http://statistics.data.gov.uk/id/local-authority/12UE,Huntingdonshire District Council,202236,EASTFIELD GUESTHOUSE LTD,58351,10/01/2022,HUN0142,TA 03-090122,13/01/2022,15,120,135,Homelessness,B&B Accommodation,64401
http://statistics.data.gov.uk/id/local-authority/12UE,Huntingdonshire District Council,202236,EASTFIELD GUESTHOUSE LTD,58351,10/01/2022,HUN0142,TA 03-090122,13/01/2022,37.5,300,337.5,Homelessness,B&B Accommodation,64401
http://statistics.data.gov.uk/id/local-authority/12UE,Huntingdonshire District Council,202236,EASTFIELD GUESTHOUSE LTD,58914,17/01/2022,HUN0144,TA 10-160122,27/01/2022,37.5,300,337.5,Homelessness,B&B Accommodation,64401
http://statistics.data.gov.uk/id/local-authority/12UE,Huntingdonshire District Council,202236,EASTFIELD GUESTHOUSE LTD,59313,24/01/2022,HUN0146,TA 17-230122,10/02/2022,52.5,420,472.5,Homelessness,B&B Accommodation,64401
http://statistics.data.gov.uk/id/local-authority/12UE,Huntingdonshire District Council,202236,EASTFIELD GUESTHOUSE LTD,61018,31/01/2022,HUN0148,TA WE 30.01.22,14/03/2022,52.5,420,472.5,Homelessness,B&B Accommodation,64401
http://statistics.data.gov.uk/id/local-authority/12UE,Huntingdonshire District Council,202236,EASTFIELD GUESTHOUSE LTD,59815,07/02/2022,HUN0150,TA JAN-FEB22,17/02/2022,56.87,455,511.87,Homelessness,B&B Accommodation,64401
